Workbook

Sheet _TM_Uvod (hidden)
A1: Left | B1: Top | C1: Right | D1: Bottom | E1: Ref
A2: 1 | B2: 12 | C2: 2 | D2: 12 | E2: $A$12:$B$12

Sheet (Naslovna)
A1: v_2.11/2020
B2: Prilog 9.2.2 | I2: Godišnji financijski plan poslovanja
B3: Ministarstvo prostornoga uređenja, graditeljstva i državne imovine
B8: Godišnji financijski plan poslovanja
C12: ="za "&LEFT(Podloga!B8,4)&". godinu" -> za 2026. godinu
C16: =HYPERLINK("#Uvod!A1","Uvod") -> Uvod
C18: =HYPERLINK("#Podloga!$A$1","Podloga za izradu plana") -> Podloga za izradu plana
C20: =HYPERLINK("#'Tijela društva'!A1","Tijela društva") -> Tijela društva
C22: =HYPERLINK("#'Vl. struktura'!A1","Vlasnička struktura") -> Vlasnička struktura
C24: =HYPERLINK("#Bilanca!A1","Izvještaj o financijskom položaju ") -> Izvještaj o financijskom položaju
C26: =HYPERLINK("#RDG!A1","Račun dobiti i gubitka ") -> Račun dobiti i gubitka
C28: =HYPERLINK("#'NT dir.'!A1","Izvještaj o novčanom toku (direktna metoda)") -> Izvještaj o novčanom toku (direktna metoda)
C30: =HYPERLINK("#'NT indir.'!A1","Izvještaj o novčanom toku (indirektna metoda)") -> Izvještaj o novčanom toku (indirektna metoda)
C32: =HYPERLINK("#MFIN!A1","Podaci za Ministarstvo financija") -> Podaci za Ministarstvo financija
C34: =HYPERLINK("#'Sektorski pokazatelji'!A1","Ključni sektorski pokazatelji ") -> Ključni sektorski pokazatelji

Sheet Naslovna (hidden)
B1: 6
B2: Prilog 9.2.2 | I2: Godišnji financijski plan poslovanja
B3: Ministarstvo državne imovine
B8: Godišnji financijski plan poslovanja
C12: ="za "&LEFT(Podloga!B8,4)&". godinu" -> za 2026. godinu
C16: =HYPERLINK("#Uvod!A1","Uvod") -> Uvod
C18: =HYPERLINK("#Sadržaj!A1","Sadržaj") -> Sadržaj
C20: =HYPERLINK("#Podloga!$A$1","Podloga za izradu plana") -> Podloga za izradu plana
C22: =HYPERLINK("#Bilanca!A1","Izvještaj o financijskom položaju ") -> Izvještaj o financijskom položaju
C24: =HYPERLINK("#RDG!A1","Račun dobiti i gubitka ") -> Račun dobiti i gubitka
C26: =HYPERLINK("#'NT dir.'!A1","Izvještaj o novčanom toku (direktna metoda)") -> Izvještaj o novčanom toku (direktna metoda)
C28: =HYPERLINK("#'NT indir.'!A1","Izvještaj o novčanom toku (indirektna metoda)") -> Izvještaj o novčanom toku (indirektna metoda)
C30: =HYPERLINK("#MFIN!A1","Podaci za Ministarstvo financija") -> Podaci za Ministarstvo financija
C32: =HYPERLINK("#Dashboard!A1","Dashboard") -> Dashboard
C34: =HYPERLINK("#DuPont!A1","DuPont analiza") -> DuPont analiza
C36: =HYPERLINK("#'Altman Integral (Basic)'!A1","Altman Integral (Basic)") -> Altman Integral (Basic)
C38: =HYPERLINK("#'Altman Integral (A)'!A1","Altman Integral (A model)") -> Altman Integral (A model)
C40: =HYPERLINK("#'Altman Integral (B)'!A1","Altman Integral (B model)") -> Altman Integral (B model)
C42: =HYPERLINK("#'Zračne luke'!A1","Ključni sektorski pokazatelji ") -> Ključni sektorski pokazatelji

Sheet Uvod
A1: Prilog: Podloga za izradu godišnjeg financijskog plana poslovanja
A3: Sukladno važećim zakonskim i podzakonskim propisima sve pravne osobe na koje se odnosi Uputa za izradu i dostavu planova i izvještaja o poslovanju, dužne su dostavljati planove poslovanja Primateljima planova i izvještaja kako je definirano Uputom.
A5: Kao što je propisano u Uputi za izradu i dostavu planova i izvještaja o poslovanju, ovaj dokument sadrži propisanu formu većine potrebnih sastavnica plana poslovanja.
A7: Sve pravne osobe na koje se odnosi Uputa za izradu i dostavu planova i izvještaja o poslovanju obvezne su popuniti: Zelene Listove u Excel podlozi: Prvi List “Podloga” → Subjekti izvještavanja trebaju unijeti osnovne informacije o društvu, na primjer: ime društva, adresa, članovi Uprave, temeljni kapital, planirane investicije (kratki opis). Također, Subjekti izvještavanja trebaju odabrati metodu pripreme Izvještaja o novčanom toku (direktna ili indirektna), popuniti informacije o broju izdanih dionica, njihovoj vrijednosti te o prosječnom broju zaposlenika u promatranom razdoblju. Podloge za planske financijske izvještaje (Listovi: “Bilanca”, “RDG”, “NT dir.” ili “NT indir.") → Subjekti izvještavanja trebaju unijeti stvarne podatke. Napomena: Podloge za planske izvještaje pripremljene su u skladu s standardnim formatima za financijsko izvještavanje u Republici Hrvatskoj (kako je utvrđeno Zakonom). Specijalni List za Ministarstvo financija → Subjekti izvještavanja trebaju unijeti specifične podatke koji su traženi od strane Ministarstva financija poput: iznosa državnih subvencija, investicija, iznosa isplaćenih dividendi itd. Specifične sektorske pokazatelje (narančasti Listovi) → navedeni Listovi uključuju operativne, financijske, tržišne i razvojne pokazatelje. Subjekti izvještavanja trebaju popuniti pokazatelje za industriju u kojoj posluju.
A12: Objašnjenje boja Listova:
B14: Listovi s osnovnim informacijama i uputama
B15: Listovi s financijskim izvještajima (potrebno unijeti podatke)
B16: Listovi s osnovnim pokazateljima o poslovanju (pokazatelji su dostupni nakon što su ispunjeni Listovi s podacima iz financijskih izvještaja)
B17: Listovi s specifičnim sektorskim pokazateljima

Sheet Sadržaj (hidden)
A1: Sadržaj
A2: Podloga za izradu plana | B2: =HYPERLINK("#Podloga!A1","Podloga za izradu plana") -> Podloga za izradu plana
A3: Izvještaj o financijskom položaju | B3: =HYPERLINK("#Bilanca!A1","Bilanca") -> Bilanca
A4: Račun dobiti i gubitka | B4: =HYPERLINK("#RDG!A1","RDG") -> RDG
A5: Izvještaj o novčanom toku (direktna metoda) | B5: =HYPERLINK("#'NT dir.'!A1","NT dir.") -> NT dir.
A6: Izvještaj o novčanom toku (indirektna metoda) | B6: =HYPERLINK("#'NT indir.'!A1","NT indir.") -> NT indir.
A7: Podaci za Ministarstvo financija | B7: =HYPERLINK("#MFIN!A1","MFIN") -> MFIN
A8: Dashboard | B8: =HYPERLINK("#Dashboard!A1","Dashboard") -> Dashboard
A9: DuPont | B9: =HYPERLINK("#DuPont!A1","DuPont") -> DuPont
A10: Altman Integral
A11: • Za proizvodna trgovačka društva koja kotiraju na burzi (Basic model) | B11: =HYPERLINK("#'Altman Integral (Basic)'!A1","Altman - Basic") -> Altman - Basic
A12: • Za trgovačka društva koja ne kotiraju na burzi (A model) | B12: =HYPERLINK("#'Altman Integral (A)'!A1","Altman - A") -> Altman - A
A13: • Za neproizvodna trgovačka društva koja kotiraju na burzi (B model) | B13: =HYPERLINK("#'Altman Integral (B)'!A1","Altman - B") -> Altman - B
A14: Sektorski ključni pokazatelji poslovanja

Sheet _TM_Podloga (hidden)
A1: Left | B1: Top | C1: Right | D1: Bottom | E1: Ref
A2: 1 | B2: 19 | C2: 9 | D2: 22 | E2: $A$19:$I$22
A3: 1 | B3: 1 | C3: 9 | D3: 10 | E3: $A$1:$I$10
A4: 1 | B4: 11 | C4: 9 | D4: 17 | E4: $A$11:$I$17

Sheet _TM_Bilanca (hidden)
A1: Left | B1: Top | C1: Right | D1: Bottom | E1: Ref
A2: 3 | B2: 105 | C2: 5 | D2: 105 | E2: $C$105:$E$105

Sheet Podloga
A1: Informacije o trgovačkom društvu
A2: Naziv društva: | B2: Zračna luka Osijek d.o.o.
A3: Adresa društva: | B3: Klisa, Vukovarska 67, Osijek
A4: Temeljni kapital (HRK): | B4: 3.478.000 eura
A5: Plan je konsolidiran: | B5: Ne
A6: Plan je odobren / od nadležnog tijela / datum: | B6: Ne | C6: Skupština društva | E6: =IF(B6="DA", "< Upisati datum", "") -> 
A7: Primjena računovodstvenih standarda: | B7: MSFI
A8: Sastavlja se za godinu: | B8: 2026
A9: Veličina subjekta: | B9: Mali
A10: Osnovna djelatnost društva: | B10: Uslužne djelatnosti u svezi sa zračnim prijevozom.
A11: Pravni oblik: | B11: d.o.o.
A12: OIB: | B12: 48188420009
A13: Da li je društvo u procesu restrukturiranja: | B13: Ne | C13: =IF(B13="DA","Potrebno postupiti prema točki 6.3.1. Upute","") -> 
A14: Primjena Kodeksa korporativnog upravljanja trgovačkim društvima | B14: DA
A15: Compliance officer (funkcija usklađenosti) | B15: DA
A16: Temeljni akt (datum zadnje promjene): | B16: 2017-11-22
A17: Datum zadnje održane skupštine: | B17: 2025-10-31 | C17: =IF((B17>0),"Molimo dostaviti zapisnike.","") -> Molimo dostaviti zapisnike.
A18: Opis strateških i financijskih ciljeva / planiranog poslovanja: | B18: Povećanje broja destinacija, razvoj robnog (cargo) prometa i investicije u aerodromsku infrastrukturu. Planiran je pozitivan financijski rezultat za sve tri godine razdoblja.
A19: Korištena metoda kod Izvještaja o novčanom toku: | B19: Indirektna
A20: Datum ispunjavanja plana: | B20: 2025-12-19
A21: Razrada godišnjeg plana poslovanja trgovačkog društva
A22: Planirane investicije za razdoblje: | B22: 2000000 eur | C22: Financiranje rekonstrukcije putničke zgrade, financiranje studije izvodljivosti, idejnog rješenja i dijela projektno-tehničke dokumentacije za projekt Rekonstrukcije i proširenja Zračne luke Osijek.
A23: Izvor sredstava za investicije (iznos - izvor): | B23: MMPI - kapitalna ulaganja prema Planu nabave zaštitne i sigurnosne opreme i izgradnje infrastrukture
A24: Sudski sporovi sa značajnim utjecajem na poslovni rezultat:
A25: Planirana bespovratna sredstva iz EU (naziv projekta / izvor-fond / iznos u kn):
A26: Planirana državna jamstva: | B26: 2256288 | D26: =IF(B26>0, "Molimo opisati u opisnom dijelu.","") -> Molimo opisati u opisnom dijelu.
A27: Planirane subvencije (iznos / opis): | B27: 1440000 | D27: -
A28: Planirane donacije (iznos / opis): | B28: 0 | D28: -
A30: Tržišni pokazatelji dionica*
B31: =LEFT(B8,4)-2&". ostvareno" -> 2024. ostvareno | C31: =LEFT(B8,4)-1&". procijenjeno" -> 2025. procijenjeno
A32: Broj izdanih dionica: | B32: - | C32: -
A33: Tržišna vrijednost dionice: | B33: - | C33: -
A36: Vremenska razdoblja: | B36: =LEFT(B8,4)-2&". planirano" -> 2024. planirano | C36: =LEFT(B8,4)-2&". ostvareno" -> 2024. ostvareno | D36: =LEFT(B8,4)-1&". planirano" -> 2025. planirano | E36: =LEFT(B8,4)-1&". procijenjeno" -> 2025. procijenjeno | F36: =LEFT(B8,4)&". planirano" -> 2026. planirano
A37: Prosječan broj zaposlenih za izvještajno razdoblje: | B37: 55 | C37: 58 | D37: 58 | E37: 58 | F37: 59
A38: Investicije za razdoblje (HRK 000):
A41: * Tržišni pokazatelji dionica ispunjavaju se za zadnji dan u razdoblju

Sheet Tijela društva
B1: Tijela društva
B3: Datum ispunjavanja plana: | G3: =Podloga!B20 -> 2025-12-19
B4: Promjene u Tijelima društva od posljednjeg plana / izvještaja: | G4: DA | I4: =IF(G4="DA","Molimo dostaviti Zapisnike MPGI-u - ako već nisu dostavljeni","") -> Molimo dostaviti Zapisnike MPGI-u - ako već nisu dostavljeni
B6: Uprava
B7: R.Br. | C7: Ime | D7: Prezime | E7: Funkcija | G7: Spol | H7: Početak mandata | I7: Kraj mandata | J7: Kontakt e-mail | K7: Broj telefona | L7: Broj mobitela
B8: 1 | C8: Tihomir | D8: Pejin | E8: Direktor | G8: M | H8: 01.11.2025. | I8: 30.04.2026. | J8: tihomir.pejin@osijek-airport.hr | K8: 031 514 405
B9: 2
B10: 3
B11: 4
B12: 5
B14: Nadzorni odbor*
B15: R.Br. | C15: Ime | D15: Prezime | E15: Funkcija | F15: Predstavnik | G15: Spol | H15: Početak mandata | I15: Kraj mandata | J15: Kontakt e-mail | K15: Broj telefona | L15: Broj mobitela
B16: 1 | C16: Krešimir | D16: Trtanj | E16: Član | F16: Grad Osijek | G16: M | H16: 06.07.2022. | I16: 06.07.2026.
B17: 2 | C17: Tunjica | D17: Petrašević | E17: Član | F17: Osječko - baranjska županija | G17: Ž | H17: 24.09.2025. | I17: 24.09.2029.
B18: 3 | C18: Jerko | D18: Glavaš | E18: Predsjednik | F18: RH | G18: M | H18: 13.12.2023. | I18: 13.12.2027.
B19: 4 | C19: Zlatko | D19: Franjić | E19: Predstavnik radnika | F19: predst. radnika | G19: M | H19: 07.08.2024. | I19: 7.8.2028.
B20: 5
B22: Revizijski odbor
B23: R.Br. | C23: Ime | D23: Prezime | E23: Funkcija | G23: Spol | H23: Početak mandata | I23: Kraj mandata | J23: Kontakt e-mail | K23: Broj telefona | L23: Broj mobitela
B24: 1 | C24: Domagoj | D24: Karačić | E24: Predsjednik | G24: M | H24: 2024-06-20 | I24: 20.06.2028. | K24: -
B25: 2 | C25: Milena | D25: Kordi | E25: Član | G25: Ž | H25: 11.11.2024. | I25: 11.11.2028. | J25: milena.kordi@osijek.hr | K25: 031 229 190 | L25: 098 486 379
B26: 3 | C26: Suzana | D26: Tretinjak | E26: Član | G26: Ž | H26: 11.11.2024. | I26: 11.11.2028. | J26: suzana.tretinjak@obz.hr | K26: 031 221 716 | L26: 099 659 8130
B27: 4
B28: 5
B31: Osobe ovlaštene za komunikaciju s Primateljima
B32: R.Br. | C32: Ime | D32: Prezime | E32: Funkcija | J32: Kontakt e-mail | K32: Broj telefona | L32: Broj mobitela
B33: 1 | C33: Tihomir | D33: Pejin | E33: Direktor | G33: M | H33: 01.11.2025. | I33: 30.04.2026. | J33: tihomir.pejin@osijek-airport.hr | K33: 031 514 405
B34: 2 | C34: Katarina | D34: Jelečević | E34: Rukovoditelj finncija i računovodstva | G34: Ž | H34: 01.06.2015. | I34: - | J34: katarina.jelecevic@osijek-airport.hr | K34: 031 514 440
B35: 3
B36: 4
B37: 5
B39: * Ako u društvu postoje pomoćna tijela nadzornog odbora (odbori. komisije, povjerenstva i sl.) potrebno ih je obrazložiti u opisnom dijelu (obavezno navesti članove).

Sheet Vl. struktura
A1: Vlasnička struktura na dan: | D1: =IFERROR(Podloga!B20,0) -> 2025-12-19
A3: Promjene u Vlasničkoj strukturi društva od posljednjeg izvještaja / plana: | F3: NE
A5: Društvo s ograničenom odgovornošću
A6: R.Br. | B6: Naziv društva | C6: Poštanski broj sjedišta | D6: Sjedište | E6: OIB društva | F6: Temeljni kapital (kn) | G6: Nominalna vrijednost imatelja RH (kn) | H6: % vlas. RH | I6: Nominalna vrijednost ost. drž. Imatelja (kn) | J6: % vlas. ostalih drž. Imatelja | K6: Teret | L6: Sudski spor
A7: 1. | B7: =IF(ISBLANK(Podloga!B2),"",Podloga!B2) -> Zračna luka Osijek d.o.o. | C7: 31207 | D7: Klisa | E7: 48188420009 | F7: 3478000 | G7: 1912900 | H7: 55 | I7: 1565100 | J7: 45 | K7: nema | L7: nema
A11: Dioničko društvo
A12: R. Br. | B12: Naziv društva | C12: Poštanski broj sjedišta | D12: Sjedište | E12: Oznaka VP | F12: OIB društva | G12: Temeljni kapital (kn) | H12: Izdana količina dionica | I12: Nominalna vrijednost dionice (kn) | J12: broj dionica čiji je imatelj RH | K12: % vlas. RH | L12: broj dionica ost. drž. imatelja | M12: % vlas.ost. drž. Imatelja | N12: Teret | O12: Sudski spor
B13: =IF(ISBLANK(Podloga!B2),"",Podloga!B2) -> Zračna luka Osijek d.o.o.
A18: NAPOMENA
A19: * popunjava se tablica ovisno o pravnom obliku pravne osobe od posebnog interesa

Sheet Bilanca
A1: IZVJEŠTAJ O FINANCIJSKOM POLOŽAJU SA STANJEM NA 31.12. | C1: =IF(C68=C131,Podloga!B36&" bilancira",Podloga!B36&" ne bilancira") -> 2024. planirano ne bilancira | D1: =IF(D68=D131,Podloga!C36&" bilancira",Podloga!C36&" ne bilancira") -> 2024. ostvareno ne bilancira | E1: =IF(E68=E131,Podloga!D36&" bilancira",Podloga!D36&" ne bilancira") -> 2025. planirano ne bilancira | F1: =IF(F68=F131,Podloga!E36&" bilancira",Podloga!E36&" ne bilancira") -> 2025. procijenjeno ne bilancira | G1: =IF(G68=G131,Podloga!F36&" bilancira",Podloga!F36&" ne bilancira") -> 2026. planirano ne bilancira
A2: Obveznik: | B2: =IF(ISBLANK(Podloga!B2),"",Podloga!B2) -> Zračna luka Osijek d.o.o. | C2: I Z N O S (u 000 kn) | H2: ="Indeks "& RIGHT(LEFT(Podloga!C36,7),5) &" / "& RIGHT(LEFT(Podloga!B36,8),6) -> Indeks 24. o / 24. pl | I2: ="Indeks "& RIGHT(LEFT(Podloga!E36,8),6) &" / "& RIGHT(LEFT(Podloga!D36,8),6) -> Indeks 25. pr / 25. pl | J2: ="Indeks "& RIGHT(LEFT(Podloga!E36,8),6) &" / "& RIGHT(LEFT(Podloga!C36,7),5) -> Indeks 25. pr / 24. o | K2: ="Indeks "& RIGHT(LEFT(Podloga!D36,8),6) &" / "& RIGHT(LEFT(Podloga!B36,8),6) -> Indeks 25. pl / 24. pl | L2: ="Indeks "& RIGHT(LEFT(Podloga!F36,8),6) &" / "& RIGHT(LEFT(Podloga!D36,8),6) -> Indeks 26. pl / 25. pl | M2: ="Indeks "& RIGHT(LEFT(Podloga!F36,8),6) &" / "& RIGHT(LEFT(Podloga!E36,8),6) -> Indeks 26. pl / 25. pr
B3: A K T I V A | C3: =Podloga!B36 -> 2024. planirano | D3: =Podloga!C36 -> 2024. ostvareno | E3: =Podloga!D36 -> 2025. planirano | F3: =Podloga!E36 -> 2025. procijenjeno | G3: =Podloga!F36 -> 2026. planirano
A4: 1. | B4: POTRAŽIVANJA ZA UPISANI A NEUPLAĆENI KAPITAL | H4: =IFERROR(D4/C4*100,) -> 0 | I4: =IFERROR(F4/E4*100,) -> 0 | J4: =IFERROR(F4/D4*100,) -> 0 | K4: =IFERROR(E4/C4*100,) -> 0 | L4: =IFERROR(G4/E4*100,) -> 0 | M4: =IFERROR(G4/F4*100,) -> 0
A5: 2. | B5: DUGOTRAJNA IMOVINA | C5: 19752.51 | D5: =D6+D13+D23+D34+D39 -> 13933.87237 | E5: 26432.344 | F5: =F6+F13+F23+F34+F39 -> 15781.77266 | G5: 24023.211 | H5: =IFERROR(D5/C5*100,) -> 70.54228739 | I5: =IFERROR(F5/E5*100,) -> 59.70629264 | J5: =IFERROR(F5/D5*100,) -> 113.2619292 | K5: =IFERROR(E5/C5*100,) -> 133.8176465 | L5: =IFERROR(G5/E5*100,) -> 90.88566266 | M5: 152.2212461
A6: 2.1. | B6: Nematerijalna imovina | C6: 195.3 | D6: =SUM(D7:D12) -> 161.966 | E6: 205.789 | F6: =SUM(F7:F12) -> 117.6 | G6: 159 | H6: 82.93189964 | I6: 57.14591159 | J6: 72.60783127 | K6: 105.3707117 | L6: 77.26360495 | M6: 135.2040816
A7: 2.1.1. | B7: Izdaci za razvoj | H7: 0 | I7: 0 | J7: 0 | K7: 0 | L7: 0 | M7: 0
A8: 2.1.2. | B8: Koncesije, patenti, licencencije, robne i uslužne marke, softver i ostala prava | C8: 195.3 | D8: 161.966 | E8: 205.789 | F8: 117.6 | G8: 159 | H8: 82.93189964 | I8: 57.14591159 | J8: 72.60783127 | K8: 105.3707117 | L8: 77.26360495 | M8: 135.2040816
A9: 2.1.3. | B9: Goodwill | H9: 0 | I9: 0 | J9: 0 | K9: 0 | L9: 0 | M9: 0
A10: 2.1.4. | B10: Predujmovi za nabavu nematerijalne imovine | H10: 0 | I10: 0 | J10: 0 | K10: 0 | L10: 0 | M10: 0
A11: 2.1.5. | B11: Nematerijalna imovina u pripremi | H11: 0 | I11: 0 | J11: 0 | K11: 0 | L11: 0 | M11: 0
A12: 2.1.6. | B12: Ostala nematerijalna imovina | H12: 0 | I12: 0 | J12: 0 | K12: 0 | L12: 0 | M12: 0
A13: 2.2. | B13: Materijalna imovina | C13: 19542.2 | D13: =SUM(D14:D22) -> 13757.81541 | E13: 26212.465 | F13: =SUM(F14:F22) -> 15650.08266 | G13: 23856.756 | H13: 70.40054554 | I13: 59.7047346 | J13: 113.7541259 | K13: 134.1326207 | L13: 91.01301995 | M13: 152.4385303
A14: 2.2.1. | B14: Zemljište | C14: 2033.98 | D14: 2033.67541 | E14: 2033.68 | F14: 2033.67541 | G14: 2033.856 | H14: =IFERROR(D14/C14*100,) -> 99.98502493 | I14: =IFERROR(F14/E14*100,) -> 99.9997743 | J14: 100 | K14: =IFERROR(E14/C14*100,) -> 99.98525059 | L14: =IFERROR(G14/E14*100,) -> 100.0086543 | M14: 100.00888
A15: 2.2.2. | B15: Građevinski objekti | C15: 16073.23 | D15: 8177.749 | E15: 22292.375 | F15: 8160.55 | G15: 16852.773 | H15: 50.87806869 | I15: 36.60691156 | J15: 99.7896854 | K15: 138.6925652 | L15: 75.59882247 | M15: 206.5151614
A16: 2.2.3. | B16: Postrojenja i oprema | C16: 721.25 | D16: 653.63 | E16: 721.15 | F16: 596.093 | G16: 2067.168 | H16: 90.62461005 | I16: 82.65867018 | J16: 91.19731346 | K16: 99.98613518 | L16: 286.6488248 | M16: 346.7861559
A17: 2.2.4. | B17: Alati, pogonski inventar i transportna imovina | C17: 465.24 | D17: 364.871 | E17: 498.52 | F17: 364.87163 | G17: 1539.451 | H17: 78.42640358 | I17: 73.19097127 | J17: 100.0001727 | K17: 107.1532972 | L17: 308.8042606 | M17: 421.9157845
A18: 2.2.5. | B18: Biološka imovina | H18: 0 | I18: 0 | J18: 0 | K18: 0 | L18: 0 | M18: 0
A19: 2.2.6. | B19: Predujmovi za materijalnu imovinu | D19: 796.417 | F19: 581.65 | H19: 0 | I19: 0 | J19: 73.03334811 | K19: 0 | L19: 0 | M19: 0
A20: 2.2.7. | B20: Materijalna imovina u pripremi | C20: 231.25 | D20: 1714.142 | E20: 629.52 | F20: 3895.10962 | G20: 1262 | H20: 741.2505946 | I20: 618.7427913 | J20: 227.2337776 | K20: 272.2248649 | L20: 200.4701995 | M20: 32.39960163
A21: 2.2.8. | B21: Ostala materijalna imovina | C21: 17.25 | D21: 17.331 | E21: 37.22 | F21: 18.133 | G21: 101.508 | H21: 100.4695652 | I21: 48.71843095 | J21: 104.627546 | K21: 215.7681159 | L21: 272.7243418 | M21: 559.7970551
A22: 2.2.9. | B22: Ulaganja u nekretnine | H22: 0 | I22: 0 | J22: 0 | K22: 0 | L22: 0 | M22: 0
A23: 2.3. | B23: Dugotrajna financijska imovina | C23: 15.01 | D23: =SUM(D24:D33) -> 14.09096 | E23: 14.09 | F23: =SUM(F24:F33) -> 14.09 | G23: 7.455 | H23: 93.87714857 | I23: 100 | J23: 99.99318712 | K23: 93.87075283 | L23: 52.90986515 | M23: 52.90986515
A24: 2.3.1. | B24: Ulaganja u udjele (dionice) poduzetnika unutar grupe | H24: 0 | I24: 0 | J24: 0 | K24: 0 | L24: 0 | M24: 0
A25: 2.3.2. | B25: Ulaganja u ostale vrijednosne papire poduzetnika unutar grupe | H25: 0 | I25: 0 | J25: 0 | K25: 0 | L25: 0 | M25: 0
A26: 2.3.3. | B26: Dani zajmovi, depoziti i slično poduzetnicima unutar grupe | H26: 0 | I26: 0 | J26: 0 | K26: 0 | L26: 0 | M26: 0
A27: 2.3.4. | B27: Ulaganja u udjele (dionice) društava povezanih sudjelujućim interesom | H27: 0 | I27: 0 | J27: 0 | K27: 0 | L27: 0 | M27: 0
A28: 2.3.5. | B28: Ulaganja u ostale vrijednosne papire društava povezanih sudjelujućim interesom | C28: 15.01 | D28: 9.21096 | E28: 9.21 | F28: 9.21 | G28: 2.575 | H28: 61.36548967 | I28: 100 | J28: 99.98957763 | K28: 61.35909394 | L28: 27.9587405 | M28: 27.9587405
A29: 2.3.6. | B29: Dani zajmovi, depoziti i slično društvima povezanim sudjelujućim interesom | H29: 0 | I29: 0 | J29: 0 | K29: 0 | L29: 0 | M29: 0
A30: 2.3.7. | B30: Ulaganja u vrijednosne papire | H30: 0 | I30: 0 | J30: 0 | K30: 0 | L30: 0 | M30: 0
A31: 2.3.8. | B31: Dani zajmovi, depoziti i slično | D31: 4.88 | E31: 4.88 | F31: 4.88 | G31: 4.88 | H31: 0 | I31: 100 | J31: 100 | K31: 0 | L31: 100 | M31: 100
A32: 2.3.9. | B32: Ostala ulaganja koja se obračunavaju metodom udjela | H32: 0 | I32: 0 | J32: 0 | K32: 0 | L32: 0 | M32: 0
A33: 2.3.10. | B33: Ostala dugotrajna financijska imovina | H33: 0 | I33: 0 | J33: 0 | K33: 0 | L33: 0 | M33: 0
A34: 2.4. | B34: Potraživanja | C34: 0 | D34: =SUM(D35:D38) -> 0 | E34: 0 | F34: =SUM(F35:F38) -> 0 | G34: 0 | H34: 0 | I34: 0 | J34: 0 | K34: 0 | L34: 0 | M34: 0
A35: 2.4.1. | B35: Potraživanja od poduzetnika unutar grupe | H35: 0 | I35: 0 | J35: 0 | K35: 0 | L35: 0 | M35: 0
A36: 2.4.2. | B36: Potraživanja od društava povezanih sudjelujućim interesom | H36: 0 | I36: 0 | J36: 0 | K36: 0 | L36: 0 | M36: 0
A37: 2.4.3. | B37: Potraživanja od kupaca | H37: 0 | I37: 0 | J37: 0 | K37: 0 | L37: =IFERROR(G37/E37*100,) -> 0 | M37: =IFERROR(G37/F37*100,) -> 0
A38: 2.4.4. | B38: Ostala potraživanja | H38: 0 | I38: 0 | J38: 0 | K38: 0 | L38: 0 | M38: 0
A39: 2.5. | B39: Odgođena porezna imovina | H39: 0 | I39: 0 | J39: 0 | K39: 0 | L39: 0 | M39: 0
A40: 3. | B40: KRATKOTRAJNA IMOVINA | C40: 657.328 | D40: =D41+D49+D56+D66 -> 707.76 | E40: 510.067 | F40: =F41+F49+F56+F66 -> 1029.736 | G40: 808.57 | H40: 107.6722732 | I40: 201.8824978 | J40: 145.4922573 | K40: 77.59702918 | L40: 158.5223118 | M40: 78.52206779
A41: 3.1. | B41: Zalihe | C41: 36.499 | D41: =SUM(D42:D48) -> 33.483 | E41: 49.552 | F41: =SUM(F42:F48) -> 27.756 | G41: 95.3 | H41: 91.73675991 | I41: 56.0138844 | J41: 82.89579787 | K41: 135.7626236 | L41: 192.323216 | M41: 343.3491858
A42: 3.1.1. | B42: Sirovine i materijal | C42: 30.789 | D42: 22.377 | E42: 41.231 | F42: 17.173 | G42: 40.3 | H42: 72.67855403 | I42: 41.65069972 | J42: 76.74397819 | K42: 133.9147098 | L42: 97.74199025 | M42: 234.670704
A43: 3.1.2. | B43: Proizvodnja u tijeku | H43: 0 | I43: 0 | J43: 0 | K43: 0 | L43: 0 | M43: 0
A44: 3.1.3. | B44: Gotovi proizvodi | H44: 0 | I44: 0 | J44: 0 | K44: 0 | L44: 0 | M44: 0
A45: 3.1.4. | B45: Trgovačka roba | C45: 5.71 | D45: 11.106 | E45: 8.321 | F45: 10.583 | G45: 55 | H45: 194.5008757 | I45: 127.1842327 | J45: 95.29083378 | K45: 145.7267951 | L45: 660.9782478 | M45: 519.7014079
A46: 3.1.5. | B46: Predujmovi za zalihe | H46: 0 | I46: 0 | J46: 0 | K46: 0 | L46: 0 | M46: 0
A47: 3.1.6. | B47: Dugotrajna imovina namijenjena prodaji | H47: 0 | I47: 0 | J47: 0 | K47: 0 | L47: 0 | M47: 0
A48: 3.1.7. | B48: Biološka imovina | H48: 0 | I48: 0 | J48: 0 | K48: 0 | L48: 0 | M48: 0
A49: 3.2. | B49: Potraživanja | C49: 268.828 | D49: =SUM(D50:D54) -> 314.734 | E49: 230.515 | F49: =SUM(F50:F54) -> 379.011 | G49: =SUM(G50:G54) -> 138.27 | H49: 117.0763462 | I49: 164.4192352 | J49: 120.4226426 | K49: 85.74813635 | L49: 59.98308136 | M49: 36.48179077
A50: 3.2.1. | B50: Potraživanja od poduzetnika unutar grupe | C50: 123.764 | H50: 0 | I50: 0 | J50: 0 | K50: 0 | L50: 0 | M50: 0
A51: 3.2.2. | B51: Potraživanja od društava povezanih sudjelujućim interesom | H51: =IFERROR(#REF!/#REF!*100,) -> 0 | I51: =IFERROR(#REF!/#REF!*100,) -> 0 | J51: =IFERROR(#REF!/#REF!*100,) -> 0 | K51: =IFERROR(#REF!/#REF!*100,) -> 0 | L51: =IFERROR(#REF!/#REF!*100,) -> 0 | M51: =IFERROR(#REF!/#REF!*100,) -> 0
A52: 3.2.3. | B52: Potraživanja od kupaca | C52: 103.524 | D52: 257.518 | E52: 175.515 | F52: 358.311 | G52: 110 | H52: =IFERROR(D51/C51*100,) -> 0 | I52: =IFERROR(F51/E51*100,) -> 0 | J52: =IFERROR(F51/D51*100,) -> 0 | K52: =IFERROR(E51/C51*100,) -> 0 | L52: =IFERROR(G51/E51*100,) -> 0 | M52: =IFERROR(G51/F51*100,) -> 0
A53: 3.2.4. | B53: Potraživanja od zaposlenika i članova poduzetnika | H53: =IFERROR(D52/C52*100,) -> 248.7519802 | I53: =IFERROR(F52/E52*100,) -> 204.1483634 | J53: =IFERROR(F52/D52*100,) -> 139.1401766 | K53: =IFERROR(E52/C52*100,) -> 169.5403964 | L53: =IFERROR(G52/E52*100,) -> 62.67270604 | M53: =IFERROR(G52/F52*100,) -> 30.69958779
A54: 3.2.5. | B54: Potraživanja od države i drugih institucija | C54: 41.54 | D54: 57.216 | E54: 55 | F54: 20.7 | G54: 28.27 | H54: =IFERROR(D53/C53*100,) -> 0 | I54: =IFERROR(F53/E53*100,) -> 0 | J54: =IFERROR(F53/D53*100,) -> 0 | K54: =IFERROR(E53/C53*100,) -> 0 | L54: =IFERROR(G54/E53*100,) -> 0 | M54: =IFERROR(G54/F53*100,) -> 0
A55: 3.2.6. | B55: Ostala potraživanja | H55: =IFERROR(#REF!/#REF!*100,) -> 0 | I55: =IFERROR(#REF!/#REF!*100,) -> 0 | J55: =IFERROR(#REF!/#REF!*100,) -> 0 | K55: =IFERROR(#REF!/#REF!*100,) -> 0 | L55: =IFERROR(#REF!/#REF!*100,) -> 0 | M55: =IFERROR(#REF!/#REF!*100,) -> 0
A56: 3.3. | B56: Kratkotrajna financijska imovina | C56: =SUM(C57:C65) -> 0 | D56: =SUM(D57:D65) -> 0 | E56: 0 | F56: =SUM(F57:F65) -> 0 | G56: 0 | H56: 0 | I56: 0 | J56: 0 | K56: 0 | L56: 0 | M56: 0
A57: 3.3.1. | B57: Ulaganja u udjele (dionice) poduzetnika unutar grupe | H57: 0 | I57: 0 | J57: 0 | K57: 0 | L57: 0 | M57: 0
A58: 3.3.2. | B58: Ulaganja u ostale vrijednosne papire poduzetnika unutar grupe | H58: 0 | I58: 0 | J58: 0 | K58: 0 | L58: 0 | M58: 0
A59: 3.3.3. | B59: Dani zajmovi, depoziti i slično poduzetnicima unutar grupe | H59: 0 | I59: 0 | J59: 0 | K59: 0 | L59: 0 | M59: 0
A60: 3.3.4. | B60: Ulaganja u udjele (dionice) društava povezanih sudjelujućim interesom | H60: 0 | I60: 0 | J60: 0 | K60: 0 | L60: 0 | M60: 0
A61: 3.3.5. | B61: Ulaganja u ostale vrijednosne papire društava povezanih sudjelujućim interesom | H61: 0 | I61: 0 | J61: 0 | K61: 0 | L61: 0 | M61: 0
A62: 3.3.6. | B62: Dani zajmovi, depoziti i slično društvima povezanim sudjelujućim interesom | H62: 0 | I62: 0 | J62: 0 | K62: 0 | L62: 0 | M62: 0
A63: 3.3.7. | B63: Ulaganja u vrijednosne papire | H63: 0 | I63: 0 | J63: 0 | K63: 0 | L63: 0 | M63: 0
A64: 3.3.8. | B64: Dani zajmovi, depoziti i slično | H64: 0 | I64: 0 | J64: 0 | K64: 0 | L64: 0 | M64: 0
A65: 3.3.9. | B65: Ostala financijska imovina | H65: 0 | I65: 0 | J65: 0 | K65: 0 | L65: 0 | M65: 0
A66: 3.4. | B66: Novac u banci i blagajni | C66: 352.001 | D66: 359.543 | E66: 230 | F66: 622.969 | G66: 575 | H66: 102.1426075 | I66: 270.856087 | J66: 173.2668971 | K66: 65.34072346 | L66: 250 | M66: 92.29993788
A67: 4. | B67: PLAĆENI TROŠKOVI BUDUĆEG RAZDOBLJA I OBRAČUNATI PRIHODI | D67: 26.109 | E67: 106.75 | F67: 123.336 | G67: 104.845 | H67: 0 | I67: 115.5372365 | J67: 472.3888314 | K67: 0 | L67: 98.21545667 | M67: 85.00762146
A68: 5. | B68: UKUPNA AKTIVA | C68: 20409.838 | D68: =D4+D5+D40+D67 -> 14667.74137 | E68: 27049.161 | F68: =F4+F5+F40+F67 -> 16934.84466 | G68: 24936.626 | H68: 71.86603524 | I68: 62.60765227 | J68: 115.4563899 | K68: 132.5300132 | L68: 92.19001654 | M68: 147.250397
A69: 6. | B69: IZVANBILANČNI ZAPISI | H69: =IFERROR(D69/C69*100,) -> 0 | I69: =IFERROR(F69/E69*100,) -> 0 | J69: =IFERROR(F69/D69*100,) -> 0 | K69: =IFERROR(E69/C69*100,) -> 0 | L69: 0 | M69: 0
C73: I Z N O S (u 000 kn) | H73: ="Indeks "& RIGHT(LEFT(Podloga!C36,7),5) &" / "& RIGHT(LEFT(Podloga!B36,7),5) -> Indeks 24. o / 24. p | I73: ="Indeks "& RIGHT(LEFT(Podloga!E36,8),6) &" / "& RIGHT(LEFT(Podloga!D36,8),6) -> Indeks 25. pr / 25. pl | J73: ="Indeks "& RIGHT(LEFT(Podloga!E36,8),6) &" / "& RIGHT(LEFT(Podloga!C36,7),5) -> Indeks 25. pr / 24. o | K73: ="Indeks "& RIGHT(LEFT(Podloga!D36,8),6) &" / "& RIGHT(LEFT(Podloga!B36,8),6) -> Indeks 25. pl / 24. pl | L73: ="Indeks "& RIGHT(LEFT(Podloga!F36,8),6) &" / "& RIGHT(LEFT(Podloga!D36,8),6) -> Indeks 26. pl / 25. pl | M73: ="Indeks "& RIGHT(LEFT(Podloga!F36,8),6) &" / "& RIGHT(LEFT(Podloga!E36,8),6) -> Indeks 26. pl / 25. pr
B74: P A S I V A | C74: =Podloga!B36 -> 2024. planirano | D74: =Podloga!C36 -> 2024. ostvareno | E74: =Podloga!D36 -> 2025. planirano | F74: =Podloga!E36 -> 2025. procijenjeno | G74: =Podloga!F36 -> 2026. planirano
A75: 1. | B75: KAPITAL I REZERVE | C75: 909.625 | D75: =SUM(D76:D78,D84,D85,D89,D92,D95) -> 1150.224 | E75: 871.261 | F75: =SUM(F76:F78,F84,F85,F89,F92,F95) -> 1539.841 | G75: 1587.75 | H75: =IFERROR(D75/C75*100,) -> 126.4503504 | I75: =IFERROR(F75/E75*100,) -> 176.7370512 | J75: =IFERROR(F75/D75*100,) -> 133.8731412 | K75: =IFERROR(E75/C75*100,) -> 95.78243782 | L75: =IFERROR(G75/E75*100,) -> 182.2358627 | M75: =IFERROR(G75/F75*100,) -> 103.1112953
A76: 1.1. | B76: Temeljni (upisani) kapital | C76: 3478.4 | D76: 3478 | E76: 3478 | F76: 3478 | G76: 3478 | H76: =IFERROR(D76/C76*100,) -> 99.98850046 | I76: =IFERROR(F76/E76*100,) -> 100 | J76: =IFERROR(F76/D76*100,) -> 100 | K76: =IFERROR(E76/C76*100,) -> 99.98850046 | L76: =IFERROR(G76/E76*100,) -> 100 | M76: =IFERROR(G76/F76*100,) -> 100
A77: 1.2. | B77: Kapitalne rezerve | H77: 0 | I77: 0 | J77: 0 | K77: 0 | L77: 0 | M77: 0
A78: 1.3. | B78: Rezerve iz dobiti | C78: 0 | D78: =SUM(D79:D83) -> 0 | E78: 0 | F78: =SUM(F79:F83) -> 0 | G78: 0 | H78: 0 | I78: 0 | J78: 0 | K78: 0 | L78: 0 | M78: 0
A79: 1.3.1. | B79: Zakonske rezerve | H79: 0 | I79: 0 | J79: 0 | K79: 0 | L79: 0 | M79: 0
A80: 1.3.2. | B80: Rezerve za vlastite dionice | H80: 0 | I80: 0 | J80: 0 | K80: 0 | L80: 0 | M80: 0
A81: 1.3.3. | B81: Vlastite dionice i udjeli (odbitna stavka) | H81: 0 | I81: 0 | J81: 0 | K81: 0 | L81: 0 | M81: 0
A82: 1.3.4. | B82: Statutarne rezerve | H82: 0 | I82: 0 | J82: 0 | K82: 0 | L82: 0 | M82: 0
A83: 1.3.5. | B83: Ostale rezerve | H83: 0 | I83: 0 | J83: 0 | K83: 0 | L83: 0 | M83: 0
A84: 1.4. | B84: Revalorizacijske rezerve | H84: 0 | I84: 0 | J84: 0 | K84: 0 | L84: 0 | M84: 0
A85: 1.5. | B85: Rezerve fer vrijednosti | C85: 0 | D85: =SUM(D86:D88) -> 0 | E85: 0 | F85: =SUM(F86:F88) -> 0 | G85: 0 | H85: 0 | I85: 0 | J85: 0 | K85: 0 | L85: 0 | M85: 0
A86: 1.5.1. | B86: Fer vrijednost financijske imovine raspoložive za prodaju | H86: 0 | I86: 0 | J86: 0 | K86: 0 | L86: 0 | M86: 0
A87: 1.5.2. | B87: Učinkoviti dio zaštite novčanih tokova | H87: 0 | I87: 0 | J87: 0 | K87: 0 | L87: 0 | M87: 0
A88: 1.5.3. | B88: Učinkoviti dio zaštite neto ulaganja u inozemstvu | H88: 0 | I88: 0 | J88: 0 | K88: 0 | L88: 0 | M88: 0
A89: 1.6. | B89: Zadržana dobit ili preneseni gubitak | C89: -2573.795 | D89: =D90-ABS(D91) -> -2665.183 | E89: -2646.386 | F89: =F90-ABS(F91) -> -2327.776 | G89: -1938.159 | H89: 103.5507101 | I89: 87.96056206 | J89: 87.3401939 | K89: 102.8203878 | L89: 73.23795546 | M89: 83.26226407
A90: 1.6.1. | B90: Zadržana dobit | H90: 0 | I90: 0 | J90: 0 | K90: 0 | L90: 0 | M90: 0
A91: 1.6.2. | B91: Preneseni gubitak | C91: 2573.795 | D91: 2665.183 | E91: 2646.386 | F91: 2327.776 | G91: 1938.159 | H91: =IFERROR(D91/C91*100,) -> 103.5507101 | I91: =IFERROR(F91/E91*100,) -> 87.96056206 | J91: =IFERROR(F91/D91*100,) -> 87.3401939 | K91: =IFERROR(E91/C91*100,) -> 102.8203878 | L91: =IFERROR(G91/E91*100,) -> 73.23795546 | M91: 83.26226407
A92: 1.7. | B92: Dobit ili gubitak poslovne godine | C92: 5.02 | D92: =D93-ABS(D94) -> 337.407 | E92: 39.647 | F92: 389.617 | G92: 47.909 | H92: 6721.25498 | I92: 982.7149595 | J92: 115.4738935 | K92: 789.7808765 | L92: 120.8389033 | M92: 12.2964347
A93: 1.7.1. | B93: Dobit poslovne godine | C93: 5.02 | D93: 337.407 | E93: 39.647 | F93: 389.617 | G93: 47.909 | H93: 6721.25498 | I93: 982.7149595 | J93: 115.4738935 | K93: 789.7808765 | L93: 120.8389033 | M93: 12.2964347
A94: 1.7.2. | B94: Gubitak poslovne godine | H94: 0 | I94: 0 | J94: 0 | K94: 0 | L94: 0 | M94: 0
A95: 1.8. | B95: Manjinski (nekontrolirajući) interes | H95: 0 | I95: 0 | J95: 0 | K95: 0 | L95: 0 | M95: 0
A96: 2. | B96: REZERVIRANJA | C96: 0 | D96: =SUM(D97:D102) -> 21.65 | E96: 0 | F96: =SUM(F97:F102) -> 21.65 | G96: 0 | H96: 0 | I96: 0 | J96: 100 | K96: 0 | L96: 0 | M96: 0
A97: 2.1. | B97: Rezerviranja za mirovine, otpremnine i slične obveze | H97: 0 | I97: 0 | J97: 0 | K97: 0 | L97: 0 | M97: 0
A98: 2.2. | B98: Rezerviranja za porezne obveze | H98: 0 | I98: 0 | J98: 0 | K98: 0 | L98: 0 | M98: 0
A99: 2.3. | B99: Rezerviranja za započete sudske sporove | D99: 21.65 | F99: 21.65 | G99: 0 | H99: 0 | I99: 0 | J99: 100 | K99: 0 | L99: 0 | M99: 0
A100: 2.4. | B100: Rezerviranja za troškove obnavljanja prirodnih bogatstava | H100: 0 | I100: 0 | J100: 0 | K100: 0 | L100: 0 | M100: 0
A101: 2.5. | B101: Rezerviranja za troškove u jamstvenim rokovima | H101: 0 | I101: 0 | J101: 0 | K101: 0 | L101: 0 | M101: 0
A102: 2.6. | B102: Druga rezerviranja | C102: 0 | E102: 0 | H102: 0 | I102: 0 | J102: 0 | K102: 0 | L102: 0 | M102: 0
A103: 3. | B103: DUGOROČNE OBVEZE | C103: 2799.417 | D103: =SUM(D104:D114) -> 2722.38581 | E103: 2743.27 | F103: =SUM(F104:F114) -> 2931.57 | G103: 2978.675 | H103: 97.24831313 | I103: 106.864071 | J103: 107.6838554 | K103: 97.99433239 | L103: 108.5811823 | M103: 101.6068182
A104: 3.1. | B104: Obveze prema poduzetnicima unutar grupe | H104: 0 | I104: 0 | J104: 0 | K104: 0 | L104: 0 | M104: 0
A105: 3.2. | B105: Obveze za zajmove, depozite i slično poduzetnika unutar grupe | H105: 0 | I105: 0 | J105: 0 | K105: 0 | L105: 0 | M105: 0
A106: 3.3. | B106: Obveze prema društvima povezanim sudjelujućim interesom | H106: 0 | I106: 0 | J106: 0 | K106: 0 | L106: 0 | M106: 0
A107: 3.4. | B107: Obveze za zajmove, depozite i slično društava povezanih sudjelujućim interesom | H107: 0 | I107: 0 | J107: 0 | K107: 0 | L107: 0 | M107: 0
A108: 3.5. | B108: Obveze za zajmove, depozite i slično | H108: 0 | I108: 0 | J108: 0 | K108: 0 | L108: 0 | M108: 0
A109: 3.6. | B109: Obveze prema bankama i drugim financijskim institucijama | C109: 2799.417 | D109: 2710.718 | E109: 2743.27 | F109: 2919.902 | G109: 2919.902 | H109: 96.83151885 | I109: 106.4387392 | J109: 107.7169222 | K109: 97.99433239 | L109: 106.4387392 | M109: 100
A110: 3.7. | B110: Obveze za predujmove | H110: 0 | I110: 0 | J110: 0 | K110: 0 | L110: 0 | M110: 0
A111: 3.8. | B111: Obveze prema dobavljačima | H111: 0 | I111: 0 | J111: 0 | K111: 0 | L111: 0 | M111: 0
A112: 3.9. | B112: Obveze po vrijednosnim papirima | H112: 0 | I112: 0 | J112: 0 | K112: 0 | L112: 0 | M112: 0
A113: 3.10. | B113: Ostale dugoročne obveze | D113: 11.66781 | F113: 11.668 | G113: 58.773 | H113: 0 | I113: 0 | J113: 100.0016284 | K113: 0 | L113: 0 | M113: 503.7110045
A114: 3.11. | B114: Odgođena porezna obveza | H114: 0 | I114: 0 | J114: 0 | K114: 0 | L114: 0 | M114: 0
A115: 4. | B115: KRATKOROČNE OBVEZE | C115: 16700.799 | D115: =SUM(D116:D129) -> 673.689 | E115: 767.357 | F115: =SUM(F116:F129) -> 673.692 | G115: 579.185 | H115: 4.03387287 | I115: 87.79381696 | J115: 100.0004453 | K115: 4.594732264 | L115: 75.47790663 | M115: 85.97177939
A116: 4.1. | B116: Obveze prema poduzetnicima unutar grupe | H116: 0 | I116: 0 | J116: 0 | K116: 0 | L116: 0 | M116: 0
A117: 4.2. | B117: Obveze za zajmove, depozite i slično poduzetnika unutar grupe | H117: 0 | I117: 0 | J117: 0 | K117: 0 | L117: 0 | M117: 0
A118: 4.3. | B118: Obveze prema društvima povezanim sudjelujućim interesom | H118: 0 | I118: 0 | J118: 0 | K118: 0 | L118: 0 | M118: 0
A119: 4.4. | B119: Obveze za zajmove, depozite i slično društava povezanih sudjelujućim interesom | H119: 0 | I119: 0 | J119: 0 | K119: 0 | L119: 0 | M119: 0
A120: 4.5. | B120: Obveze za zajmove, depozite i slično | H120: 0 | I120: 0 | J120: 0 | K120: 0 | L120: 0 | M120: 0
A121: 4.6. | B121: Obveze prema bankama i drugim financijskim institucijama | C121: 15.263 | D121: 244.296 | E121: 214.491 | F121: 244.296 | G121: 45.245 | H121: 1600.576558 | I121: 113.8956879 | J121: 100 | K121: 1405.3004 | L121: 21.09412516 | M121: 18.52056522
A122: 4.7. | B122: Obveze za predujmove | C122: 1.991 | D122: 11.748 | E122: 18.5 | F122: 11.749 | G122: 12.771 | H122: 590.0552486 | I122: 63.50810811 | J122: 100.0085121 | K122: 929.1813159 | L122: 69.03243243 | M122: 108.6986126
A123: 4.8. | B123: Obveze prema dobavljačima | C123: 269.825 | D123: 133.656 | E123: 182.35 | F123: 133.656 | G123: 129.432 | H123: 49.53432781 | I123: 73.29640801 | J123: 100 | K123: 67.58083943 | L123: 70.97998355 | M123: 96.83964805
A124: 4.9. | B124: Obveze po vrijednosnim papirima | H124: 0 | I124: 0 | J124: 0 | K124: 0 | L124: 0 | M124: 0
A125: 4.10. | B125: Obveze prema zaposlenicima | C125: 81.654 | D125: 76.82 | E125: 115.174 | F125: 76.82 | G125: 124.365 | H125: 94.07989811 | I125: 66.69908139 | J125: 100 | K125: 141.0512651 | L125: 107.9800997 | M125: 161.8914345
A126: 4.11. | B126: Obveze za poreze, doprinose i slična davanja | C126: 26.213 | D126: 36.733 | E126: 51.542 | F126: 36.734 | G126: 45.828 | H126: 140.1327586 | I126: 71.27003221 | J126: 100.0027223 | K126: 196.6276275 | L126: 88.91389546 | M126: 124.7563565
A127: 4.12. | B127: Obveze s osnove udjela u rezultatu | H127: 0 | I127: 0 | J127: 0 | K127: 0 | L127: 0 | M127: 0
A128: 4.13. | B128: Obveze po osnovi dugotrajne imovine namijenjene prodaji | H128: 0 | I128: 0 | J128: 0 | K128: 0 | L128: 0 | M128: 0
A129: 4.14. | B129: Ostale kratkoročne obveze | C129: 16305.853 | D129: 170.436 | E129: 185.3 | F129: 170.437 | G129: 221.544 | H129: 1.045244306 | I129: 91.97895305 | J129: 100.0005867 | K129: 1.136401757 | L129: 119.559633 | M129: 129.9858599
A130: 5. | B130: ODGOĐENO PLAĆANJE TROŠKOVA I PRIHOD BUDUĆEG RAZDOBLJA | D130: 10099.795 | E130: 22667.272 | F130: 11768.088 | G130: 19791.017 | H130: 0 | I130: 51.91664881 | J130: 116.5180877 | K130: 0 | L130: 87.31097858 | M130: 168.1752975
A131: 6. | B131: UKUPNA PASIVA | C131: 20409.841 | D131: =D75+D96+D103+D115+D130 -> 14667.74381 | E131: 27049.16 | F131: =F75+F96+F103+F115+F130 -> 16934.841 | G131: 24936.627 | H131: 71.86603663 | I131: 62.60764105 | J131: 115.4563457 | K131: 132.5299888 | L131: 92.19002365 | M131: 147.2504348
A132: 7. | B132: IZVANBILANČNI ZAPISI | H132: 0 | I132: 0 | J132: 0 | K132: 0 | L132: 0 | M132: 0
A133: * DODATAK IZVJEŠTAJU O FINANCIJSKOM POLOŽAJU (popunjava trgovačko društvo koje sastavlja konsolidirani godišnji financijski izvještaj)
A134: 8. | B134: KAPITAL I REZERVE | C134: =IF(C135+C136=C75,C75,"Neodgovarajuća raspodjela") -> Neodgovarajuća raspodjela | D134: Neodgovarajuća raspodjela | E134: =IF(E135+E136=E75,E75,"Neodgovarajuća raspodjela") -> Neodgovarajuća raspodjela | F134: =IF(F135+F136=F75,F75,"Neodgovarajuća raspodjela") -> Neodgovarajuća raspodjela | G134: =IF(G135+G136=G75,G75,"Neodgovarajuća raspodjela") -> Neodgovarajuća raspodjela | H134: =IFERROR(D134/C134*100,) -> 0 | I134: =IFERROR(F134/E134*100,) -> 0 | J134: =IFERROR(F134/D134*100,) -> 0 | K134: =IFERROR(E134/C134*100,) -> 0 | L134: =IFERROR(G134/E134*100,) -> 0 | M134: =IFERROR(G134/F134*100,) -> 0
A135: 8.1. | B135: Pripisano imateljima kapitala matice | H135: =IFERROR(D135/C135*100,) -> 0 | I135: =IFERROR(F135/E135*100,) -> 0 | J135: =IFERROR(F135/D135*100,) -> 0 | K135: =IFERROR(E135/C135*100,) -> 0 | L135: =IFERROR(G135/E135*100,) -> 0 | M135: =IFERROR(G135/F135*100,) -> 0
A136: 8.2. | B136: Pripisano manjinskom interesu | H136: 0 | I136: 0 | J136: 0 | K136: 0 | L136: 0 | M136: 0
A138: * | B138: Napomena 1: Dodatak izvještaju o financijskom položaju popunjavaju trgovačka društva koja sastavljaju konsolidirane godišnje financijske izvještaje
B139: Napomena 2: Prilikom razvrstavanja trgovačkih društva, sukladno članku 3. Zakona o računovodstvu, ne uzima se u zbroju aktive iznos gubitka iznad kapitala

Sheet RDG
A1: RAČUN DOBITI I GUBITKA | C1: =IF(C83>0,"Sveobuhvatna dobit razdoblja",IF(C83=0,"Stagnacija u razdoblju","Sveobuhvatni gubitak razdoblja")) -> Sveobuhvatna dobit razdoblja | D1: Sveobuhvatna dobit razdoblja | E1: Sveobuhvatna dobit razdoblja | F1: Sveobuhvatna dobit razdoblja | G1: Sveobuhvatna dobit razdoblja
A2: Obveznik: | B2: =IF(ISBLANK(Podloga!B2),"",Podloga!B2) -> Zračna luka Osijek d.o.o. | C2: za razdoblje od 1. siječnja do 31. prosinca
C3: I Z N O S (u 000 kn) | H3: ="Indeks "& RIGHT(LEFT(Podloga!C36,7),5) &" / "& RIGHT(LEFT(Podloga!B36,8),6) -> Indeks 24. o / 24. pl | I3: ="Indeks "& RIGHT(LEFT(Podloga!E36,8),6) &" / "& RIGHT(LEFT(Podloga!D36,8),6) -> Indeks 25. pr / 25. pl | J3: ="Indeks "& RIGHT(LEFT(Podloga!E36,8),6) &" / "& RIGHT(LEFT(Podloga!C36,7),5) -> Indeks 25. pr / 24. o | K3: ="Indeks "& RIGHT(LEFT(Podloga!D36,8),6) &" / "& RIGHT(LEFT(Podloga!B36,8),6) -> Indeks 25. pl / 24. pl | L3: ="Indeks "& RIGHT(LEFT(Podloga!F36,8),6) &" / "& RIGHT(LEFT(Podloga!D36,8),6) -> Indeks 26. pl / 25. pl | M3: ="Indeks "& RIGHT(LEFT(Podloga!F36,8),6) &" / "& RIGHT(LEFT(Podloga!E36,8),6) -> Indeks 26. pl / 25. pr
C4: =Podloga!B36 -> 2024. planirano | D4: =Podloga!C36 -> 2024. ostvareno | E4: =Podloga!D36 -> 2025. planirano | F4: =Podloga!E36 -> 2025. procijenjeno | G4: =Podloga!F36 -> 2026. planirano
A5: 1. | B5: POSLOVNI PRIHODI | C5: 3445.894 | D5: =SUM(D6:D10) -> 3814.391 | E5: =SUM(E6:E10) -> 3991.6 | F5: 4012.427 | G5: 4802.805 | H5: =IFERROR(D5/C5*100,) -> 110.6937996 | I5: =IFERROR(F5/E5*100,) -> 100.5217707 | J5: =IFERROR(F5/D5*100,) -> 105.1918117 | K5: =IFERROR(E5/C5*100,) -> 115.8364128 | L5: =IFERROR(G5/E5*100,) -> 120.3228029 | M5: =IFERROR(G5/F5*100,) -> 119.6982525
A6: 1.1. | B6: Prihodi od prodaje s poduzetnicima unutar grupe | H6: =IFERROR(D6/C6*100,) -> 0 | I6: =IFERROR(F6/E6*100,) -> 0 | J6: =IFERROR(F6/D6*100,) -> 0 | K6: =IFERROR(E6/C6*100,) -> 0 | L6: =IFERROR(G6/E6*100,) -> 0 | M6: =IFERROR(G6/F6*100,) -> 0
A7: 1.2. | B7: Prihodi od prodaje | C7: 1276.894 | D7: 1297.798 | E7: 1726.43 | F7: 1584.227 | G7: 2082.805 | H7: 101.6370975 | I7: 91.76317603 | J7: 122.0703838 | K7: 135.2054282 | L7: 120.6423081 | M7: 131.4713737
A8: 1.3. | B8: Prihodi na temelju upotrebe vlastitih proizvoda, robe i usluga | H8: 0 | I8: 0 | J8: 0 | K8: 0 | L8: 0 | M8: 0
A9: 1.4. | B9: Ostali poslovni prihodi s poduzetnicima unutar grupe | H9: 0 | I9: 0 | J9: 0 | K9: 0 | L9: 0 | M9: 0
A10: 1.5. | B10: Ostali poslovni prihodi | C10: 2169 | D10: 2516.593 | E10: 2265.17 | F10: 2428.2 | G10: 2720 | H10: 116.0254956 | I10: 107.1972523 | J10: 96.48759255 | K10: 104.4338405 | L10: 120.0792876 | M10: 112.017132
A11: 2. | B11: POSLOVNI RASHODI | C11: 3378.614 | D11: =D12+D13+D17+D21+D22+D23+D26+D33 -> 3386.403 | E11: =E12+E13+E17+E21+E22+E23+E26+E33 -> 3862.16 | F11: 3502.902 | G11: 4634.846 | H11: 100.2305383 | I11: 90.69800319 | J11: 103.4401989 | K11: 114.3119634 | L11: 120.0065766 | M11: 132.3144638
A12: 2.1. | B12: Promjene vrijednosti zaliha proizvodnje u tijeku i gotovih proizvoda | H12: 0 | I12: 0 | J12: 0 | K12: 0 | L12: 0 | M12: 0
A13: 2.2. | B13: Materijalni troškovi | C13: 1423.35 | D13: =SUM(D14:D16) -> 1512.563 | E13: 1697.98 | F13: 1390.637 | G13: 2105.259 | H13: 106.2678189 | I13: 81.89949234 | J13: 91.93911262 | K13: 119.2946218 | L13: 123.9860894 | M13: 151.3881049
A14: 2.2.1. | B14: Troškovi sirovina i materijala | C14: 383.5 | D14: 259.191 | E14: 436.24 | F14: 232.191 | G14: 343.85 | H14: 67.58565841 | I14: 53.22551806 | J14: 89.58297163 | K14: 113.7522816 | L14: 78.82129103 | M14: 148.0892886
A15: 2.2.2. | B15: Troškovi prodane robe | C15: 33.65 | D15: 80.118 | E15: 92.25 | F15: 95.978 | G15: 103.505 | H15: 238.0921248 | I15: 104.0411924 | J15: 119.7958012 | K15: 274.1456166 | L15: 112.200542 | M15: 107.8424222
A16: 2.2.3. | B16: Ostali vanjski troškovi | C16: 1006.2 | D16: 1173.254 | E16: 1169.49 | F16: 1062.468 | G16: 1657.904 | H16: 116.6024647 | I16: 90.84883154 | J16: 90.55737291 | K16: 116.228384 | L16: 141.7629907 | M16: 156.0427232
A17: 2.3. | B17: Troškovi osoblja | C17: 981.454 | D17: =SUM(D18:D20) -> 1117.044 | E17: 1509.68 | F17: 1400.892 | G17: 1649.73 | H17: 113.815217 | I17: 92.79396958 | J17: 125.4106374 | K17: 153.8207598 | L17: 109.2768004 | M17: 117.7628254
A18: 2.3.1. | B18: Neto plaće i nadnice | C18: 635.8 | D18: 715.83 | E18: 966.19 | F18: 888.164 | G18: 1055.827 | H18: 112.5872916 | I18: 91.9243627 | J18: 124.0747105 | K18: 151.9644542 | L18: 109.2773678 | M18: 118.8774821
A19: 2.3.2. | B19: Troškovi poreza i doprinosa iz plaća | C19: 202.154 | D19: 256.871 | E19: 347.23 | F19: 334.939 | G19: 379.438 | H19: 127.0669885 | I19: 96.46027129 | J19: 130.3919088 | K19: 171.76509 | L19: 109.2756962 | M19: 113.2857028
A20: 2.3.3. | B20: Doprinosi na plaće | C20: 143.5 | D20: 144.343 | E20: 196.26 | F20: 177.789 | G20: 214.465 | H20: 100.5874564 | I20: 90.58850504 | J20: 123.1711964 | K20: 136.7665505 | L20: 109.2759605 | M20: 120.6289478
A21: 2.4. | B21: Amortizacija | C21: 425 | D21: 372.131 | E21: 372 | F21: 377.631 | G21: 420 | H21: 87.56023529 | I21: 101.5137097 | J21: 101.4779742 | K21: 87.52941176 | L21: 112.9032258 | M21: 111.2196827
A22: 2.5. | B22: Ostali troškovi | C22: 285.39 | D22: 292.257 | E22: 253.5 | F22: 266.287 | G22: 378.644 | H22: 102.406181 | I22: 105.0441815 | J22: 91.11398529 | K22: 88.8258173 | L22: 149.3664694 | M22: 142.1939486
A23: 2.6. | B23: Vrijednosna usklađenja | C23: 0 | D23: =SUM(D24:D25) -> 0 | E23: 0 | F23: 0 | G23: 0 | H23: 0 | I23: 0 | J23: 0 | K23: 0 | L23: 0 | M23: 0
A24: 2.6.1. | B24: Dugotrajne imovine (osim financijske imovine) | H24: 0 | I24: 0 | J24: 0 | K24: 0 | L24: 0 | M24: 0
A25: 2.6.2. | B25: Kratkotrajne imovine (osim financijske imovine) | H25: 0 | I25: 0 | J25: 0 | K25: 0 | L25: 0 | M25: 0
A26: 2.7. | B26: Rezerviranja | C26: 0 | D26: =SUM(D27:D32) -> 85.14 | E26: 0 | F26: 65.211 | G26: 73.213 | H26: 0 | I26: 0 | J26: 76.59267089 | K26: 0 | L26: 0 | M26: 112.2709359
A27: 2.7.1. | B27: Rezerviranja za mirovine, otpremnine i slične obveze | H27: 0 | I27: 0 | J27: 0 | K27: 0 | L27: 0 | M27: 0
A28: 2.7.2. | B28: Rezerviranja za porezne obveze | H28: 0 | I28: 0 | J28: 0 | K28: 0 | L28: 0 | M28: 0
A29: 2.7.3. | B29: Rezerviranja za započete sudske sporove | C29: 0 | E29: 0 | H29: 0 | I29: 0 | J29: 0 | K29: 0 | L29: 0 | M29: 0
A30: 2.7.4. | B30: Rezerviranja za troškove obnavljanja prirodnih bogatstava | H30: 0 | I30: 0 | J30: 0 | K30: 0 | L30: 0 | M30: 0
A31: 2.7.5. | B31: Rezerviranja za troškove u jamstvenim rokovima | H31: 0 | I31: 0 | J31: 0 | K31: 0 | L31: 0 | M31: 0
A32: 2.7.6. | B32: Druga rezerviranja | D32: 85.14 | F32: 65.211 | G32: 73.213 | H32: 0 | I32: 0 | J32: 76.59267089 | K32: 0 | L32: 0 | M32: 112.2709359
A33: 2.8. | B33: Ostali poslovni rashodi | C33: 263.42 | D33: 7.268 | E33: 29 | F33: 2.244 | G33: 8 | H33: 2.759091944 | I33: 7.737931034 | J33: 30.87506879 | K33: 11.009035 | L33: 27.5862069 | M33: 356.5062389
A34: 3. | B34: FINANCIJSKI PRIHODI | C34: 0.54 | D34: =SUM(D35:D44) -> 0.137 | E34: =SUM(E35:E44) -> 0.6 | F34: 0.109 | G34: 0.15 | H34: 25.37037037 | I34: 18.16666667 | J34: 79.5620438 | K34: 111.1111111 | L34: 25 | M34: 137.6146789
A35: 3.1. | B35: Prihodi od ulaganja u udjele (dionice) poduzetnika unutar grupe | H35: 0 | I35: 0 | J35: 0 | K35: 0 | L35: 0 | M35: 0
A36: 3.2. | B36: Prihodi od ulaganja u udjele (dionice) društava povezanih sudjelujućim interesom | H36: 0 | I36: 0 | J36: 0 | K36: 0 | L36: 0 | M36: 0
A37: 3.3. | B37: Prihodi od ostalih dugotrajnih financijskih ulaganja i zajmova poduzetnicima unutar grupe | H37: 0 | I37: 0 | J37: 0 | K37: 0 | L37: 0 | M37: 0
A38: 3.4. | B38: Ostali prihodi s osnove kamata iz odnosa s poduzetnicima unutar grupe | H38: 0 | I38: 0 | J38: 0 | K38: 0 | L38: 0 | M38: 0
A39: 3.5. | B39: Tečajne razlike i ostali financijski prihodi iz odnosa s poduzetnicima unutar grupe | H39: 0 | I39: 0 | J39: 0 | K39: 0 | L39: 0 | M39: 0
A40: 3.6. | B40: Prihodi od ostalih dugotrajnih financijskih ulaganja i zajmova | H40: 0 | I40: 0 | J40: 0 | K40: 0 | L40: 0 | M40: 0
A41: 3.7. | B41: Ostali prihodi s osnove kamata | C41: 0.52 | D41: 0.066 | E41: 0.6 | F41: 0.071 | G41: 0.1 | H41: 12.69230769 | I41: 11.83333333 | J41: 107.5757576 | K41: 115.3846154 | L41: 16.66666667 | M41: 140.8450704
A42: 3.8. | B42: Tečajne razlike i ostali financijski prihodi | C42: 0.02 | D42: 0.071 | F42: 0.038 | G42: 0.05 | H42: 355 | I42: 0 | J42: 53.52112676 | K42: 0 | L42: 0 | M42: 131.5789474
A43: 3.9. | B43: Nerealizirani dobici (prihodi) od financijske imovine | H43: 0 | I43: 0 | J43: 0 | K43: 0 | L43: 0 | M43: 0
A44: 3.10. | B44: Ostali financijski prihodi | H44: 0 | I44: 0 | J44: 0 | K44: 0 | L44: 0 | M44: 0
A45: 4. | B45: FINANCIJSKI RASHODI | C45: 62.8 | D45: =SUM(D46:D52) -> 90.716 | E45: =SUM(E46:E52) -> 90.39 | F45: 120.017 | G45: 120.2 | H45: 144.4522293 | I45: 132.7768558 | J45: 132.2997046 | K45: 143.933121 | L45: 132.9793119 | M45: 100.1524784
A46: 4.1. | B46: Rashodi s osnove kamata i slični rashodi s poduzetnicima unutar grupe | H46: 0 | I46: 0 | J46: 0 | K46: 0 | L46: 0 | M46: 0
A47: 4.2. | B47: Tečajne razlike i drugi rashodi s poduzetnicima unutar grupe | H47: 0 | I47: 0 | J47: 0 | K47: 0 | L47: 0 | M47: 0
A48: 4.3. | B48: Rashodi s osnove kamata i slični rashodi | C48: 55.85 | D48: 90.365 | E48: 89.74 | F48: 119.796 | G48: 120 | H48: 161.7994628 | I48: 133.4923111 | J48: 132.5690256 | K48: 160.6803939 | L48: 133.7196345 | M48: 100.1702895
A49: 4.4. | B49: Tečajne razlike i drugi rashodi | C49: 6.95 | D49: 0.351 | E49: 0.65 | F49: 0.221 | G49: 0.2 | H49: 5.050359712 | I49: =IFERROR(F49/E49*100,) -> 34 | J49: 62.96296296 | K49: =IFERROR(E49/C49*100,) -> 9.352517986 | L49: =IFERROR(G49/E49*100,) -> 30.76923077 | M49: 90.49773756
A50: 4.5. | B50: Nerealizirani gubici (rashodi) od financijske imovine | H50: 0 | I50: =IFERROR(F50/E50*100,) -> 0 | J50: 0 | K50: =IFERROR(E50/C50*100,) -> 0 | L50: =IFERROR(G50/E50*100,) -> 0 | M50: 0
A51: 4.6. | B51: Vrijednosna usklađenja financijske imovine (neto) | H51: 0 | I51: 0 | J51: 0 | K51: 0 | L51: 0 | M51: 0
A52: 4.7. | B52: Ostali financijski rashodi | H52: 0 | I52: 0 | J52: 0 | K52: 0 | L52: 0 | M52: 0
A53: 5. | B53: UDIO U DOBITI OD DRUŠTAVA POVEZANIH SUDJELUJUĆIM INTERESOM | H53: 0 | I53: 0 | J53: 0 | K53: 0 | L53: 0 | M53: 0
A54: 6. | B54: UDIO U DOBITI OD ZAJEDNIČKIH POTHVATA | H54: 0 | I54: 0 | J54: 0 | K54: 0 | L54: 0 | M54: 0
A55: 7. | B55: UDIO U GUBITKU OD DRUŠTAVA POVEZANIH SUDJELUJUĆIM INTERESOM | H55: 0 | I55: 0 | J55: 0 | K55: 0 | L55: 0 | M55: 0
A56: 8. | B56: UDIO U GUBITKU OD ZAJEDNIČKIH POTHVATA | H56: 0 | I56: 0 | J56: 0 | K56: 0 | L56: 0 | M56: 0
A57: 9. | B57: UKUPNI PRIHODI | C57: 3446.434 | D57: =D5+D34+D53+D54 -> 3814.528 | E57: =E5+E34+E53+E54 -> 3992.2 | F57: 4012.536 | G57: 4802.955 | H57: 110.6804308 | I57: 100.5093933 | J57: 105.1908912 | K57: 115.8356725 | L57: 120.3084765 | M57: 119.6987392
A58: 10. | B58: UKUPNI RASHODI | C58: 3441.414 | D58: =D11+D45+D55+D56 -> 3477.119 | E58: =E11+E45+E55+E56 -> 3952.55 | F58: 3622.919 | G58: 4755.046 | H58: 101.0375096 | I58: 91.66029525 | J58: 104.1931266 | K58: 114.8524996 | L58: 120.3032473 | M58: 131.2490288
A59: 11. | B59: DOBIT ILI GUBITAK PRIJE OPOREZIVANJA | C59: 5.02 | D59: =D57-D58 -> 337.409 | E59: =E57-E58 -> 39.65 | F59: 389.617 | G59: 47.909 | H59: 6721.294821 | I59: 982.6406053 | J59: 115.4732091 | K59: 789.8406375 | L59: 120.8297604 | M59: =IFERROR(G59/F59*100,) -> 12.2964347
A60: 11.1. | B60: Dobit prije oporezivanja | C60: 5.02 | D60: =IF(D59>0,D59,) -> 337.409 | E60: 39.65 | F60: 389.617 | G60: 47.909 | H60: 6721.294821 | I60: 982.6406053 | J60: 115.4732091 | K60: 789.8406375 | L60: 120.8297604 | M60: 12.2964347
A61: 11.2. | B61: Gubitak prije oporezivanja | C61: 0 | D61: =IF(D59<0,D59,) -> 0 | E61: 0 | F61: 0 | G61: 0 | H61: 0 | I61: 0 | J61: 0 | K61: 0 | L61: 0 | M61: 0
A62: 12. | B62: POREZ NA DOBIT | H62: 0 | I62: 0 | J62: 0 | K62: 0 | L62: 0 | M62: 0
A63: 13. | B63: DOBIT ILI GUBITAK RAZDOBLJA | C63: 5.02 | D63: =D59-D62 -> 337.409 | E63: =E59-E62 -> 39.65 | F63: 389.617 | G63: 47.909 | H63: 6721.294821 | I63: 982.6406053 | J63: 115.4732091 | K63: =IFERROR(E63/C63*100,) -> 789.8406375 | L63: 120.8297604 | M63: 12.2964347
A64: 13.1. | B64: Dobit razdoblja | C64: 5.02 | D64: =IF(D63>0,D63,) -> 337.409 | E64: 39.65 | F64: 389.617 | G64: 47.909 | H64: 6721.294821 | I64: 982.6406053 | J64: 115.4732091 | K64: 789.8406375 | L64: 120.8297604 | M64: 12.2964347
A65: 13.2. | B65: Gubitak razdoblja | C65: 0 | D65: =IF(D63<0,D63,) -> 0 | E65: 0 | F65: 0 | G65: 0 | H65: 0 | I65: 0 | J65: 0 | K65: 0 | L65: 0 | M65: 0
A66: * DODATAK RDG -u (popunjava trgovačko društvo koje sastavlja konsolidirani godišnji financijski izvještaj)
A67: 14. | B67: DOBIT ILI GUBITAK RAZDOBLJA | C67: =IF((C68+C69)=C63,C63,"Neodgovarajuća raspodjela") -> Neodgovarajuća raspodjela | D67: =IF((D68+D69)=D63,D63,"Neodgovarajuća raspodjela") -> Neodgovarajuća raspodjela | E67: =IF((E68+E69)=E63,E63,"Neodgovarajuća raspodjela") -> Neodgovarajuća raspodjela | F67: =IF((F68+F69)=F63,F63,"Neodgovarajuća raspodjela") -> Neodgovarajuća raspodjela | G67: =IF((G68+G69)=G63,G63,"Neodgovarajuća raspodjela") -> Neodgovarajuća raspodjela | H67: =IFERROR(D67/C67*100,) -> 0 | I67: =IFERROR(F67/E67*100,) -> 0 | J67: =IFERROR(F67/D67*100,) -> 0 | K67: =IFERROR(E67/C67*100,) -> 0 | L67: =IFERROR(G67/E67*100,) -> 0 | M67: =IFERROR(G67/F67*100,) -> 0
A68: 14.1. | B68: Pripisana imateljima kapitala matice | H68: 0 | I68: 0 | J68: 0 | K68: 0 | L68: 0 | M68: 0
A69: 14.2. | B69: Pripisana manjinskom (nekontrolirajućem) interesu | H69: 0 | I69: 0 | J69: 0 | K69: 0 | L69: 0 | M69: 0
A70: IZVJEŠTAJ O OSTALOJ SVEOBUHVATNOJ DOBITI (popunjava trgovačko društvo obveznik primjene MSFI-a)
A71: 1. | B71: DOBIT ILI GUBITAK RAZDOBLJA | C71: =C63 -> 5.02 | D71: 337.409 | E71: =E63 -> 39.65 | F71: =F63 -> 389.617 | G71: =G63 -> 47.909 | H71: =IFERROR(D71/C71*100,) -> 6721.294821 | I71: =IFERROR(F71/E71*100,) -> 982.6406053 | J71: =IFERROR(F71/D71*100,) -> 115.4732091 | K71: =IFERROR(E71/C71*100,) -> 789.8406375 | L71: =IFERROR(G71/E71*100,) -> 120.8297604 | M71: =IFERROR(G71/F71*100,) -> 12.2964347
A72: 2. | B72: OSTALA SVEOBUHVATNA DOBIT/GUBITAK PRIJE POREZA | C72: =SUM(C73:C80) -> 0 | D72: =SUM(D73:D80) -> 0 | E72: =SUM(E73:E80) -> 0 | F72: =SUM(F73:F80) -> 0 | G72: =SUM(G73:G80) -> 0 | H72: 0 | I72: 0 | J72: 0 | K72: 0 | L72: 0 | M72: 0
A73: 2.1. | B73: Tečajne razlike iz preračuna inozemnog poslovanja | H73: 0 | I73: 0 | J73: 0 | K73: 0 | L73: 0 | M73: 0
A74: 2.2. | B74: Promjene revalorizacijskih rezervi dugotrajne materijalne i nematerijalne imovine | H74: 0 | I74: 0 | J74: 0 | K74: 0 | L74: 0 | M74: 0
A75: 2.3. | B75: Dobit ili gubitak s osnove naknadnog vrednovanja financijske imovine raspoložive za prodaju | H75: 0 | I75: 0 | J75: 0 | K75: 0 | L75: 0 | M75: 0
A76: 2.4. | B76: Dobit ili gubitak s osnove učinkovite zaštite novčanih tokova | H76: 0 | I76: 0 | J76: 0 | K76: 0 | L76: 0 | M76: 0
A77: 2.5. | B77: Dobit ili gubitak s osnove učinkovite zaštite neto ulaganja u inozemstvu | H77: 0 | I77: 0 | J77: 0 | K77: 0 | L77: 0 | M77: 0
A78: 2.6. | B78: Udio u ostaloj sveobuhvatnoj dobiti/gubitku društava povezanih sudjelujućim interesom | H78: 0 | I78: 0 | J78: 0 | K78: 0 | L78: 0 | M78: 0
A79: 2.7. | B79: Aktuarski dobici/gubici po planovima definiranih primanja | H79: 0 | I79: 0 | J79: 0 | K79: 0 | L79: 0 | M79: 0
A80: 2.8. | B80: Ostale nevlasničke promjene kapitala | H80: 0 | I80: 0 | J80: 0 | K80: 0 | L80: 0 | M80: 0
A81: 3. | B81: POREZ NA OSTALU SVEOBUHVATNU DOBIT RAZDOBLJA | H81: 0 | I81: 0 | J81: 0 | K81: 0 | L81: 0 | M81: 0
A82: 4. | B82: NETO OSTALA SVEOBUHVATNA DOBIT ILI GUBITAK | C82: =C72-C81 -> 0 | D82: =D72-D81 -> 0 | E82: =E72-E81 -> 0 | F82: =F72-F81 -> 0 | G82: =G72-G81 -> 0 | H82: 0 | I82: 0 | J82: 0 | K82: 0 | L82: 0 | M82: 0
A83: 5. | B83: SVEOBUHVATNA DOBIT ILI GUBITAK RAZDOBLJA | C83: =C71+C82 -> 5.02 | D83: =D71+D82 -> 337.409 | E83: =E71+E82 -> 39.65 | F83: =F71+F82 -> 389.617 | G83: =G71+G82 -> 47.909 | H83: 6721.294821 | I83: 982.6406053 | J83: 115.4732091 | K83: 789.8406375 | L83: 120.8297604 | M83: 12.2964347
A84: * DODATAK IZVJEŠTAJU O OSTALOJ SVEOBUHVATNOJ DOBITI (popunjava trgovačko društvo koje sastavlja konsolidirani godišnji financijski izvještaj)
A85: 6. | B85: SVEOBUHVATNA DOBIT ILI GUBITAK RAZDOBLJA | C85: =IF((C86+C87)=C83,C83,"Neodgovarajuća raspodjela") -> Neodgovarajuća raspodjela | D85: Neodgovarajuća raspodjela | E85: =IF((E86+E87)=E83,E83,"Neodgovarajuća raspodjela") -> Neodgovarajuća raspodjela | F85: =IF((F86+F87)=F83,F83,"Neodgovarajuća raspodjela") -> Neodgovarajuća raspodjela | G85: =IF((G86+G87)=G83,G83,"Neodgovarajuća raspodjela") -> Neodgovarajuća raspodjela | H85: =IFERROR(D85/C85*100,) -> 0 | I85: =IFERROR(F85/E85*100,) -> 0 | J85: =IFERROR(F85/D85*100,) -> 0 | K85: =IFERROR(E85/C85*100,) -> 0 | L85: =IFERROR(G85/E85*100,) -> 0 | M85: =IFERROR(G85/F85*100,) -> 0
A86: 6.1. | B86: Pripisana imateljima kapitala matice | H86: 0 | I86: 0 | J86: 0 | K86: 0 | L86: 0 | M86: 0
A87: 6.2. | B87: Pripisana manjinskom interesu | H87: 0 | I87: 0 | J87: 0 | K87: 0 | L87: 0 | M87: 0

Sheet _TM_Ključni poslovni pokazatelj (hidden)
A1: Left | B1: Top | C1: Right | D1: Bottom | E1: Ref
A2: 1 | B2: 1 | C2: 3 | D2: 14 | E2: $A$1:$C$14

Sheet NT dir.
A1: IZVJEŠTAJ O NOVČANOM TOKU - DIREKTNA METODA
A2: Obveznik: | B2: =IF(ISBLANK(Podloga!B2),"",Podloga!B2) -> Zračna luka Osijek d.o.o. | C2: =IF(C50>C49,"Povećanje novca i novčanih ekvivalenata u razdoblju",IF(C50=C49,"Stagnacija novca i novčanih ekvivalenata u razdoblju","Smanjenje novca i novčanih ekvivalenata u razdoblju")) -> Stagnacija novca i novčanih ekvivalenata u razdoblju | D2: Stagnacija novca i novčanih ekvivalenata u razdoblju | E2: Stagnacija novca i novčanih ekvivalenata u razdoblju | F2: Stagnacija novca i novčanih ekvivalenata u razdoblju | G2: Stagnacija novca i novčanih ekvivalenata u razdoblju
C3: Za razdoblje od 1. siječnja do 31. prosinca
C4: I Z N O S (u 000 kn) | H4: ="Indeks "& RIGHT(LEFT(Podloga!C36,7),5) &" / "& RIGHT(LEFT(Podloga!B36,8),6) -> Indeks 24. o / 24. pl | I4: ="Indeks "& RIGHT(LEFT(Podloga!E36,8),6) &" / "& RIGHT(LEFT(Podloga!D36,8),6) -> Indeks 25. pr / 25. pl | J4: ="Indeks "& RIGHT(LEFT(Podloga!E36,8),6) &" / "& RIGHT(LEFT(Podloga!C36,7),5) -> Indeks 25. pr / 24. o | K4: ="Indeks "& RIGHT(LEFT(Podloga!D36,8),6) &" / "& RIGHT(LEFT(Podloga!B36,8),6) -> Indeks 25. pl / 24. pl | L4: ="Indeks "& RIGHT(LEFT(Podloga!F36,8),6) &" / "& RIGHT(LEFT(Podloga!D36,8),6) -> Indeks 26. pl / 25. pl | M4: ="Indeks "& RIGHT(LEFT(Podloga!F36,8),6) &" / "& RIGHT(LEFT(Podloga!E36,8),6) -> Indeks 26. pl / 25. pr
C5: =Podloga!B36 -> 2024. planirano | D5: =Podloga!C36 -> 2024. ostvareno | E5: =Podloga!D36 -> 2025. planirano | F5: =Podloga!E36 -> 2025. procijenjeno | G5: =Podloga!F36 -> 2026. planirano
A6: NOVČANI TOKOVI OD POSLOVNIH AKTIVNOSTI
A7: 1. | B7: Novčani primici od kupaca | H7: =IFERROR(D7/C7*100,) -> 0 | I7: =IFERROR(F7/E7*100,) -> 0 | J7: =IFERROR(F7/D7*100,) -> 0 | K7: =IFERROR(E7/C7*100,) -> 0 | L7: =IFERROR(G7/E7*100,) -> 0 | M7: =IFERROR(G7/F7*100,) -> 0
A8: 2. | B8: Novčani primici od tantijema, naknada, provizija i slično | H8: =IFERROR(D8/C8*100,) -> 0 | I8: =IFERROR(F8/E8*100,) -> 0 | J8: =IFERROR(F8/D8*100,) -> 0 | K8: =IFERROR(E8/C8*100,) -> 0 | L8: =IFERROR(G8/E8*100,) -> 0 | M8: =IFERROR(G8/F8*100,) -> 0
A9: 3. | B9: Novčani primici od osiguranja za naknadu šteta | H9: 0 | I9: 0 | J9: 0 | K9: 0 | L9: 0 | M9: 0
A10: 4. | B10: Novčani primici s osnove povrata poreza | H10: 0 | I10: 0 | J10: 0 | K10: 0 | L10: 0 | M10: 0
A11: 5 | B11: Novčani izdaci dobavljačima | H11: 0 | I11: 0 | J11: 0 | K11: 0 | L11: 0 | M11: 0
A12: 6 | B12: Novčani izdaci za zaposlene | H12: 0 | I12: 0 | J12: 0 | K12: 0 | L12: 0 | M12: 0
A13: 7 | B13: Novčani izdaci za osiguranje za naknadu štete | H13: 0 | I13: 0 | J13: 0 | K13: 0 | L13: 0 | M13: 0
A14: 8 | B14: Ostali novčani primici i izdaci | H14: 0 | I14: 0 | J14: 0 | K14: 0 | L14: 0 | M14: 0
A15: I. | B15: Novac iz poslovanja | C15: =SUM(C7:C14) -> 0 | D15: =SUM(D7:D14) -> 0 | E15: 0 | F15: 0 | G15: 0 | H15: 0 | I15: 0 | J15: 0 | K15: 0 | L15: 0 | M15: 0
A16: 9 | B16: Novčani izdaci za kamate | H16: 0 | I16: 0 | J16: 0 | K16: 0 | L16: 0 | M16: 0
A17: 10 | B17: Plaćeni porez na dobit | H17: 0 | I17: 0 | J17: 0 | K17: 0 | L17: 0 | M17: 0
A18: A. NETO NOVČANI TOKOVI OD POSLOVNIH AKTIVNOSTI | C18: =SUM(C15:C17) -> 0 | D18: =SUM(D15:D17) -> 0 | E18: 0 | F18: 0 | G18: 0 | H18: 0 | I18: 0 | J18: 0 | K18: 0 | L18: 0 | M18: 0
A19: NOVČANI TOKOVI OD INVESTICIJSKIH AKTIVNOSTI
A20: 1. | B20: Novčani primici od prodaje dugotrajne materijalne i nematerijalne imovine | H20: 0 | I20: 0 | J20: 0 | K20: 0 | L20: 0 | M20: 0
A21: 2. | B21: Novčani primici od prodaje financijskih instrumenata | H21: 0 | I21: 0 | J21: 0 | K21: 0 | L21: 0 | M21: 0
A22: 3. | B22: Novčani primici od kamata | H22: 0 | I22: 0 | J22: 0 | K22: 0 | L22: 0 | M22: 0
A23: 4. | B23: Novčani primici od dividendi | H23: 0 | I23: 0 | J23: 0 | K23: 0 | L23: 0 | M23: 0
A24: 5. | B24: Novčani primici s osnove povrata danih zajmova i štednih uloga | H24: 0 | I24: 0 | J24: 0 | K24: 0 | L24: 0 | M24: 0
A25: 6. | B25: Ostali novčani primici od investicijskih aktivnosti | H25: 0 | I25: 0 | J25: 0 | K25: 0 | L25: 0 | M25: 0
A26: II. | B26: Ukupno novčani primici od investicijskih aktivnosti | C26: =SUM(C20:C25) -> 0 | D26: =SUM(D20:D25) -> 0 | E26: 0 | F26: 0 | G26: 0 | H26: 0 | I26: 0 | J26: 0 | K26: 0 | L26: 0 | M26: 0
A27: 1. | B27: Novčani izdaci za kupnju dugotrajne materijalne i nematerijalne imovine | H27: 0 | I27: 0 | J27: 0 | K27: 0 | L27: 0 | M27: 0
A28: 2. | B28: Novčani izdaci za stjecanje financijskih instrumenata | H28: 0 | I28: 0 | J28: 0 | K28: 0 | L28: 0 | M28: 0
A29: 3. | B29: Novčani izdaci s osnove danih zajmova i štednih uloga | H29: 0 | I29: 0 | J29: 0 | K29: 0 | L29: 0 | M29: 0
A30: 4. | B30: Stjecanje ovisnog društva, umanjeno za stečeni novac | H30: 0 | I30: 0 | J30: 0 | K30: 0 | L30: 0 | M30: 0
A31: 5. | B31: Ostali novčani izdaci od investicijskih aktivnosti | H31: 0 | I31: 0 | J31: 0 | K31: 0 | L31: 0 | M31: 0
A32: III. | B32: Ukupno novčani izdaci od investicijskih aktivnosti | C32: =SUM(C27:C31) -> 0 | D32: =SUM(D27:D31) -> 0 | E32: 0 | F32: 0 | G32: 0 | H32: 0 | I32: 0 | J32: 0 | K32: 0 | L32: 0 | M32: 0
A33: B. NETO NOVČANI TOKOVI OD INVESTICIJSKIH AKTIVNOSTI | C33: =C26+C32 -> 0 | D33: =D26+D32 -> 0 | E33: 0 | F33: 0 | G33: 0 | H33: 0 | I33: 0 | J33: 0 | K33: 0 | L33: 0 | M33: 0
A34: NOVČANI TOKOVI OD FINANCIJSKIH AKTIVNOSTI
A35: 1. | B35: Novčani primici od povećanja temeljnog (upisanog) kapitala | H35: 0 | I35: 0 | J35: 0 | K35: 0 | L35: 0 | M35: 0
A36: 2. | B36: Novčani primici od izdavanja vlasničkih i dužničkih financijskih instrumenata | H36: 0 | I36: 0 | J36: 0 | K36: 0 | L36: 0 | M36: 0
A37: 3. | B37: Novčani primici od glavnice kredita, pozajmica i drugih posudbi | H37: 0 | I37: 0 | J37: 0 | K37: 0 | L37: 0 | M37: 0
A38: 4. | B38: Ostali novčani primici od financijskih aktivnosti | H38: 0 | I38: 0 | J38: 0 | K38: 0 | L38: 0 | M38: 0
A39: IV. | B39: Ukupno novčani primici od financijskih aktivnosti | C39: =SUM(C35:C38) -> 0 | D39: =SUM(D35:D38) -> 0 | E39: 0 | F39: 0 | G39: 0 | H39: 0 | I39: 0 | J39: 0 | K39: 0 | L39: 0 | M39: 0
A40: 1. | B40: Novčani izdaci za otplatu glavnice kredita, pozajmica i drugih posudbi i dužničkih financijskih instrumenata | H40: 0 | I40: 0 | J40: 0 | K40: 0 | L40: 0 | M40: 0
A41: 2. | B41: Novčani izdaci za isplatu dividendi | H41: 0 | I41: 0 | J41: 0 | K41: 0 | L41: 0 | M41: 0
A42: 3. | B42: Novčani izdaci za financijski najam | H42: 0 | I42: 0 | J42: 0 | K42: 0 | L42: 0 | M42: 0
A43: 4. | B43: Novčani izdaci za otkup vlastitih dionica i smanjenje temeljnog (upisanog) kapitala | H43: 0 | I43: 0 | J43: 0 | K43: 0 | L43: 0 | M43: 0
A44: 5. | B44: Ostali novčani izdaci od financijskih aktivnosti | H44: 0 | I44: 0 | J44: 0 | K44: 0 | L44: 0 | M44: 0
A45: V. | B45: Ukupno novčani izdaci od financijskih aktivnosti | C45: =SUM(C40:C44) -> 0 | D45: =SUM(D40:D44) -> 0 | E45: 0 | F45: 0 | G45: 0 | H45: 0 | I45: 0 | J45: 0 | K45: 0 | L45: 0 | M45: 0
A46: C. NETO NOVČANI TOKOVI OD FINANCIJSKIH AKTIVNOSTI | C46: =C39+C45 -> 0 | D46: =D39+D45 -> 0 | E46: 0 | F46: 0 | G46: 0 | H46: 0 | I46: 0 | J46: 0 | K46: 0 | L46: 0 | M46: 0
A47: 1. | B47: Nerealizirane tečajne razlike po novcu i novčanim ekvivalentima | H47: =IFERROR(D47/C47*100,) -> 0 | I47: =IFERROR(F47/E47*100,) -> 0 | J47: =IFERROR(F47/D47*100,) -> 0 | K47: =IFERROR(E47/C47*100,) -> 0 | L47: =IFERROR(G47/E47*100,) -> 0 | M47: =IFERROR(G47/F47*100,) -> 0
A48: D. NETO POVEĆANJE ILI SMANJENE NOVČANIH TOKOVA | C48: =C18+C33+C46+C47 -> 0 | D48: =D18+D33+D46+D47 -> 0 | E48: 0 | F48: 0 | G48: 0 | H48: 0 | I48: 0 | J48: 0 | K48: 0 | L48: 0 | M48: 0
A49: E. NOVAC I NOVČANI EKVIVALENTI NA POČETKU RAZDOBLJA | H49: 0 | I49: 0 | J49: 0 | K49: 0 | L49: 0 | M49: 0
A50: F. NOVAC I NOVČANI EKVIVALENTI NA KRAJU RAZDOBLJA | C50: =C49+C48 -> 0 | D50: =D49+D48 -> 0 | E50: 0 | F50: 0 | G50: 0 | H50: 0 | I50: 0 | J50: 0 | K50: 0 | L50: 0 | M50: 0

Sheet NT indir.
A1: IZVJEŠTAJ O NOVČANOM TOKU - INDIREKTNA METODA
A2: Obveznik: | B2: =IF(ISBLANK(Podloga!B2),"",Podloga!B2) -> Zračna luka Osijek d.o.o. | C2: =IF(C58>C57,"Povećanje novca i novčanih ekvivalenata u razdoblju",IF(C58=C57,"Stagnacija novca i novčanih ekvivalenata u razdoblju","Smanjenje novca i novčanih ekvivalenata u razdoblju")) -> Povećanje novca i novčanih ekvivalenata u razdoblju | D2: Povećanje novca i novčanih ekvivalenata u razdoblju | E2: Povećanje novca i novčanih ekvivalenata u razdoblju | F2: Povećanje novca i novčanih ekvivalenata u razdoblju | G2: Smanjenje novca i novčanih ekvivalenata u razdoblju
C3: Za razdoblje od 1. siječnja do 31. prosinca
C4: I Z N O S (u 000 kn) | H4: ="Indeks "& RIGHT(LEFT(Podloga!C36,7),5) &" / "& RIGHT(LEFT(Podloga!B36,8),6) -> Indeks 24. o / 24. pl | I4: ="Indeks "& RIGHT(LEFT(Podloga!E36,8),6) &" / "& RIGHT(LEFT(Podloga!D36,8),6) -> Indeks 25. pr / 25. pl | J4: ="Indeks "& RIGHT(LEFT(Podloga!E36,8),6) &" / "& RIGHT(LEFT(Podloga!C36,7),5) -> Indeks 25. pr / 24. o | K4: ="Indeks "& RIGHT(LEFT(Podloga!D36,8),6) &" / "& RIGHT(LEFT(Podloga!B36,8),6) -> Indeks 25. pl / 24. pl | L4: ="Indeks "& RIGHT(LEFT(Podloga!F36,8),6) &" / "& RIGHT(LEFT(Podloga!D36,8),6) -> Indeks 26. pl / 25. pl | M4: ="Indeks "& RIGHT(LEFT(Podloga!F36,8),6) &" / "& RIGHT(LEFT(Podloga!E36,8),6) -> Indeks 26. pl / 25. pr
C5: =Podloga!B36 -> 2024. planirano | D5: =Podloga!C36 -> 2024. ostvareno | E5: =Podloga!D36 -> 2025. planirano | F5: =Podloga!E36 -> 2025. procijenjeno | G5: =Podloga!F36 -> 2026. planirano
A6: NOVČANI TOKOVI OD POSLOVNIH AKTIVNOSTI
A7: 1. | B7: Dobit prije poreza | C7: 5.02 | D7: 337.407 | E7: 39.647 | F7: 389.617 | G7: 47.909 | H7: =IFERROR(D7/C7*100,) -> 6721.25498 | I7: =IFERROR(F7/E7*100,) -> 982.7149595 | J7: =IFERROR(F7/D7*100,) -> 115.4738935 | K7: =IFERROR(E7/C7*100,) -> 789.7808765 | L7: =IFERROR(G7/E7*100,) -> 120.8389033 | M7: =IFERROR(G7/F7*100,) -> 12.2964347
A8: 2. | B8: Usklađenja | C8: 363.14 | D8: =SUM(D9:D16) -> 461.977 | F8: 494.562 | G8: 553.113 | H8: =IFERROR(D8/C8*100,) -> 127.2173267 | I8: =IFERROR(F8/E8*100,) -> 0 | J8: =IFERROR(F8/D8*100,) -> 107.0533814 | K8: =IFERROR(E8/C8*100,) -> 0 | L8: =IFERROR(G8/E8*100,) -> 0 | M8: =IFERROR(G8/F8*100,) -> 111.8389605
A9: a) | B9: Amortizacija | C9: 425 | D9: 372.131 | E9: 372 | F9: 377.631 | G9: 420 | H9: 87.56023529 | I9: 101.5137097 | J9: 101.4779742 | K9: 87.52941176 | L9: 112.9032258 | M9: 111.2196827
A10: b) | B10: Dobici i gubici od prodaje i vrijednosna usklađenja dugotrajne materijalne i nematerijalne imovine | H10: =IFERROR(D10/C10*100,) -> 0 | I10: =IFERROR(F10/E10*100,) -> 0 | J10: =IFERROR(F10/D10*100,) -> 0 | K10: =IFERROR(E10/C10*100,) -> 0 | L10: =IFERROR(G10/E10*100,) -> 0 | M10: =IFERROR(G10/F10*100,) -> 0
A11: c) | B11: Dobici i gubici od prodaje i nerealizirani dobici i gubici i vrijednosno usklađenje financijske imovine | H11: 0 | I11: 0 | J11: 0 | K11: 0 | L11: 0 | M11: 0
A12: d) | B12: Prihodi od kamata i dividendi | C12: -0.52 | D12: -0.066 | E12: -0.6 | F12: -0.071 | G12: -0.1 | H12: 12.69230769 | I12: 11.83333333 | J12: 107.5757576 | K12: 115.3846154 | L12: 16.66666667 | M12: 140.8450704
A13: e) | B13: Rashodi od kamata | C13: 55.85 | D13: 90.365 | E13: 89.744 | F13: 120.017 | G13: 120 | H13: 161.7994628 | I13: 133.7326172 | J13: 132.8135893 | K13: 160.687556 | L13: 133.7136745 | M13: 99.98583534
A14: f) | B14: Rezerviranja | C14: - | D14: -0.453 | F14: -3.015 | G14: 13.213 | H14: 0 | I14: 0 | J14: 665.5629139 | K14: 0 | L14: 0 | M14: -438.2421227
A15: g) | B15: Tečajne razlike (nerealizirane) | C15: - | D15: 0 | E15: 0 | F15: 0 | G15: 0 | H15: 0 | I15: 0 | J15: 0 | K15: 0 | L15: 0 | M15: 0
A16: h) | B16: Ostala usklađenja za nenovčane transakcije i nerealizirane dobitke i gubitke | C16: - | D16: =SUM(F16)/7.5345 -> 0 | H16: 0 | I16: 0 | J16: 0 | K16: 0 | L16: 0 | M16: 0
A17: I. | B17: Povećanje ili smanjenje novčanih tokova prije promjena u radnom kapitalu | D17: =D7+D8 -> 799.384 | F17: 884.179 | H17: 0 | I17: 0 | J17: 110.6075428 | K17: 0 | L17: 0 | M17: 0
A18: 3. | B18: Promjene u radnom kapitalu | D18: =SUM(D19:D22) -> 655.036 | F18: 1542.56 | G18: 12325.619 | H18: 0 | I18: 0 | J18: 235.4924004 | K18: 0 | L18: 0 | M18: 799.0366015
A19: a) | B19: Povećanje ili smanjenje kratkoročnih obveza | C19: -369.16 | D19: 750.768 | E19: 11592.188 | F19: 752.144 | G19: 677.198 | H19: =IFERROR(D19/C19*100,) -> -203.3719796 | I19: =IFERROR(F19/E19*100,) -> 6.488369581 | J19: =IFERROR(F19/D19*100,) -> 100.183279 | K19: =IFERROR(E19/C19*100,) -> -3140.152779 | L19: =IFERROR(G19/E19*100,) -> 5.841847976 | M19: =IFERROR(G19/F19*100,) -> 90.03568466
A20: b) | B20: Povećanje ili smanjenje kratkotrajnih potraživanja | C20: 109.51 | D20: 3.118 | E20: -39.621 | F20: 120.458 | G20: 10.524 | H20: =IFERROR(D20/C20*100,) -> 2.847228564 | I20: =IFERROR(F20/E20*100,) -> -304.025643 | J20: =IFERROR(F20/D20*100,) -> 3863.309814 | K20: =IFERROR(E20/C20*100,) -> -36.18025751 | L20: =IFERROR(G20/E20*100,) -> -26.56167184 | M20: =IFERROR(G20/F20*100,) -> 8.7366551
A21: c) | B21: Povećanje ili smanjenje zaliha | C21: -0.74 | D21: 2.249 | E21: 8.134 | F21: 6.731 | G21: 45.1 | H21: -303.9189189 | I21: 82.75141382 | J21: 299.2885727 | K21: -1099.189189 | L21: 554.462749 | M21: 670.0341703
A22: d) | B22: Ostala povećanja ili smanjenja radnog kapitala | C22: 567.78 | D22: -101.099 | E22: -112.151 | F22: 663.227 | G22: 11592.797 | H22: -17.80601641 | I22: -591.3696712 | J22: -656.0173691 | K22: -19.752545 | L22: -10336.77542 | M22: 1747.938036
A23: II. | B23: Novac iz poslovanja | D23: =SUM(D17+D18) -> 1454.42 | E23: 12949.341 | F23: 2426.739 | G23: 12926.641 | H23: =IFERROR(D23/C23*100,) -> 0 | I23: =IFERROR(F23/E23*100,) -> 18.74025095 | J23: =IFERROR(F23/D23*100,) -> 166.8526973 | K23: =IFERROR(E23/C23*100,) -> 0 | L23: =IFERROR(G23/E23*100,) -> 99.8247015 | M23: =IFERROR(G23/F23*100,) -> 532.6753722
A24: 4. | B24: Novčani izdaci za kamate | C24: -55.85 | D24: -65.284 | E24: -85.701 | F24: -119.796 | G24: -120.2 | H24: =IFERROR(D24/C24*100,) -> 116.8916741 | I24: =IFERROR(F24/E24*100,) -> 139.7836665 | J24: =IFERROR(F24/D24*100,) -> 183.4997856 | K24: =IFERROR(E24/C24*100,) -> 153.4485228 | L24: =IFERROR(G24/E24*100,) -> 140.2550729 | M24: =IFERROR(G24/F24*100,) -> 100.33724
A25: 5. | B25: Plaćeni porez na dobit | H25: 0 | I25: 0 | J25: 0 | K25: 0 | L25: 0 | M25: 0
A26: A. NETO NOVČANI TOKOVI OD POSLOVNIH AKTIVNOSTI | C26: -55.85 | D26: =SUM(D23:D25) -> 1389.136 | E26: 12863.64 | F26: 2306.943 | G26: 12806.441 | H26: -2487.26231 | I26: 17.93382744 | J26: 166.0703488 | K26: -23032.47986 | L26: 99.55534359 | M26: 555.1260261
A27: NOVČANI TOKOVI OD INVESTICIJSKIH AKTIVNOSTI
A28: 1. | B28: Novčani primici od prodaje dugotrajne materijalne i nematerijalne imovine | C28: 0 | D28: 0.147 | F28: 0.147 | G28: 11.918 | H28: 0 | I28: 0 | J28: 100 | K28: 0 | L28: 0 | M28: 8107.482993
A29: 2. | B29: Novčani primici od prodaje financijskih instrumenata | H29: 0 | I29: 0 | J29: 0 | K29: 0 | L29: 0 | M29: 0
A30: 3. | B30: Novčani primici od kamata | C30: 0.52 | D30: 0.066 | E30: 0.6 | F30: 0.066 | G30: 0.05 | H30: 12.69230769 | I30: 11 | J30: 100 | K30: 115.3846154 | L30: 8.333333333 | M30: 75.75757576
A31: 4. | B31: Novčani primici od dividendi | H31: 0 | I31: 0 | J31: 0 | K31: 0 | L31: 0 | M31: 0
A32: 5. | B32: Novčani primici s osnove povrata danih zajmova i štednih uloga | H32: 0 | I32: 0 | J32: 0 | K32: 0 | L32: 0 | M32: 0
A33: 6. | B33: Ostali novčani primici od investicijskih aktivnosti | C33: 8000 | D33: 0 | H33: 0 | I33: 0 | J33: 0 | K33: 0 | L33: 0 | M33: 0
A34: II. | B34: Ukupno novčani primici od investicijskih aktivnosti | C34: 8000.52 | D34: =SUM(D28:D33) -> 0.213 | E34: 0.6 | F34: 0.213 | G34: 11.968 | H34: 0.002662326949 | I34: 35.5 | J34: 100 | K34: 0.007499512532 | L34: 1994.666667 | M34: 5618.779343
A35: 1. | B35: Novčani izdaci za kupnju dugotrajne materijalne i nematerijalne imovine | C35: -8000 | D35: -1104.144 | E35: -12467.653 | F35: -2000 | G35: -12729.389 | H35: 13.8018 | I35: 16.04151158 | J35: 181.1357939 | K35: 155.8456625 | L35: 102.0993205 | M35: 636.46945
A36: 2. | B36: Novčani izdaci za stjecanje financijskih instrumenata | H36: 0 | I36: 0 | J36: 0 | K36: 0 | L36: 0 | M36: 0
A37: 3. | B37: Novčani izdaci s osnove danih zajmova i štednih uloga | F37: -4.88 | G37: 0 | H37: 0 | I37: 0 | J37: 0 | K37: 0 | L37: 0 | M37: 0
A38: 4. | B38: Stjecanje ovisnog društva, umanjeno za stečeni novac | H38: 0 | I38: 0 | J38: 0 | K38: 0 | L38: 0 | M38: 0
A39: 5. | B39: Ostali novčani izdaci od investicijskih aktivnosti | H39: 0 | I39: 0 | J39: 0 | K39: 0 | L39: 0 | M39: 0
A40: III. | B40: Ukupno novčani izdaci od investicijskih aktivnosti | C40: -8000 | D40: =SUM(D35:D39) -> -1104.144 | E40: -12467.653 | F40: -2004.88 | G40: -12729.389 | H40: 13.8018 | I40: 16.08065287 | J40: 181.5777652 | K40: 155.8456625 | L40: 102.0993205 | M40: 634.9202446
A41: B. NETO NOVČANI TOKOVI OD INVESTICIJSKIH AKTIVNOSTI | C41: 0.52 | D41: =D34+D40 -> -1103.931 | E41: -12467.053 | F41: -2004.667 | G41: -12717.421 | H41: -212294.4231 | I41: 16.07971828 | J41: 181.5935054 | K41: -2397510.192 | L41: 102.0082372 | M41: 634.3906993
A42: NOVČANI TOKOVI OD FINANCIJSKIH AKTIVNOSTI
A43: 1. | B43: Novčani primici od povećanja temeljnog (upisanog) kapitala | H43: 0 | I43: 0 | J43: 0 | K43: 0 | L43: 0 | M43: 0
A44: 2. | B44: Novčani primici od izdavanja vlasničkih i dužničkih financijskih instrumenata | H44: 0 | I44: 0 | J44: 0 | K44: 0 | L44: 0 | M44: 0
A45: 3. | B45: Novčani primici od glavnice kredita, pozajmica i drugih posudbi | D45: 454.897 | F45: 217.491 | G45: 0 | H45: 0 | I45: 0 | J45: 47.81104294 | K45: 0 | L45: 0 | M45: 0
A46: 4. | B46: Ostali novčani primici od financijskih aktivnosti | H46: 0 | I46: 0 | J46: 0 | K46: 0 | L46: 0 | M46: 0
A47: IV. | B47: Ukupno novčani primici od financijskih aktivnosti | C47: =SUM(C43:C46) -> 0 | D47: =SUM(D43:D46) -> 454.897 | E47: 0 | F47: 217.491 | G47: 0 | H47: 0 | I47: 0 | J47: 47.81104294 | K47: 0 | L47: 0 | M47: 0
A48: 1. | B48: Novčani izdaci za otplatu glavnice kredita, pozajmica i drugih posudbi i dužničkih financijskih instrumenata | D48: -405.501 | E48: -217.491 | F48: -238.39 | G48: -123.02 | H48: 0 | I48: 109.6091333 | J48: 58.78900422 | K48: 0 | L48: 56.56326009 | M48: 51.60451361
A49: 2. | B49: Novčani izdaci za isplatu dividendi | H49: 0 | I49: 0 | J49: 0 | K49: 0 | L49: 0 | M49: 0
A50: 3. | B50: Novčani izdaci za financijski najam | D50: -14.96 | E50: 0 | F50: -6.955 | G50: -2.972 | H50: 0 | I50: 0 | J50: 46.49064171 | K50: 0 | L50: 0 | M50: 42.73184759
A51: 4. | B51: Novčani izdaci za otkup vlastitih dionica i smanjenje temeljnog (upisanog) kapitala | H51: 0 | I51: 0 | J51: 0 | K51: 0 | L51: 0 | M51: 0
A52: 5. | B52: Ostali novčani izdaci od financijskih aktivnosti | D52: -11 | F52: -11 | G52: -11 | H52: 0 | I52: 0 | J52: 100 | K52: 0 | L52: 0 | M52: 100
A53: V. | B53: Ukupno novčani izdaci od financijskih aktivnosti | C53: =SUM(C48:C52) -> 0 | D53: =SUM(D48:D52) -> -431.461 | E53: -217.491 | F53: -256.345 | G53: -136.992 | H53: 0 | I53: 117.8646473 | J53: 59.4132494 | K53: 0 | L53: 62.98743396 | M53: 53.4404806
A54: C. NETO NOVČANI TOKOVI OD FINANCIJSKIH AKTIVNOSTI | C54: =C47+C53 -> 0 | D54: =D47+D53 -> 23.436 | E54: -217.491 | F54: -38.854 | G54: -136.992 | H54: 0 | I54: 17.86464727 | J54: -165.7876771 | K54: 0 | L54: 62.98743396 | M54: 352.5814588
A55: 1. | B55: Nerealizirane tečajne razlike po novcu i novčanim ekvivalentima | H55: =IFERROR(D55/C55*100,) -> 0 | I55: =IFERROR(F55/E55*100,) -> 0 | J55: =IFERROR(F55/D55*100,) -> 0 | K55: =IFERROR(E55/C55*100,) -> 0 | L55: =IFERROR(G55/E55*100,) -> 0 | M55: =IFERROR(G55/F55*100,) -> 0
A56: D. NETO POVEĆANJE ILI SMANJENE NOVČANIH TOKOVA | C56: 51.208 | D56: =D26+D41+D54+D55 -> 308.641 | E56: 179.096 | F56: 263.422 | G56: -47.967 | H56: 602.7202781 | I56: 147.0842453 | J56: 85.3489977 | K56: 349.7422278 | L56: -26.78284272 | M56: -18.20918526
A57: E. NOVAC I NOVČANI EKVIVALENTI NA POČETKU RAZDOBLJA | C57: 300.793 | D57: 50.904 | E57: 50.904 | F57: 359.543 | G57: 622.969 | H57: 16.92326617 | I57: 706.3158102 | J57: 706.3158102 | K57: 16.92326617 | L57: 1223.811488 | M57: 173.2668971
A58: F. NOVAC I NOVČANI EKVIVALENTI NA KRAJU RAZDOBLJA | C58: 352.001 | D58: =D57+D56 -> 359.545 | E58: 230 | F58: 622.965 | G58: 575.002 | H58: 102.1431757 | I58: 270.8543478 | J58: 173.2648208 | K58: 65.34072346 | L58: 250.0008696 | M58: 92.30085157

Sheet MFIN
B2: DODATNE STAVKE
B4: Obveznik: | C4: =IF(ISBLANK(Podloga!B2),"",Podloga!B2) -> Zračna luka Osijek d.o.o.
C7: =Podloga!B36 -> 2024. planirano | D7: =Podloga!C36 -> 2024. ostvareno | E7: =Podloga!D36 -> 2025. planirano | F7: =Podloga!E36 -> 2025. procijenjeno | G7: =Podloga!F36 -> 2026. planirano
A8: R.Br. | B8: RAČUN DOBITI I GUBITKA - dodatna razrada
A9: 1. | B9: Operativni prihodi (od 1.1. do 1.n.) - prihodi iz redovnog poslovanja | C9: =SUM(C10:C15) -> 1276.894 | D9: =SUM(D10:D15) -> 1297.798 | E9: 1726.43 | F9: 1584.227 | G9: 2082.805
A10: 1.1. | B10: Prihodi od prodaje | C10: 1276.894 | D10: 1297.798 | E10: 1726.43 | F10: 1584.227 | G10: 2082.805
A11: 1.2.
A12: 1.3.
A13: 1.4.
A14: 1.5.
A15: 1.n.
A16: 2. | B16: Neoperativni prihodi (od 2.1 do 2.n.) - jednokratni | C16: =SUM(C17:C22) -> 0 | D16: =SUM(D17:D22) -> 0 | E16: =SUM(E17:E22) -> 0 | F16: =SUM(F17:F22) -> 0 | G16: =SUM(G17:G22) -> 0
A17: 2.1.
A18: 2.2.
A19: 2.3.
A20: 2.4.
A21: 2.5.
A22: 2.n.
A23: 3. | B23: Državne potpore | C23: 2169 | D23: 2516.593 | E23: 2265.17 | F23: 2428.2 | G23: 2720
A24: I. | B24: Ukupni poslovni prihodi (1.+2.+3.) | C24: =C9+C16+C23 -> 3445.894 | D24: =D9+D16+D23 -> 3814.391 | E24: 3991.6 | F24: 4012.427 | G24: 4802.805
B25: PROVJERA | C25: =(C9+C16+C23)-RDG!C5 -> 0 | D25: =(D9+D16+D23)-RDG!D5 -> 0 | E25: =(E9+E16+E23)-RDG!E5 -> 0 | F25: =(F9+F16+F23)-RDG!F5 -> 0 | G25: =(G9+G16+G23)-RDG!G5 -> 0
A26: 1. | B26: Operativni poslovni rashodi (od 1.1. do 1.n.) | C26: =SUM(C27:C32) -> 1972.16 | D26: =SUM(D27:D32) -> 1812.088 | E26: =SUM(E27:E32) -> 1980.48 | F26: =SUM(F27:F32) -> 1659.168 | G26: =SUM(G27:G32) -> 2491.903
A27: 1.1. | B27: Materijalni troškovi | C27: 1423.35 | D27: 1512.563 | E27: 1697.98 | F27: 1390.637 | G27: 2105.259
A28: 1.2. | B28: Ostali troškovi | C28: 285.39 | D28: 292.257 | E28: 253.5 | F28: 266.287 | G28: 378.644
A29: 1.3. | B29: Ostali poslovni rashodi | C29: 263.42 | D29: 7.268 | E29: 29 | F29: 2.244 | G29: 8
A30: 1.4.
A31: 1.5.
A32: 1.n.
A33: 2. | B33: Neoperativni poslovni rashodi (od 2.1 do 2.n.) | C33: =SUM(C34:C39) -> 0 | D33: =SUM(D34:D39) -> 0 | E33: =SUM(E34:E39) -> 0 | F33: =SUM(F34:F39) -> 0 | G33: =SUM(G34:G39) -> 0
A34: 2.1.
A35: 2.2.
A36: 2.3.
A37: 2.4.
A38: 2.5.
A39: 2.n.
A40: 3. | B40: Troškovi osoblja | C40: =RDG!C17 -> 981.454 | D40: =RDG!D17 -> 1117.044 | E40: =RDG!E17 -> 1509.68 | F40: =RDG!F17 -> 1400.892 | G40: =RDG!G17 -> 1649.73
A41: 4. | B41: Amortizacija | C41: =RDG!C21 -> 425 | D41: =RDG!D21 -> 372.131 | E41: =RDG!E21 -> 372 | F41: =RDG!F21 -> 377.631 | G41: =RDG!G21 -> 420
A42: 5. | B42: Promjena vrijednosti i rezerviranja | C42: =RDG!C12+RDG!C23+RDG!C26 -> 0 | D42: =RDG!D12+RDG!D23+RDG!D26 -> 85.14 | E42: =RDG!E12+RDG!E23+RDG!E26 -> 0 | F42: =RDG!F12+RDG!F23+RDG!F26 -> 65.211 | G42: =RDG!G12+RDG!G23+RDG!G26 -> 73.213
A43: II. | B43: Ukupni poslovni rashodi | C43: =C26+C33+C40+C41+C42 -> 3378.614 | D43: =D26+D33+D40+D41+D42 -> 3386.403 | E43: 3862.16 | F43: 3502.902 | G43: 4634.846
B44: PROVJERA | C44: =(C26+C33+C40+C41+C42)-RDG!C11 -> 0 | D44: =(D26+D33+D40+D41+D42)-RDG!D11 -> 0 | E44: =(E26+E33+E40+E41+E42)-RDG!E11 -> 0 | F44: =(F26+F33+F40+F41+F42)-RDG!F11 -> 0 | G44: =(G26+G33+G40+G41+G42)-RDG!G11 -> 0
A45: III. | B45: UKUPNI FINANCIJSKI PRIHODI (od 1. do 4.) | C45: =C46+C51+C52+C53 -> 0.54 | D45: =D46+D51+D52+D53 -> 0.137 | E45: =E46+E51+E52+E53 -> 271.17 | F45: =F46+F51+F52+F53 -> 0.109 | G45: =G46+G51+G52+G53 -> 360.6
A46: 1. | B46: Prihodi od kamata (po investiciji) (od 1.1. do 1. n.) | C46: =SUM(C47:C50) -> 0.54 | D46: =SUM(D47:D50) -> 0.137 | E46: =SUM(E47:E50) -> 271.17 | F46: =SUM(F47:F50) -> 0.109 | G46: =SUM(G47:G50) -> 360.6
A47: 1.1. | B47: Ostali prihodi s osnove kamata, tečajne razlike i ostali financijski prihodi | C47: 0.54 | D47: 0.137 | E47: =SUM(E48:E57) -> 271.17 | F47: 0.109 | G47: 360.6
A48: 1.2.
A49: 1.3.
A50: 1.n.
A51: 2. | B51: Pozitivne tečajne razlike
A52: 3. | B52: Ostali financijski prihodi (core) - iz redovnog poslovanja
A53: 4. | B53: Ostali financijski prihodi (non-core) - jednokratni
A54: IV. | B54: UKUPNI FINANCIJSKI RASHODI (od 1. do 4.) | C54: =C55+C60+C61+C62 -> 62.8 | D54: =D55+D60+D61+D62 -> 90.716 | E54: =E55+E60+E61+E62 -> 90.39 | F54: =F55+F60+F61+F62 -> 120.017 | G54: =G55+G60+G61+G62 -> 120.2
A55: 1. | B55: Rashodi od kamata (po obvezi) (od 1.1. do 1. n.) | C55: =SUM(C56:C59) -> 62.8 | D55: =SUM(D56:D59) -> 90.716 | E55: =SUM(E56:E59) -> 90.39 | F55: =SUM(F56:F59) -> 120.017 | G55: =SUM(G56:G59) -> 120.2
A56: 1.1. | B56: Rashodi s osnove kamata i slični rashodi | C56: 62.8 | D56: 90.716 | E56: 90.39 | F56: 120.017 | G56: 120.2
A57: 1.2.
A58: 1.3.
A59: 1.n.
A60: 2. | B60: Negativne tečajne razlike
A61: 3. | B61: Ostali financijski rashodi (core) - iz redovnog poslovanja
A62: 4. | B62: Ostali financijski rashodi (non-core) - jednokratni
A63: V. | B63: NETO FINANCIJSKI PRIHODI/RASHODI (III.-IV.) | C63: =C45-C54 -> -62.26 | D63: =D45-D54 -> -90.579 | E63: =E45-E54 -> 180.78 | F63: =F45-F54 -> -119.908 | G63: =G45-G54 -> 240.4
B64: PROVJERA | C64: =(C45+C54)-(RDG!C34+RDG!C45) -> 0 | D64: =(D45+D54)-(RDG!D34+RDG!D45) -> 0 | E64: =(E45+E54)-(RDG!E34+RDG!E45) -> 270.57 | F64: =(F45+F54)-(RDG!F34+RDG!F45) -> 0 | G64: =(G45+G54)-(RDG!G34+RDG!G45) -> 360.45
B66: INVESTICIJSKA ULAGANJA
B67: Isplata za ukupna investicijska ulaganja (od 1.1. do 1.n) | C67: =SUM(C68:C72) -> 0 | D67: =SUM(D68:D72) -> 0 | E67: 0 | F67: 0 | G67: 0
A68: 1.1. | B68: otklanjanje nalaza Agencije za civilno zrakoplovstvo radi sigurnosti
A69: 1.2. | B69: Segment / naziv investicije
A70: 1.3. | B70: Segment / naziv investicije
A71: 1.4. | B71: Segment / naziv investicije
A72: 1.n. | B72: Segment / naziv investicije
B73: Izvori financiranja investicija (od 1.1. do 1.6.) | C73: =SUM(C74:C79) -> 0 | D73: =SUM(D74:D79) -> 0 | E73: 0 | F73: 0 | G73: 0
A74: 1.1. | B74: Vlastita sredstva
A75: 1.2. | B75: Sredstva iz Državnog proračuna
A76: 1.3. | B76: Banke i ostale financijske institucije
A77: 1.4. | B77: Međunarodne financijske institucije
A78: 1.5. | B78: Nefinancijske institucije
A79: 1.6 | B79: EU fondovi
B81: OSTALE STAVKE
B82: Prosjek broja zaposlenih tijekom razdoblja | C82: =Podloga!B37 -> 55 | D82: =Podloga!C37 -> 58 | E82: =Podloga!D37 -> 58 | F82: =Podloga!E37 -> 58 | G82: =Podloga!F37 -> 59
B83: Broj zaposlenih prema satima rada
B84: Dugotrajna financijska imovina
B85: Od čega: Dani dugoročni depoziti
B86: Od čega: Likvidne dionice / ostalo
B87: Od čega: Ostalo
B88: Kratkotrajna financijska imovina
B89: Od čega: Dani kratkorični depoziti
B90: Od čega: Likvidne dionice / ostalo
B91: Od čega: Ostalo
B92: Dokapitalizacija
B93: Promjene temeljnog kapitala
B94: (+) Dokapitalizacija
B95: (-) Smanjenje / otpis
B96: Isplaćena dividenda
B99: * Ukoliko kod određenih kategorija postoji veći broj stavaka, moguće je ubacivati dodatne redove

Sheet _TM_NT- indirektna metoda (2) (hidden)
A1: Left | B1: Top | C1: Right | D1: Bottom | E1: Ref
A2: 11 | B2: 2 | C2: 11 | D2: 3 | E2: $K$2:$K$3

Sheet _TM_Dug (hidden)
A1: Left | B1: Top | C1: Right | D1: Bottom | E1: Ref
A2: 1 | B2: 41 | C2: 13 | D2: 41 | E2: $A$41:$M$41
A3: 15 | B3: 2 | C3: 17 | D3: 41 | E3: $O$2:$Q$41

Sheet _TM_Sponzorstva i donacije (hidden)
A1: Left | B1: Top | C1: Right | D1: Bottom | E1: Ref
A2: 2 | B2: 2 | C2: 5 | D2: 31 | E2: $B$2:$E$31

Sheet _TM_ULaganja (hidden)
A1: Left | B1: Top | C1: Right | D1: Bottom | E1: Ref
A2: 2 | B2: 2 | C2: 8 | D2: 44 | E2: $B$2:$H$44
A3: 2 | B3: 45 | C3: 8 | D3: 45 | E3: $B$45:$H$45

Sheet _TM_Građ. objekti i zemljišta (hidden)
A1: Left | B1: Top | C1: Right | D1: Bottom | E1: Ref
A2: 2 | B2: 2 | C2: 9 | D2: 70 | E2: $B$2:$I$70

Sheet Dashboard (hidden)
A1: Dashboard:
A2: Prikaz ključnih pokazatelja poslovanja | B2: =HYPERLINK("#'Ključni poslovni pokazatelji'!A1","Ključni poslovni pokazatelji") -> Ključni poslovni pokazatelji
A3: Analiza izvještaja o financijskom položaju | B3: =HYPERLINK("#'Financijski položaj'!A1","Financijski položaj") -> Financijski položaj
A4: Analiza računa dobiti i gubitka | B4: =HYPERLINK("#'RDG 1'!A1","RDG 1") -> RDG 1
B5: =HYPERLINK("#'RDG 2'!A1","RDG 2") -> RDG 2
A6: Analiza izvještaja o novčanom toku | B6: =HYPERLINK("#'Novčani tok'!A1","Izvještaj o novčanom toku ") -> Izvještaj o novčanom toku
A7: Analiza profitabilnosti | B7: =HYPERLINK("#Profitabilnost!A1","Profitabilnost") -> Profitabilnost
A8: Analiza likvidnosti | B8: =HYPERLINK("#Likvidnost!A1","Likvidnost") -> Likvidnost
A9: Analiza aktivnosti | B9: =HYPERLINK("#Aktivnost!A1","Aktivnost") -> Aktivnost
A10: Analiza zaduženosti | B10: =HYPERLINK("#Zaduženost!A1","Zaduženost") -> Zaduženost

Sheet _TM_Profit and loss (hidden)
A1: Left | B1: Top | C1: Right | D1: Bottom | E1: Ref
A2: 2 | B2: 17 | C2: 13 | D2: 17 | E2: $B$17:$M$17
A3: 2 | B3: 17 | C3: 13 | D3: 17 | E3: $B$17:$M$17

Sheet Ključni poslovni pokazatelji (hidden)
B1: =Naslovna!B3&" - "&Naslovna!I2 -> Ministarstvo državne imovine - Godišnji financijski plan poslovanja
B2: SAŽETI PRIKAZ KLJUČNIH FINANCIJSKIH POKAZATELJA
B3: Društvo: | C3: =Podloga!B2 -> Zračna luka Osijek d.o.o.
B4: Tip dokumenta: | C4: =Naslovna!B8 -> Godišnji financijski plan poslovanja
B5: Jedinstveni ključni pokazatelji poslovanja
D6: =LEFT(Podloga!C36,10)&"." -> 2024. ostv. | E6: =LEFT(Podloga!E36,10)&"." -> 2025. proc. | G6: =LEFT(Podloga!B36,10)&"." -> 2024. plan. | H6: =LEFT(Podloga!D36,10)&"." -> 2025. plan. | I6: =LEFT(Podloga!F36,10)&"." -> 2026. plan.
B7: Glavni financijski pokazatelji (u tisućama kuna) | C7: OSTVARENO | F7: PLANIRANO
B8: Prihodi | D8: =IFERROR(RDG!D57,) -> 3814.528 | E8: =IFERROR(RDG!F57,) -> 4012.536 | G8: =IFERROR(RDG!C57,) -> 3446.434 | H8: =IFERROR(RDG!E57,) -> 3992.2 | I8: =IFERROR(RDG!G57,) -> 4802.955
B9: Imovina | D9: =IFERROR(Bilanca!D68,) -> 14667.74137 | E9: =IFERROR(Bilanca!F68,) -> 16934.84466 | G9: =IFERROR(Bilanca!C68,) -> 20409.838 | H9: =IFERROR(Bilanca!E68,) -> 27049.161 | I9: =IFERROR(Bilanca!G68,) -> 24936.626
B10: EBITDA | D10: =IFERROR((RDG!D59+RDG!D46+RDG!D48+RDG!D21),) -> 799.905 | E10: =IFERROR((RDG!F59+RDG!F46+RDG!F48+RDG!F21),) -> 887.044 | G10: =IFERROR((RDG!C59+RDG!C46+RDG!C48+RDG!C21),) -> 485.87 | H10: =IFERROR((RDG!E59+RDG!E46+RDG!E48+RDG!E21),) -> 501.39 | I10: =IFERROR((RDG!G59+RDG!G46+RDG!G48+RDG!G21),) -> 587.909
B11: Dobit | D11: =IFERROR(RDG!D59,) -> 337.409 | E11: =IFERROR(RDG!F59,) -> 389.617 | G11: =IFERROR(RDG!C59,) -> 5.02 | H11: =IFERROR(RDG!E59,) -> 39.65 | I11: =IFERROR(RDG!G59,) -> 47.909
B12: Prihod od osnovne djelatnosti po zaposlenom | D12: =IFERROR(RDG!D5/Podloga!C37,) -> 0 | E12: =IFERROR(RDG!F5/Podloga!E37,) -> 0 | G12: =IFERROR(RDG!C5/Podloga!B37,) -> 0 | H12: =IFERROR(RDG!E5/Podloga!D37,) -> 0 | I12: =IFERROR(RDG!G5/Podloga!F37,) -> 0
B13: Pokazatelji profitabilnosti | C13: OSTVARENO | F13: PLANIRANO
B14: ROA | D14: =IFERROR(RDG!D63/Bilanca!D68,) -> 0.02300347351 | E14: =IFERROR(RDG!F63/Bilanca!F68,) -> 0.02300682456 | G14: =IFERROR(RDG!C63/Bilanca!C68,) -> 0.000245959816 | H14: =IFERROR(RDG!E63/Bilanca!E68,) -> 0.001465849532 | I14: =IFERROR(RDG!G63/Bilanca!G68,) -> 0.001921230242
B15: ROE | D15: =IFERROR((RDG!D83/Bilanca!D$75),) -> 0.2933419925 | E15: =IFERROR((RDG!F83/Bilanca!F$75),) -> 0.2530241759 | G15: =IFERROR((RDG!C83/Bilanca!C$75),) -> 0.00551875773 | H15: =IFERROR((RDG!E83/Bilanca!E$75),) -> 0.04550875111 | I15: =IFERROR((RDG!G83/Bilanca!G$75),) -> 0.0301741458
B16: EBITDA Marža | D16: =IFERROR((RDG!D59+RDG!D46+RDG!D48+RDG!D21)/RDG!D57,) -> 0.2096996011 | E16: =IFERROR((RDG!F59+RDG!F46+RDG!F48+RDG!F21)/RDG!F57,) -> 0.2210681723 | G16: =IFERROR((RDG!C59+RDG!C46+RDG!C48+RDG!C21)/RDG!C57,) -> 0.1409776018 | H16: =IFERROR((RDG!E59+RDG!E46+RDG!E48+RDG!E21)/RDG!E57,) -> 0.1255924052 | I16: =IFERROR((RDG!G59+RDG!G46+RDG!G48+RDG!G21)/RDG!G57,) -> 0.1224056857
B17: EBIT Marža | D17: =IFERROR((RDG!D59+RDG!D46+RDG!D48)/RDG!D57,) -> 0.1121433635 | E17: =IFERROR((RDG!F59+RDG!F46+RDG!F48)/RDG!F57,) -> 0.1269553719 | G17: =IFERROR((RDG!C59+RDG!C46+RDG!C48)/RDG!C57,) -> 0.01766173384 | H17: =IFERROR((RDG!E59+RDG!E46+RDG!E48)/RDG!E57,) -> 0.03241070087 | I17: =IFERROR((RDG!G59+RDG!G46+RDG!G48)/RDG!G57,) -> 0.03495951971
B18: Neto profitna marža | D18: =IFERROR(RDG!D63/RDG!D57,) -> 0.08845366976 | E18: =IFERROR(RDG!F63/RDG!F57,) -> 0.09709993879 | G18: =IFERROR(RDG!C63/RDG!C57,) -> 0.001456578017 | H18: =IFERROR(RDG!E63/RDG!E57,) -> 0.009931867141 | I18: =IFERROR(RDG!G63/RDG!G57,) -> 0.009974900868
B19: Pokazatelji likvidnosti | C19: OSTVARENO | F19: PLANIRANO
B20: Tekuća likvidnost | D20: =IFERROR(Bilanca!D40/Bilanca!D115,) -> 1.050573781 | E20: =IFERROR(Bilanca!F40/Bilanca!F115,) -> 1.528496702 | G20: =IFERROR(Bilanca!C40/Bilanca!C115,) -> 0.03935907498 | H20: =IFERROR(Bilanca!E40/Bilanca!E115,) -> 0.664706258 | I20: =IFERROR(Bilanca!G40/Bilanca!G115,) -> 1.396047895
B21: Trenutna likvidnost | D21: =IFERROR(Bilanca!D66/Bilanca!D115,) -> 0.5336928464 | E21: =IFERROR(Bilanca!F66/Bilanca!F115,) -> 0.9247089174 | G21: =IFERROR(Bilanca!C66/Bilanca!C115,) -> 0.02107689578 | H21: =IFERROR(Bilanca!E66/Bilanca!E115,) -> 0.2997301126 | I21: =IFERROR(Bilanca!G66/Bilanca!G115,) -> 0.9927743294
B22: Financijska stabilnost | D22: =IFERROR(Bilanca!D5/(Bilanca!D75+Bilanca!D103),) -> 3.598057396 | E22: =IFERROR(Bilanca!F5/(Bilanca!F75+Bilanca!F103),) -> 3.529483794 | G22: =IFERROR(Bilanca!C5/(Bilanca!C75+Bilanca!C103),) -> 5.325501841 | H22: =IFERROR(Bilanca!E5/(Bilanca!E75+Bilanca!E103),) -> 7.312800471 | I22: =IFERROR(Bilanca!G5/(Bilanca!G75+Bilanca!G103),) -> 5.260835555
B23: Pokazatelji aktivnosti | C23: OSTVARENO | F23: PLANIRANO
B24: Obrtaj imovine | D24: =IFERROR(RDG!D57/Bilanca!D68,) -> 0.2600623984 | E24: =IFERROR(RDG!F57/Bilanca!F68,) -> 0.2369396402 | G24: =IFERROR(RDG!C57/Bilanca!C68,) -> 0.1688614089 | H24: =IFERROR(RDG!E57/Bilanca!E68,) -> 0.1475905297 | I24: =IFERROR(RDG!G57/Bilanca!G68,) -> 0.1926064496
B25: Obrtaj potraživanja | D25: =IFERROR(((RDG!D6+RDG!D7)/(Bilanca!D51)),) -> 0 | E25: =IFERROR(((RDG!F6+RDG!F7)/(Bilanca!F51)),) -> 0 | G25: =IFERROR(((RDG!C6+RDG!C7)/(Bilanca!C51)),) -> 0 | H25: =IFERROR(((RDG!E6+RDG!E7)/(Bilanca!E51)),) -> 0 | I25: =IFERROR(((RDG!G6+RDG!G7)/(Bilanca!G51)),) -> 0
B26: Dani potraživanja | D26: =IFERROR(365/D25,) -> 0 | E26: =IFERROR(365/E25,) -> 0 | G26: =IFERROR(365/G25,) -> 0 | H26: =IFERROR(365/H25,) -> 0 | I26: =IFERROR(365/I25,) -> 0
B27: Pokazatelji zaduženosti | C27: OSTVARENO | F27: PLANIRANO
B28: Koeficijent zaduženosti | D28: =IFERROR(((Bilanca!D96+Bilanca!D103+Bilanca!D115+Bilanca!D130)/Bilanca!D68),) -> 0.9215815489 | E28: =IFERROR(((Bilanca!F96+Bilanca!F103+Bilanca!F115+Bilanca!F130)/Bilanca!F68),) -> 0.9090724072 | G28: =IFERROR(((Bilanca!C96+Bilanca!C103+Bilanca!C115+Bilanca!C130)/Bilanca!C68),) -> 0.9554321793 | H28: =IFERROR(((Bilanca!E96+Bilanca!E103+Bilanca!E115+Bilanca!E130)/Bilanca!E68),) -> 0.9677896849 | I28: =IFERROR(((Bilanca!G96+Bilanca!G103+Bilanca!G115+Bilanca!G130)/Bilanca!G68),) -> 0.9363286356
B29: Koeficijent vlastitog financiranja | D29: =IFERROR((Bilanca!D75/Bilanca!D68),) -> 0.07841861749 | E29: =IFERROR((Bilanca!F75/Bilanca!F68),) -> 0.09092737671 | G29: =IFERROR((Bilanca!C75/Bilanca!C68),) -> 0.04456796766 | H29: =IFERROR((Bilanca!E75/Bilanca!E68),) -> 0.03221027817 | I29: =IFERROR((Bilanca!G75/Bilanca!G68),) -> 0.06367140446
B30: Koeficijent financiranja | D30: =IFERROR(((Bilanca!D96+Bilanca!D103+Bilanca!D115+Bilanca!D130)/Bilanca!D75),) -> 11.75207595 | E30: =IFERROR(((Bilanca!F96+Bilanca!F103+Bilanca!F115+Bilanca!F130)/Bilanca!F75),) -> 9.997785486 | G30: =IFERROR(((Bilanca!C96+Bilanca!C103+Bilanca!C115+Bilanca!C130)/Bilanca!C75),) -> 21.43764298 | H30: =IFERROR(((Bilanca!E96+Bilanca!E103+Bilanca!E115+Bilanca!E130)/Bilanca!E75),) -> 30.04598966 | I30: =IFERROR(((Bilanca!G96+Bilanca!G103+Bilanca!G115+Bilanca!G130)/Bilanca!G75),) -> 14.70563817
B31: Odnos ukupne imovine i kapitala | D31: =IFERROR(Bilanca!D68/Bilanca!D75,) -> 12.75207383 | E31: =IFERROR(Bilanca!F68/Bilanca!F75,) -> 10.99778786 | G31: =IFERROR(Bilanca!C68/Bilanca!C75,) -> 22.43763969 | H31: =IFERROR(Bilanca!E68/Bilanca!E75,) -> 31.04599081 | I31: =IFERROR(Bilanca!G68/Bilanca!G75,) -> 15.70563754
B32: * Plavo osjenčana pozadina označava planirane vrijednosti
B66: =HYPERLINK("#Sadržaj!A1","Povratak na sadržaj") -> Povratak na sadržaj

Sheet Financijski položaj (hidden)
B1: =Naslovna!B3&" - "&Naslovna!I2 -> Ministarstvo državne imovine - Godišnji financijski plan poslovanja
B2: SAŽETI PRIKAZ IZVJEŠTAJA O FINANCIJSKOM POLOŽAJU
B4: Društvo: | D4: =Podloga!B2 -> Zračna luka Osijek d.o.o.
B5: Tip dokumenta: | D5: =Naslovna!B8 -> Godišnji financijski plan poslovanja
B6: Sastavlja se za godinu: | D6: =Podloga!B8 -> 2026
B8: Bilanca (u 000 kn)
C9: =Podloga!B36 -> 2024. planirano | D9: =Podloga!C36 -> 2024. ostvareno | F9: =Podloga!D36 -> 2025. planirano | G9: =Podloga!E36 -> 2025. procijenjeno | I9: =Podloga!F36 -> 2026. planirano
B10: Dugotrajna imovina | C10: =Bilanca!C5 -> 19752.51 | D10: =Bilanca!D5 -> 13933.87237 | E10: =D10-C10 -> -5818.63763 | F10: =Bilanca!E5 -> 26432.344 | G10: =Bilanca!F5 -> 15781.77266 | H10: =G10-F10 -> -10650.57134 | I10: =Bilanca!G5 -> 24023.211 | J10: =I10-G10 -> 8241.43834
B11: Kratkotrajna imovina | C11: =Bilanca!C40 -> 657.328 | D11: =Bilanca!D40 -> 707.76 | E11: =D11-C11 -> 50.432 | F11: =Bilanca!E40 -> 510.067 | G11: =Bilanca!F40 -> 1029.736 | H11: =G11-F11 -> 519.669 | I11: =Bilanca!G40 -> 808.57 | J11: =I11-G11 -> -221.166
B12: Ostalo | C12: =Bilanca!C67+Bilanca!C4 -> 0 | D12: =Bilanca!D67+Bilanca!D4 -> 26.109 | E12: 26.109 | F12: =Bilanca!E67+Bilanca!E4 -> 106.75 | G12: =Bilanca!F67+Bilanca!F4 -> 123.336 | H12: 16.586 | I12: =Bilanca!G67+Bilanca!G4 -> 104.845 | J12: -18.491
B13: Ukupno aktiva | C13: =SUM(C10:C12) -> 20409.838 | D13: =SUM(D10:D12) -> 14667.74137 | E13: -5742.09663 | F13: =SUM(F10:F12) -> 27049.161 | G13: =SUM(G10:G12) -> 16934.84466 | H13: -10114.31634 | I13: =SUM(I10:I12) -> 24936.626 | J13: 8001.78134
B15: Kapital i rezerve | C15: =Bilanca!C75 -> 909.625 | D15: =Bilanca!D75 -> 1150.224 | E15: 240.599 | F15: =Bilanca!E75 -> 871.261 | G15: =Bilanca!F75 -> 1539.841 | H15: 668.58 | I15: =Bilanca!G75 -> 1587.75 | J15: 47.909
B16: Rezerviranja | C16: =Bilanca!C96 -> 0 | D16: =Bilanca!D96 -> 21.65 | E16: 21.65 | F16: =Bilanca!E96 -> 0 | G16: =Bilanca!F96 -> 21.65 | H16: 21.65 | I16: =Bilanca!G96 -> 0 | J16: -21.65
B17: Dugoročne obveze | C17: =Bilanca!C103 -> 2799.417 | D17: =Bilanca!D103 -> 2722.38581 | E17: -77.03119 | F17: =Bilanca!E103 -> 2743.27 | G17: =Bilanca!F103 -> 2931.57 | H17: 188.3 | I17: =Bilanca!G103 -> 2978.675 | J17: 47.105
B18: Kratkoročne obveze | C18: =Bilanca!C115 -> 16700.799 | D18: =Bilanca!D115 -> 673.689 | E18: -16027.11 | F18: =Bilanca!E115 -> 767.357 | G18: =Bilanca!F115 -> 673.692 | H18: -93.665 | I18: =Bilanca!G115 -> 579.185 | J18: -94.507
B19: Ostalo | C19: =Bilanca!C130 -> 0 | D19: =Bilanca!D130 -> 10099.795 | E19: 10099.795 | F19: =Bilanca!E130 -> 22667.272 | G19: =Bilanca!F130 -> 11768.088 | H19: -10899.184 | I19: =Bilanca!G130 -> 19791.017 | J19: 8022.929
B20: Ukupna pasiva | C20: =SUM(C15:C19) -> 20409.841 | D20: =SUM(D15:D19) -> 14667.74381 | E20: -5742.09719 | F20: =SUM(F15:F19) -> 27049.16 | G20: =SUM(G15:G19) -> 16934.841 | H20: -10114.319 | I20: =SUM(I15:I19) -> 24936.627 | J20: 8001.786
B22: * Ostvareni rezultati se uspoređuju s planom, osim plana za slijedeću godinu koji se uspoređuje s procijenjenim rezultatom tekuće godine
B23: ** Plavo osjenčana pozadina označava planirane vrijednosti
B57: Dodatni komentari i pojašnjenja na rezultate
B68: =HYPERLINK("#Sadržaj!A1","Povratak na sadržaj") -> Povratak na sadržaj

Sheet RDG 1 (hidden)
B1: =Naslovna!B3&" - "&Naslovna!I2 -> Ministarstvo državne imovine - Godišnji financijski plan poslovanja
B2: SAŽETI PRIKAZ RAČUNA DOBITI I GUBITKA (1/2)
B4: Društvo: | C4: =Podloga!B2 -> Zračna luka Osijek d.o.o.
B5: Tip dokumenta: | C5: =Naslovna!B8 -> Godišnji financijski plan poslovanja
B6: Sastavlja se za godinu: | C6: =Podloga!B8 -> 2026
B8: Račun dobiti i gubitka (u 000 kn)
C9: =Podloga!B36 -> 2024. planirano | D9: =Podloga!C36 -> 2024. ostvareno | F9: =Podloga!D36 -> 2025. planirano | G9: =Podloga!E36 -> 2025. procijenjeno | I9: =Podloga!F36 -> 2026. planirano
B10: Poslovni prihodi | C10: =RDG!C5 -> 3445.894 | D10: =RDG!D5 -> 3814.391 | E10: =D10-C10 -> 368.497 | F10: =RDG!E5 -> 3991.6 | G10: =RDG!F5 -> 4012.427 | H10: =G10-F10 -> 20.827 | I10: =RDG!G5 -> 4802.805 | J10: =I10-G10 -> 790.378
B11: Poslovni rashodi | C11: =RDG!C11 -> 3378.614 | D11: =RDG!D11 -> 3386.403 | E11: =D11-C11 -> 7.789 | F11: =RDG!E11 -> 3862.16 | G11: =RDG!F11 -> 3502.902 | H11: =G11-F11 -> -359.258 | I11: =RDG!G11 -> 4634.846 | J11: =I11-G11 -> 1131.944
B12: Financijski i investicijski prihodi | C12: =RDG!C34+RDG!C53+RDG!C54 -> 0.54 | D12: =RDG!D34+RDG!D53+RDG!D54 -> 0.137 | E12: -0.403 | F12: =RDG!E34+RDG!E53+RDG!E54 -> 0.6 | G12: =RDG!F34+RDG!F53+RDG!F54 -> 0.109 | H12: -0.491 | I12: =RDG!G34+RDG!G53+RDG!G54 -> 0.15 | J12: 0.041
B13: Financijski i investicijski rashodi | C13: =RDG!C45+RDG!C55+RDG!C56 -> 62.8 | D13: =RDG!D45+RDG!D55+RDG!D56 -> 90.716 | E13: 27.916 | F13: =RDG!E45+RDG!E55+RDG!E56 -> 90.39 | G13: =RDG!F45+RDG!F55+RDG!F56 -> 120.017 | H13: 29.627 | I13: =RDG!G45+RDG!G55+RDG!G56 -> 120.2 | J13: 0.183
B14: Dobit/Gubitak prije oporezivanja | C14: =RDG!C59 -> 5.02 | D14: =RDG!D59 -> 337.409 | E14: 332.389 | F14: =RDG!E59 -> 39.65 | G14: =RDG!F59 -> 389.617 | H14: 349.967 | I14: =RDG!G59 -> 47.909 | J14: -341.708
B15: Porez na dobit | C15: =RDG!C62 -> 0 | D15: =RDG!D62 -> 0 | E15: 0 | F15: =RDG!E62 -> 0 | G15: =RDG!F62 -> 0 | H15: 0 | I15: =RDG!G62 -> 0 | J15: 0
B16: Neto dobit | C16: =C10-C11+C12-C13-C15 -> 5.02 | D16: =D10-D11+D12-D13-D15 -> 337.409 | E16: 332.389 | F16: =F10-F11+F12-F13-F15 -> 39.65 | G16: =G10-G11+G12-G13-G15 -> 389.617 | H16: 349.967 | I16: =I10-I11+I12-I13-I15 -> 47.909 | J16: -341.708
B18: * Ostvareni rezultati se uspoređuju s planom, osim plana za slijedeću godinu koji se uspoređuje s procijenjenim rezultatom tekuće godine
B19: ** Plavo osjenčana pozadina označava planirane vrijednosti
B63: Dodatni komentari i pojašnjenja na rezultate
B74: =HYPERLINK("#Sadržaj!A1","Povratak na sadržaj") -> Povratak na sadržaj

Sheet RDG 2 (hidden)
B1: =Naslovna!B3&" - "&Naslovna!I2 -> Ministarstvo državne imovine - Godišnji financijski plan poslovanja
B2: SAŽETI PRIKAZ RAČUNA DOBITI I GUBITKA (2/2)
B4: Društvo: | C4: =Podloga!B2 -> Zračna luka Osijek d.o.o.
B5: Tip dokumenta: | C5: =Naslovna!B8 -> Godišnji financijski plan poslovanja
B6: Sastavlja se za godinu: | C6: =Podloga!B8 -> 2026
B63: Dodatni komentari i pojašnjenja na rezultate
B75: =HYPERLINK("#Sadržaj!A1","Povratak na sadržaj") -> Povratak na sadržaj

Sheet Novčani tok (hidden)
A1: =Naslovna!B3&" - "&Naslovna!I2 -> Ministarstvo državne imovine - Godišnji financijski plan poslovanja
B2: ="SAŽETI PRIKAZ NOVČANOG TOKA PO "&(IF(Podloga!B19="Direktna","DIREKTNOJ","INDIREKTNOJ"))&" METODI" -> SAŽETI PRIKAZ NOVČANOG TOKA PO INDIREKTNOJ METODI
B4: Društvo: | C4: =Podloga!B2 -> Zračna luka Osijek d.o.o.
B5: Tip dokumenta: | C5: =Naslovna!B8 -> Godišnji financijski plan poslovanja
B6: Sastavlja se za godinu: | C6: =Podloga!B8 -> 2026
B8: Izvještaj o novčanom toku (u 000 kn)
C9: =Podloga!B36 -> 2024. planirano | D9: =Podloga!C36 -> 2024. ostvareno | F9: =Podloga!D36 -> 2025. planirano | G9: =Podloga!E36 -> 2025. procijenjeno | I9: =Podloga!F36 -> 2026. planirano
B10: Novac i novčani ekvivalenti na početku razdoblja | C10: =IF(Podloga!$B$19="Direktna",'NT dir.'!C49,'NT indir.'!C57) -> 300.793 | D10: =IF(Podloga!$B$19="Direktna",'NT dir.'!D49,'NT indir.'!D57) -> 50.904 | E10: =D10-C10 -> -249.889 | F10: =IF(Podloga!$B$19="Direktna",'NT dir.'!E49,'NT indir.'!E57) -> 50.904 | G10: =IF(Podloga!$B$19="Direktna",'NT dir.'!F49,'NT indir.'!F57) -> 359.543 | H10: =G10-F10 -> 308.639 | I10: =IF(Podloga!$B$19="Direktna",'NT dir.'!G49,'NT indir.'!G57) -> 622.969 | J10: =I10-G10 -> 263.426
B11: Neto novčani tok od poslovnih aktivnosti | C11: =IF(Podloga!$B$19="Direktna",'NT dir.'!C18,'NT indir.'!C26) -> -55.85 | D11: =IF(Podloga!$B$19="Direktna",'NT dir.'!D18,'NT indir.'!D26) -> 1389.136 | E11: 1444.986 | F11: =IF(Podloga!$B$19="Direktna",'NT dir.'!E18,'NT indir.'!E26) -> 12863.64 | G11: =IF(Podloga!$B$19="Direktna",'NT dir.'!F18,'NT indir.'!F26) -> 2306.943 | H11: =G11-F11 -> -10556.697 | I11: =IF(Podloga!$B$19="Direktna",'NT dir.'!G18,'NT indir.'!G26) -> 12806.441 | J11: =I11-G11 -> 10499.498
B12: Neto novčani tok od investicijskih aktivnosti | C12: =IF(Podloga!$B$19="Direktna",'NT dir.'!C33,'NT indir.'!C41) -> 0.52 | D12: =IF(Podloga!$B$19="Direktna",'NT dir.'!D33,'NT indir.'!D41) -> -1103.931 | E12: -1104.451 | F12: =IF(Podloga!$B$19="Direktna",'NT dir.'!E33,'NT indir.'!E41) -> -12467.053 | G12: =IF(Podloga!$B$19="Direktna",'NT dir.'!F33,'NT indir.'!F41) -> -2004.667 | H12: 10462.386 | I12: =IF(Podloga!$B$19="Direktna",'NT dir.'!G33,'NT indir.'!G41) -> -12717.421 | J12: -10712.754
B13: Neto novčani tok od financijskih aktivnosti | C13: =IF(Podloga!$B$19="Direktna",'NT dir.'!C46+'NT dir.'!C47,'NT indir.'!C54+'NT indir.'!C55) -> 0 | D13: =IF(Podloga!$B$19="Direktna",'NT dir.'!D46+'NT dir.'!D47,'NT indir.'!D54+'NT indir.'!D55) -> 23.436 | E13: 23.436 | F13: =IF(Podloga!$B$19="Direktna",'NT dir.'!E46+'NT dir.'!E47,'NT indir.'!E54+'NT indir.'!E55) -> -217.491 | G13: =IF(Podloga!$B$19="Direktna",'NT dir.'!F46+'NT dir.'!F47,'NT indir.'!F54+'NT indir.'!F55) -> -38.854 | H13: 178.637 | I13: =IF(Podloga!$B$19="Direktna",'NT dir.'!G46+'NT dir.'!G47,'NT indir.'!G54+'NT indir.'!G55) -> -136.992 | J13: -98.138
B14: Novac i novčani ekvivalenti na kraju razdoblja | C14: =IF(Podloga!$B$19="Direktna",'NT dir.'!C50,'NT indir.'!C58) -> 352.001 | D14: =IF(Podloga!$B$19="Direktna",'NT dir.'!D50,'NT indir.'!D58) -> 359.545 | E14: 7.544 | F14: =IF(Podloga!$B$19="Direktna",'NT dir.'!E50,'NT indir.'!E58) -> 230 | G14: =IF(Podloga!$B$19="Direktna",'NT dir.'!F50,'NT indir.'!F58) -> 622.965 | H14: 392.965 | I14: =IF(Podloga!$B$19="Direktna",'NT dir.'!G50,'NT indir.'!G58) -> 575.002 | J14: -47.963
B15: * Ostvareni rezultati se uspoređuju s planom, osim plana za slijedeću godinu koji se uspoređuje s procijenjenim rezultatom tekuće godine
B16: ** Plavo osjenčana pozadina označava planirane vrijednosti
C38: =IF(Podloga!B19="Direktna"," "," Nije primjenjivo kod indirektne metode") -> Nije primjenjivo kod indirektne metode
C47: =IF(Podloga!B19="Direktna"," "," Nije primjenjivo kod indirektne metode") -> Nije primjenjivo kod indirektne metode
B57: Dodatni komentari i pojašnjenja na rezultate
B67: =HYPERLINK("#Sadržaj!A1","Povratak na sadržaj") -> Povratak na sadržaj

Sheet Profitabilnost (hidden)
B1: =Naslovna!B3&" - "&Naslovna!I2 -> Ministarstvo državne imovine - Godišnji financijski plan poslovanja
B2: SAŽETI PRIKAZ POKAZATELJA PROFITABILNOSTI
B4: Društvo: | C4: =Podloga!B2 -> Zračna luka Osijek d.o.o.
B5: Tip dokumenta: | C5: =Naslovna!B8 -> Godišnji financijski plan poslovanja
B6: Sastavlja se za godinu: | C6: =Podloga!B8 -> 2026
B8: Pokazatelji profitabilnosti
C9: =Podloga!B36 -> 2024. planirano | D9: =Podloga!C36 -> 2024. ostvareno | F9: =Podloga!D36 -> 2025. planirano | G9: =Podloga!E36 -> 2025. procijenjeno | I9: =Podloga!F36 -> 2026. planirano
B10: ROA | C10: =IFERROR(RDG!C63/Bilanca!C68,) -> 0.000245959816 | D10: =IFERROR(RDG!D63/Bilanca!D68,) -> 0.02300347351 | E10: =D10-C10 -> 0.02275751369 | F10: =IFERROR(RDG!E63/Bilanca!E68,) -> 0.001465849532 | G10: =IFERROR(RDG!F63/Bilanca!F68,) -> 0.02300682456 | H10: =G10-F10 -> 0.02154097503 | I10: =IFERROR(RDG!G63/Bilanca!G68,) -> 0.001921230242 | J10: =I10-G10 -> -0.02108559432
B11: ROE | C11: =IFERROR((RDG!C83/Bilanca!C$75),) -> 0.00551875773 | D11: =IFERROR((RDG!D83/Bilanca!D$75),) -> 0.2933419925 | E11: =D11-C11 -> 0.2878232348 | F11: =IFERROR((RDG!E83/Bilanca!E$75),) -> 0.04550875111 | G11: =IFERROR((RDG!F83/Bilanca!F$75),) -> 0.2530241759 | H11: =G11-F11 -> 0.2075154248 | I11: =IFERROR((RDG!G83/Bilanca!G$75),) -> 0.0301741458 | J11: =I11-G11 -> -0.2228500301
B12: EBITDA Marža | C12: =IFERROR((RDG!C59+RDG!C46+RDG!C48+RDG!C21)/RDG!C57,) -> 0.1409776018 | D12: =IFERROR((RDG!D59+RDG!D46+RDG!D48+RDG!D21)/RDG!D57,) -> 0.2096996011 | E12: =D12-C12 -> 0.06872199933 | F12: =IFERROR((RDG!E59+RDG!E46+RDG!E48+RDG!E21)/RDG!E57,) -> 0.1255924052 | G12: =IFERROR((RDG!F59+RDG!F46+RDG!F48+RDG!F21)/RDG!F57,) -> 0.2210681723 | H12: =G12-F12 -> 0.09547576716 | I12: =IFERROR((RDG!G59+RDG!G46+RDG!G48+RDG!G21)/RDG!G57,) -> 0.1224056857 | J12: =I12-G12 -> -0.09866248668
B13: EBIT Marža | C13: =IFERROR((RDG!C59+RDG!C46+RDG!C48)/RDG!C57,) -> 0.01766173384 | D13: =IFERROR((RDG!D59+RDG!D46+RDG!D48)/RDG!D57,) -> 0.1121433635 | E13: 0.09448162964 | F13: =IFERROR((RDG!E59+RDG!E46+RDG!E48)/RDG!E57,) -> 0.03241070087 | G13: =IFERROR((RDG!F59+RDG!F46+RDG!F48)/RDG!F57,) -> 0.1269553719 | H13: =G13-F13 -> 0.094544671 | I13: =IFERROR((RDG!G59+RDG!G46+RDG!G48)/RDG!G57,) -> 0.03495951971 | J13: -0.09199585215
B14: Neto profitna marža (neto dobit / ukupni prihod) | C14: =IFERROR(RDG!C63/RDG!C57,) -> 0.001456578017 | D14: =IFERROR(RDG!D63/RDG!D57,) -> 0.08845366976 | E14: =D14-C14 -> 0.08699709174 | F14: =IFERROR(RDG!E63/RDG!E57,) -> 0.009931867141 | G14: =IFERROR(RDG!F63/RDG!F57,) -> 0.09709993879 | H14: =G14-F14 -> 0.08716807165 | I14: =IFERROR(RDG!G63/RDG!G57,) -> 0.009974900868 | J14: =I14-G14 -> -0.08712503792
B16: * Ostvareni rezultati se uspoređuju s planom, osim plana za slijedeću godinu koji se uspoređuje s procijenjenim rezultatom tekuće godine
B17: ** Plavo osjenčana pozadina označava planirane vrijednosti
B58: Dodatni komentari i pojašnjenja na rezultate
B69: =HYPERLINK("#Sadržaj!A1","Povratak na sadržaj") -> Povratak na sadržaj

Sheet Likvidnost (hidden)
B1: =Naslovna!B3&" - "&Naslovna!I2 -> Ministarstvo državne imovine - Godišnji financijski plan poslovanja
B2: SAŽETI PRIKAZ POKAZATELJA LIKVIDNOSTI
B4: Društvo: | C4: =Podloga!B2 -> Zračna luka Osijek d.o.o.
B5: Tip dokumenta: | C5: =Naslovna!B8 -> Godišnji financijski plan poslovanja
B6: Sastavlja se za godinu: | C6: =Podloga!B8 -> 2026
B8: Pokazatelji likvidnosti
C9: =Podloga!B36 -> 2024. planirano | D9: =Podloga!C36 -> 2024. ostvareno | F9: =Podloga!D36 -> 2025. planirano | G9: =Podloga!E36 -> 2025. procijenjeno | I9: =Podloga!F36 -> 2026. planirano
B10: Neto radni kapital (u 000 kn) | C10: =Bilanca!C40-Bilanca!C115 -> -16043.471 | D10: =Bilanca!D40-Bilanca!D115 -> 34.071 | E10: =D10-C10 -> 16077.542 | F10: =Bilanca!E40-Bilanca!E115 -> -257.29 | G10: =Bilanca!F40-Bilanca!F115 -> 356.044 | H10: =G10-F10 -> 613.334 | I10: =Bilanca!G40-Bilanca!G115 -> 229.385 | J10: =I10-G10 -> -126.659
B11: Koeficijent tekuće likvidnosti | C11: =IFERROR(Bilanca!C40/Bilanca!C115,) -> 0.03935907498 | D11: =IFERROR(Bilanca!D40/Bilanca!D115,) -> 1.050573781 | E11: =D11-C11 -> 1.011214706 | F11: =IFERROR(Bilanca!E40/Bilanca!E115,) -> 0.664706258 | G11: =IFERROR(Bilanca!F40/Bilanca!F115,) -> 1.528496702 | H11: =G11-F11 -> 0.8637904438 | I11: =IFERROR(Bilanca!G40/Bilanca!G115,) -> 1.396047895 | J11: =I11-G11 -> -0.1324488069
B12: Koeficijent trenutne likvidnosti | C12: =IFERROR(Bilanca!C66/Bilanca!C115,) -> 0.02107689578 | D12: =IFERROR(Bilanca!D66/Bilanca!D115,) -> 0.5336928464 | E12: 0.5126159506 | F12: =IFERROR(Bilanca!E66/Bilanca!E115,) -> 0.2997301126 | G12: =IFERROR(Bilanca!F66/Bilanca!F115,) -> 0.9247089174 | H12: 0.6249788048 | I12: =IFERROR(Bilanca!G66/Bilanca!G115,) -> 0.9927743294 | J12: 0.06806541202
B13: Koeficijent financijske stabilnosti | C13: =IFERROR(Bilanca!C5/(Bilanca!C75+Bilanca!C103),) -> 5.325501841 | D13: =IFERROR(Bilanca!D5/(Bilanca!D75+Bilanca!D103),) -> 3.598057396 | E13: -1.727444445 | F13: =IFERROR(Bilanca!E5/(Bilanca!E75+Bilanca!E103),) -> 7.312800471 | G13: =IFERROR(Bilanca!F5/(Bilanca!F75+Bilanca!F103),) -> 3.529483794 | H13: -3.783316677 | I13: =IFERROR(Bilanca!G5/(Bilanca!G75+Bilanca!G103),) -> 5.260835555 | J13: 1.731351761
B15: * Ostvareni rezultati se uspoređuju s planom, osim plana za slijedeću godinu koji se uspoređuje s procijenjenim rezultatom tekuće godine
B16: ** Plavo osjenčana pozadina označava planirane vrijednosti
B57: Dodatni komentari i pojašnjenja na rezultate
B68: =HYPERLINK("#Sadržaj!A1","Povratak na sadržaj") -> Povratak na sadržaj

Sheet _TM_Aktivnost (hidden)
A1: Left | B1: Top | C1: Right | D1: Bottom | E1: Ref
A2: 7 | B2: 13 | C2: 7 | D2: 16 | E2: $G$13:$G$16
A3: 4 | B3: 13 | C3: 4 | D3: 16 | E3: $D$13:$D$16

Sheet Aktivnost (hidden)
B1: =Naslovna!B3&" - "&Naslovna!I2 -> Ministarstvo državne imovine - Godišnji financijski plan poslovanja
B2: SAŽETI PRIKAZ POKAZATELJA AKTIVNOSTI
B4: Društvo: | C4: =Podloga!B2 -> Zračna luka Osijek d.o.o.
B5: Tip dokumenta: | C5: =Naslovna!B8 -> Godišnji financijski plan poslovanja
B6: Sastavlja se za godinu: | C6: =Podloga!B8 -> 2026
B8: Pokazatelji aktivnosti
C9: =Podloga!B36 -> 2024. planirano | D9: =Podloga!C36 -> 2024. ostvareno | F9: =Podloga!D36 -> 2025. planirano | G9: =Podloga!E36 -> 2025. procijenjeno | I9: =Podloga!F36 -> 2026. planirano
B10: Koeficijent obrtaja imovine | C10: =IFERROR(RDG!C57/Bilanca!C68,) -> 0.1688614089 | D10: =IFERROR(RDG!D57/Bilanca!D68,) -> 0.2600623984 | E10: =D10-C10 -> 0.09120098952 | F10: =IFERROR(RDG!E57/Bilanca!E68,) -> 0.1475905297 | G10: =IFERROR(RDG!F57/Bilanca!F68,) -> 0.2369396402 | H10: =G10-F10 -> 0.08934911046 | I10: =IFERROR(RDG!G57/Bilanca!G68,) -> 0.1926064496 | J10: =I10-G10 -> -0.04433319052
B11: Koeficijent obrtaja potraživanja | C11: =IFERROR(((RDG!C6+RDG!C7)/(Bilanca!C51)),) -> 0 | D11: =IFERROR(((RDG!D6+RDG!D7)/(Bilanca!D51)),) -> 0 | E11: 0 | F11: =IFERROR(((RDG!E6+RDG!E7)/(Bilanca!E51)),) -> 0 | G11: =IFERROR(((RDG!F6+RDG!F7)/(Bilanca!F51)),) -> 0 | H11: =G11-F11 -> 0 | I11: =IFERROR(((RDG!G6+RDG!G7)/(Bilanca!G51)),) -> 0 | J11: 0
B12: Koeficijent obrtaja neto radnog kapitala | C12: =IFERROR(RDG!C57/(Bilanca!C40-Bilanca!C115),) -> -0.2148184766 | D12: =IFERROR(RDG!D57/(Bilanca!D40-Bilanca!D115),) -> 111.9582049 | E12: 112.1730234 | F12: =IFERROR(RDG!E57/(Bilanca!E40-Bilanca!E115),) -> -15.51634343 | G12: =IFERROR(RDG!F57/(Bilanca!F40-Bilanca!F115),) -> 11.26977565 | H12: 26.78611907 | I12: =IFERROR(RDG!G57/(Bilanca!G40-Bilanca!G115),) -> 20.93840051 | J12: 9.66862486
B13: Dani naplate potraživanja | C13: =IFERROR(365/C11,) -> 0 | D13: 0 | E13: 0 | F13: =IFERROR(365/F11,) -> 0 | G13: =IFERROR(365/G11,) -> 0 | H13: 0 | I13: =IFERROR(365/I11,) -> 0 | J13: 0
B14: Dani vezivanja zaliha | C14: =IFERROR(365/((RDG!C6+RDG!C7)/Bilanca!C41),) -> 10.43323487 | D14: =IFERROR(365/((RDG!D6+RDG!D7)/Bilanca!D41),) -> 9.416947013 | E14: -1.016287852 | F14: =IFERROR(365/((RDG!E6+RDG!E7)/Bilanca!E41),) -> 10.4762313 | G14: =IFERROR(365/((RDG!F6+RDG!F7)/Bilanca!F41),) -> 6.394879017 | H14: -4.081352281 | I14: =IFERROR(365/((RDG!G6+RDG!G7)/Bilanca!G41),) -> 16.70079532 | J14: 10.3059163
B15: Dani plaćanja dobavljačima | C15: =IFERROR(365/(RDG!C13/(Bilanca!C123)),) -> 69.1931886 | D15: =IFERROR(365/(RDG!D13/(Bilanca!D123)),) -> 32.25283178 | E15: -36.94035682 | F15: =IFERROR(365/(RDG!E13/(Bilanca!E123)),) -> 39.19819433 | G15: =IFERROR(365/(RDG!F13/(Bilanca!F123)),) -> 35.0806429 | H15: -4.117551425 | I15: =IFERROR(365/(RDG!G13/(Bilanca!G123)),) -> 22.44031732 | J15: -12.64032558
B16: Ekonomičnost ukupnog poslovanja | C16: =IFERROR(RDG!C57/RDG!C58,) -> 1.001458703 | D16: =IFERROR(RDG!D57/RDG!D58,) -> 1.097036944 | E16: 0.09557824078 | F16: =IFERROR(RDG!E57/RDG!E58,) -> 1.010031499 | G16: =IFERROR(RDG!F57/RDG!F58,) -> 1.107542288 | H16: 0.09751078976 | I16: =IFERROR(RDG!G57/RDG!G58,) -> 1.010075402 | J16: -0.09746688641
B18: * Ostvareni rezultati se uspoređuju s planom, osim plana za slijedeću godinu koji se uspoređuje s procijenjenim rezultatom tekuće godine
B19: ** Plavo osjenčana pozadina označava planirane vrijednosti
B58: Dodatni komentari i pojašnjenja na rezultate
B69: =HYPERLINK("#Sadržaj!A1","Povratak na sadržaj") -> Povratak na sadržaj

Sheet Zaduženost (hidden)
B1: =Naslovna!B3&" - "&Naslovna!I2 -> Ministarstvo državne imovine - Godišnji financijski plan poslovanja
B2: SAŽETI PRIKAZ POKAZATELJA ZADUŽENOSTI
B4: Društvo: | C4: =Podloga!B2 -> Zračna luka Osijek d.o.o.
B5: Tip dokumenta: | C5: =Naslovna!B8 -> Godišnji financijski plan poslovanja
B6: Sastavlja se za godinu: | C6: =Podloga!B8 -> 2026
B8: Pokazatelji zaduženosti
C9: =Podloga!B36 -> 2024. planirano | D9: =Podloga!C36 -> 2024. ostvareno | F9: =Podloga!D36 -> 2025. planirano | G9: =Podloga!E36 -> 2025. procijenjeno | I9: =Podloga!F36 -> 2026. planirano
B10: Koeficijent zaduženosti | C10: =IFERROR(((Bilanca!C96+Bilanca!C103+Bilanca!C115+Bilanca!C130)/Bilanca!C68),) -> 0.9554321793 | D10: =IFERROR(((Bilanca!D96+Bilanca!D103+Bilanca!D115+Bilanca!D130)/Bilanca!D68),) -> 0.9215815489 | E10: =D10-C10 -> -0.03385063047 | F10: =IFERROR(((Bilanca!E96+Bilanca!E103+Bilanca!E115+Bilanca!E130)/Bilanca!E68),) -> 0.9677896849 | G10: =IFERROR(((Bilanca!F96+Bilanca!F103+Bilanca!F115+Bilanca!F130)/Bilanca!F68),) -> 0.9090724072 | H10: =G10-F10 -> -0.0587172777 | I10: =IFERROR(((Bilanca!G96+Bilanca!G103+Bilanca!G115+Bilanca!G130)/Bilanca!G68),) -> 0.9363286356 | J10: =I10-G10 -> 0.02725622848
B11: Koeficijent vlastitog financiranja (kapital/ukupna imovina) | C11: =IFERROR((Bilanca!C75/Bilanca!C68),) -> 0.04456796766 | D11: =IFERROR((Bilanca!D75/Bilanca!D68),) -> 0.07841861749 | E11: =D11-C11 -> 0.03385064983 | F11: =IFERROR((Bilanca!E75/Bilanca!E68),) -> 0.03221027817 | G11: =IFERROR((Bilanca!F75/Bilanca!F68),) -> 0.09092737671 | H11: =G11-F11 -> 0.05871709855 | I11: =IFERROR((Bilanca!G75/Bilanca!G68),) -> 0.06367140446 | J11: =I11-G11 -> -0.02725597225
B12: Koeficijent financiranja (ukupne obveze/kapital) | C12: =IFERROR(((Bilanca!C96+Bilanca!C103+Bilanca!C115+Bilanca!C130)/Bilanca!C75),) -> 21.43764298 | D12: =IFERROR(((Bilanca!D96+Bilanca!D103+Bilanca!D115+Bilanca!D130)/Bilanca!D75),) -> 11.75207595 | E12: =D12-C12 -> -9.685567033 | F12: =IFERROR(((Bilanca!E96+Bilanca!E103+Bilanca!E115+Bilanca!E130)/Bilanca!E75),) -> 30.04598966 | G12: =IFERROR(((Bilanca!F96+Bilanca!F103+Bilanca!F115+Bilanca!F130)/Bilanca!F75),) -> 9.997785486 | H12: -20.04820418 | I12: =IFERROR(((Bilanca!G96+Bilanca!G103+Bilanca!G115+Bilanca!G130)/Bilanca!G75),) -> 14.70563817 | J12: =I12-G12 -> 4.707852682
B13: Odnos ukupne imovine i kapitala | C13: =IFERROR(Bilanca!C68/Bilanca!C75,) -> 22.43763969 | D13: =IFERROR(Bilanca!D68/Bilanca!D75,) -> 12.75207383 | E13: =D13-C13 -> -9.685565856 | F13: =IFERROR(Bilanca!E68/Bilanca!E75,) -> 31.04599081 | G13: =IFERROR(Bilanca!F68/Bilanca!F75,) -> 10.99778786 | H13: -20.04820295 | I13: =IFERROR(Bilanca!G68/Bilanca!G75,) -> 15.70563754 | J13: =I13-G13 -> 4.707849675
B15: * Ostvareni rezultati se uspoređuju s planom, osim plana za slijedeću godinu koji se uspoređuje s procijenjenim rezultatom tekuće godine
B16: ** Plavo osjenčana pozadina označava planirane vrijednosti
B57: Dodatni komentari i pojašnjenja na rezultate
B68: =HYPERLINK("#Sadržaj!A1","Povratak na sadržaj") -> Povratak na sadržaj

Sheet DuPont (hidden)
B1: =Naslovna!B3&" - "&Naslovna!I2 -> Ministarstvo državne imovine - Godišnji financijski plan poslovanja
B2: DuPont analiza | R2: ROE
T3: Index
B4: Društvo: | G4: =Podloga!B2 -> Zračna luka Osijek d.o.o. | R4: =LEFT(Podloga!B36,8) -> 2024. pl | S4: =O14*W14 -> 0.00551875773
B5: Tip dokumenta: | G5: =Naslovna!B8 -> Godišnji financijski plan poslovanja | R5: =LEFT(Podloga!C36,7) -> 2024. o | S5: 0.2933419925 | T5: =IFERROR((S5/S4)*100,) -> 5315.362748
B6: Sastavlja se za godinu: | G6: =Podloga!B8 -> 2026 | R6: =LEFT(Podloga!D36,8) -> 2025. pl | S6: 0.04550875111 | T6: 15.513889
R7: =LEFT(Podloga!E36,8) -> 2025. pr | S7: 0.2530241759 | T7: =IFERROR((S7/S5)*100,) -> 86.25569551
R8: =LEFT(Podloga!F36,8) -> 2026. pl | S8: 0.0301741458 | T8: 11.92540029
N12: ROA | V12: Odnos imovine i kapitala
P13: Index | X13: Index
N14: =LEFT(Podloga!B36,8) -> 2024. pl | O14: =S17*K17 -> 0.000245959816 | V14: =LEFT(Podloga!B36,8) -> 2024. pl | W14: =IFERROR(Bilanca!C68/Bilanca!C75,) -> 22.43763969
J15: Neto profitna marža | N15: =LEFT(Podloga!C36,7) -> 2024. o | O15: =S18*K18 -> 0.02300347351 | P15: =IFERROR((O15/O14)*100,) -> 9352.533221 | R15: Koeficijent obrtaja imovine | V15: =LEFT(Podloga!C36,7) -> 2024. o | W15: =IFERROR(Bilanca!D68/Bilanca!D75,) -> 12.75207383 | X15: =IFERROR((W15/W14)*100,) -> 56.83340141
L16: Index | N16: =LEFT(Podloga!D36,8) -> 2025. pl | O16: =S19*K19 -> 0.001465849532 | P16: 6.372296479 | T16: Index | V16: =LEFT(Podloga!D36,8) -> 2025. pl | W16: =IFERROR(Bilanca!E68/Bilanca!E75,) -> 31.04599081 | X16: 243.4583678
J17: =LEFT(Podloga!B36,8) -> 2024. pl | K17: =IFERROR(G26/C36,) -> 0.001456578017 | N17: =LEFT(Podloga!E36,8) -> 2025. pr | O17: =S20*K20 -> 0.02300682456 | P17: =IFERROR((O17/O15)*100,) -> 100.0145676 | R17: =LEFT(Podloga!B36,8) -> 2024. pl | S17: =IFERROR(O26/W26,) -> 0.1688614089 | V17: =LEFT(Podloga!E36,8) -> 2025. pr | W17: =IFERROR(Bilanca!F68/Bilanca!F75,) -> 10.99778786 | X17: =IFERROR((W17/W15)*100,) -> 86.24313197
J18: =LEFT(Podloga!C36,8) -> 2024. os | K18: =IFERROR(G27/C37,) -> 0.08845366976 | L18: =IFERROR(K18/K17*100,) -> 6072.703882 | N18: =LEFT(Podloga!F36,8) -> 2026. pl | O18: =S21*K21 -> 0.001921230242 | P18: 8.350697146 | R18: =LEFT(Podloga!C36,7) -> 2024. o | S18: =IFERROR(O27/W27,) -> 0.2600623984 | T18: =IFERROR((S18/S17)*100,) -> 154.0093738 | V18: =LEFT(Podloga!F36,8) -> 2026. pl | W18: =IFERROR(Bilanca!G68/Bilanca!G75,) -> 15.70563754 | X18: 142.8072421
J19: =LEFT(Podloga!D36,8) -> 2025. pl | K19: =IFERROR(G28/C38,) -> 0.009931867141 | L19: =IFERROR(K19/K18*100,) -> 11.22832684 | R19: =LEFT(Podloga!D36,8) -> 2025. pl | S19: =IFERROR(O28/W28,) -> 0.1475905297 | T19: =IFERROR((S19/S18)*100,) -> 56.75196822
J20: =LEFT(Podloga!E36,8) -> 2025. pr | K20: =IFERROR(G29/C39,) -> 0.09709993879 | L20: =IFERROR(K20/K18*100,) -> 109.7749127 | R20: =LEFT(Podloga!E36,8) -> 2025. pr | S20: =IFERROR(O29/W29,) -> 0.2369396402 | T20: =IFERROR((S20/S18)*100,) -> 91.10876528
J21: =LEFT(Podloga!F36,8) -> 2026. pl | K21: =IFERROR(G30/C40,) -> 0.009974900868 | L21: =IFERROR(K21/K20*100,) -> 10.2728189 | R21: =LEFT(Podloga!F36,8) -> 2026. pl | S21: =IFERROR(O30/W30,) -> 0.1926064496 | T21: =IFERROR((S21/S20)*100,) -> 81.28924713
F24: Neto dobit ili gubitak razdoblja (u mil. HRK) | N24: Ukupni prihodi (u mil. HRK) | V24: Ukupna imovina (u mil. HRK)
H25: Index | P25: Index | X25: Index
F26: =LEFT(Podloga!B36,8) -> 2024. pl | G26: =RDG!C63 -> 5.02 | N26: =LEFT(Podloga!B36,8) -> 2024. pl | O26: =RDG!C57 -> 3446.434 | V26: =LEFT(Podloga!B36,8) -> 2024. pl | W26: =Bilanca!C68 -> 20409.838
F27: =LEFT(Podloga!C36,7) -> 2024. o | G27: =RDG!D63 -> 337.409 | H27: =IFERROR(G27/G26*100,) -> 6721.294821 | N27: =LEFT(Podloga!C36,7) -> 2024. o | O27: =RDG!D57 -> 3814.528 | P27: =IFERROR(O27/O26*100,) -> 110.6804308 | V27: =LEFT(Podloga!C36,7) -> 2024. o | W27: =Bilanca!D68 -> 14667.74137 | X27: =IFERROR(W27/W26*100,) -> 71.86603524
F28: =LEFT(Podloga!D36,8) -> 2025. pl | G28: =RDG!E63 -> 39.65 | H28: =IFERROR(G28/G27*100,) -> 11.75131665 | N28: =LEFT(Podloga!D36,8) -> 2025. pl | O28: =RDG!E57 -> 3992.2 | P28: =IFERROR(O28/O27*100,) -> 104.6577716 | V28: =LEFT(Podloga!D36,8) -> 2025. pl | W28: =Bilanca!E68 -> 27049.161 | X28: =IFERROR(W28/W27*100,) -> 184.4125849
F29: =LEFT(Podloga!E36,8) -> 2025. pr | G29: =RDG!F63 -> 389.617 | H29: =IFERROR(G29/G27*100,) -> 115.4732091 | N29: =LEFT(Podloga!E36,8) -> 2025. pr | O29: =RDG!F57 -> 4012.536 | P29: =IFERROR(O29/O27*100,) -> 105.1908912 | V29: =LEFT(Podloga!E36,8) -> 2025. pr | W29: =Bilanca!F68 -> 16934.84466 | X29: =IFERROR(W29/W27*100,) -> 115.4563899
F30: =LEFT(Podloga!F36,8) -> 2026. pl | G30: =RDG!G63 -> 47.909 | H30: =IFERROR(G30/G29*100,) -> 12.2964347 | N30: =LEFT(Podloga!F36,8) -> 2026. pl | O30: =RDG!G57 -> 4802.955 | P30: =IFERROR(O30/O29*100,) -> 119.6987392 | V30: =LEFT(Podloga!F36,8) -> 2026. pl | W30: =Bilanca!G68 -> 24936.626 | X30: =IFERROR(W30/W29*100,) -> 147.250397
B34: Ukupni prihodi (u mil. HRK) | J34: Ukupni rashodi + porez na dobit (u mil. HRK) | R34: Kratkotrajna imovina (u mil. HRK) | Z34: Dugotrajna imovina (u mil. HRK)
D35: Index | L35: Index | T35: Index | AB35: Index
B36: =LEFT(Podloga!B36,8) -> 2024. pl | C36: =RDG!C57 -> 3446.434 | J36: =LEFT(Podloga!B36,8) -> 2024. pl | K36: =RDG!C58+RDG!C62 -> 3441.414 | R36: =LEFT(Podloga!B36,8) -> 2024. pl | S36: =Bilanca!C40+Bilanca!C67 -> 657.328 | Z36: =LEFT(Podloga!B36,8) -> 2024. pl | AA36: =Bilanca!C5 -> 19752.51
B37: =LEFT(Podloga!C36,7) -> 2024. o | C37: =RDG!D57 -> 3814.528 | D37: =IFERROR(C37/C36*100,) -> 110.6804308 | J37: =LEFT(Podloga!C36,7) -> 2024. o | K37: =RDG!D58+RDG!D62 -> 3477.119 | L37: =IFERROR(K37/K36*100,) -> 101.0375096 | R37: =LEFT(Podloga!C36,7) -> 2024. o | S37: =Bilanca!D40+Bilanca!D67 -> 733.869 | T37: =IFERROR(S37/S36*100,) -> 111.6442628 | Z37: =LEFT(Podloga!C36,7) -> 2024. o | AA37: =Bilanca!D5 -> 13933.87237 | AB37: =IFERROR(AA37/AA36*100,) -> 70.54228739
B38: =LEFT(Podloga!D36,8) -> 2025. pl | C38: =RDG!E57 -> 3992.2 | D38: =IFERROR(C38/C37*100,) -> 104.6577716 | J38: =LEFT(Podloga!D36,8) -> 2025. pl | K38: =RDG!E58+RDG!E62 -> 3952.55 | L38: =IFERROR(K38/K37*100,) -> 113.67313 | R38: =LEFT(Podloga!D36,8) -> 2025. pl | S38: =Bilanca!E40+Bilanca!E67 -> 616.817 | T38: =IFERROR(S38/S37*100,) -> 84.05001438 | Z38: =LEFT(Podloga!D36,8) -> 2025. pl | AA38: =Bilanca!E5 -> 26432.344 | AB38: =IFERROR(AA38/AA37*100,) -> 189.6984793
B39: =LEFT(Podloga!E36,8) -> 2025. pr | C39: =RDG!F57 -> 4012.536 | D39: =IFERROR(C39/C37*100,) -> 105.1908912 | J39: =LEFT(Podloga!E36,8) -> 2025. pr | K39: =RDG!F58+RDG!F62 -> 3622.919 | L39: =IFERROR(K39/K37*100,) -> 104.1931266 | R39: =LEFT(Podloga!E36,8) -> 2025. pr | S39: =Bilanca!F40+Bilanca!F67 -> 1153.072 | T39: =IFERROR(S39/S37*100,) -> 157.1223202 | Z39: =LEFT(Podloga!E36,8) -> 2025. pr | AA39: =Bilanca!F5 -> 15781.77266 | AB39: =IFERROR(AA39/AA37*100,) -> 113.2619292
B40: =LEFT(Podloga!F36,8) -> 2026. pl | C40: =RDG!G57 -> 4802.955 | D40: =IFERROR(C40/C39*100,) -> 119.6987392 | J40: =LEFT(Podloga!F36,8) -> 2026. pl | K40: =RDG!G58+RDG!G62 -> 4755.046 | L40: =IFERROR(K40/K39*100,) -> 131.2490288 | R40: =LEFT(Podloga!F36,8) -> 2026. pl | S40: =Bilanca!G40+Bilanca!G67 -> 913.415 | T40: =IFERROR(S40/S39*100,) -> 79.21578184 | Z40: =LEFT(Podloga!F36,8) -> 2026. pl | AA40: =Bilanca!G5 -> 24023.211 | AB40: =IFERROR(AA40/AA39*100,) -> 152.2212461
A44: * Procijenjeni i planirani rezultat za tekuću godinu se uspoređuju s ostvarenim rezultatom poslovanja u prethodnoj godini
B50: =HYPERLINK("#Sadržaj!A1","Povratak na sadržaj") -> Povratak na sadržaj

Sheet _TM_Altman Integral (Basic) (hidden)
A1: Left | B1: Top | C1: Right | D1: Bottom | E1: Ref
A2: 2 | B2: 1 | C2: 10 | D2: 1 | E2: $B$1:$J$1

Sheet Altman Integral (Basic) (hidden)
B1: =Naslovna!B3&" - "&Naslovna!I2 -> Ministarstvo državne imovine - Godišnji financijski plan poslovanja
A2: Altman Integral (Basic)
B4: Društvo: | C4: =Podloga!B2 -> Zračna luka Osijek d.o.o.
B5: Tip dokumenta: | C5: =Naslovna!B8 -> Godišnji financijski plan poslovanja
B6: Sastavlja se za godinu: | C6: =Podloga!B8 -> 2026
B8: Basic model se koristi za proizvodna trgovačka društva koja kotiraju na burzi
C30: =LEFT(Podloga!B36,8) -> 2024. pl | D30: =LEFT(Podloga!C36,7) -> 2024. o | E30: =LEFT(Podloga!D36,8) -> 2025. pl | F30: =LEFT(Podloga!E36,8) -> 2025. pr | G30: =LEFT(Podloga!F36,8) -> 2026. pl
B31: Z-score | C31: =IFERROR('Dashboard (data)'!$BT$2*'Dashboard (data)'!BM2+'Dashboard (data)'!$BT$3*'Dashboard (data)'!BM3+'Dashboard (data)'!$BT$4*'Dashboard (data)'!BM4+'Dashboard (data)'!$BT$5*'Dashboard (data)'!BM5+'Dashboard (data)'!$BT$6*'Dashboard (data)'!BM6,) -> 0.04080314601 | D31: =IFERROR('Dashboard (data)'!$BT$2*'Dashboard (data)'!BN2+'Dashboard (data)'!$BT$3*'Dashboard (data)'!BN3+'Dashboard (data)'!$BT$4*'Dashboard (data)'!BN4+'Dashboard (data)'!$BT$5*'Dashboard (data)'!BN5+'Dashboard (data)'!$BT$6*'Dashboard (data)'!BN6,) -> 0.159822698 | E31: =IFERROR('Dashboard (data)'!$BT$2*'Dashboard (data)'!BO2+'Dashboard (data)'!$BT$3*'Dashboard (data)'!BO3+'Dashboard (data)'!$BT$4*'Dashboard (data)'!BO4+'Dashboard (data)'!$BT$5*'Dashboard (data)'!BO5+'Dashboard (data)'!$BT$6*'Dashboard (data)'!BO6,) -> 0.04903394231 | F31: =IFERROR('Dashboard (data)'!$BT$2*'Dashboard (data)'!BP2+'Dashboard (data)'!$BT$3*'Dashboard (data)'!BP3+'Dashboard (data)'!$BT$4*'Dashboard (data)'!BP4+'Dashboard (data)'!$BT$5*'Dashboard (data)'!BP5+'Dashboard (data)'!$BT$6*'Dashboard (data)'!BP6,) -> 0.2167363075 | G31: =IFERROR('Dashboard (data)'!$BT$2*'Dashboard (data)'!BQ2+'Dashboard (data)'!$BT$3*'Dashboard (data)'!BQ3+'Dashboard (data)'!$BT$4*'Dashboard (data)'!BQ4+'Dashboard (data)'!$BT$5*'Dashboard (data)'!BQ5+'Dashboard (data)'!$BT$6*'Dashboard (data)'!BQ6,) -> 0.1449240206
B34: Objašnjenje | C34: Raspon vrijednosti vezan uz rizik bankrota (od -4,00 do +8,00)
C35: Vrlo niski rizik | D35: Zona nesigurnosti | F35: Visoki rizik
B36: Z-score model (Basic) | C36: ≥ 3,00 | D36: 2,99 – 1,81 | F36: ≤ 1,80
C39: =LEFT(Podloga!B36,8) -> 2024. pl | D39: =LEFT(Podloga!C36,7) -> 2024. o | E39: =LEFT(Podloga!D36,8) -> 2025. pl | F39: =LEFT(Podloga!E36,8) -> 2025. pr | G39: =LEFT(Podloga!F36,8) -> 2026. pl
B40: Kratkotrajna imovina | C40: =Bilanca!C40 -> 657.328 | D40: =Bilanca!D40 -> 707.76 | E40: =Bilanca!E40 -> 510.067 | F40: =Bilanca!F40 -> 1029.736 | G40: =Bilanca!G40 -> 808.57
B41: Ukupna imovina | C41: =Bilanca!C68 -> 20409.838 | D41: =Bilanca!D68 -> 14667.74137 | E41: =Bilanca!E68 -> 27049.161 | F41: =Bilanca!F68 -> 16934.84466 | G41: =Bilanca!G68 -> 24936.626
B42: Zadržana dobit | C42: =Bilanca!C89 -> -2573.795 | D42: =Bilanca!D89 -> -2665.183 | E42: =Bilanca!E89 -> -2646.386 | F42: =Bilanca!F89 -> -2327.776 | G42: =Bilanca!G89 -> -1938.159
B43: Operativna dobit (EBIT) | C43: =RDG!C59+RDG!C46+RDG!C48 -> 60.87 | D43: =RDG!D59+RDG!D46+RDG!D48 -> 427.774 | E43: =RDG!E59+RDG!E46+RDG!E48 -> 129.39 | F43: =RDG!F59+RDG!F46+RDG!F48 -> 509.413 | G43: =RDG!G59+RDG!G46+RDG!G48 -> 167.909
B44: Knjigovodstvena vrijednost ukupnih obveza | C44: =Bilanca!C103+Bilanca!C115 -> 19500.216 | D44: =Bilanca!D103+Bilanca!D115 -> 3396.07481 | E44: =Bilanca!E103+Bilanca!E115 -> 3510.627 | F44: =Bilanca!F103+Bilanca!F115 -> 3605.262 | G44: =Bilanca!G103+Bilanca!G115 -> 3557.86
B45: Ukupni prihodi | C45: =RDG!C57 -> 3446.434 | D45: =RDG!D57 -> 3814.528 | E45: =RDG!E57 -> 3992.2 | F45: =RDG!F57 -> 4012.536 | G45: =RDG!G57 -> 4802.955
B46: Tržišna vrijednost vlasničkog kapitala** | C46: =Podloga!B32*Podloga!B33 ->  | D46: =Podloga!B32*Podloga!B33 ->  | E46: =Podloga!C32*Podloga!C33 ->  | F46: =Podloga!C32*Podloga!C33 ->  | G46: =Podloga!C32*Podloga!C33 -> 
B47: * Plavo osjenčana pozadina označava planirane vrijednosti
B48: ** Umjesto tržišne vrijednosti vlasničkog kapitala za buduće razdoblje uzima se zadnje važeća vrijednost
B50: Dodatni komentari i pojašnjenja na rezultate
B61: =HYPERLINK("#Sadržaj!A1","Povratak na sadržaj") -> Povratak na sadržaj

Sheet _TM_Altman Integral (A) (hidden)
A1: Left | B1: Top | C1: Right | D1: Bottom | E1: Ref
A2: 2 | B2: 1 | C2: 2 | D2: 1 | E2: $B$1

Sheet Altman Integral (A) (hidden)
B1: =Naslovna!B3&" - "&Naslovna!I2 -> Ministarstvo državne imovine - Godišnji financijski plan poslovanja
A2: Altman Integral (A)
B4: Društvo: | C4: =Podloga!B2 -> Zračna luka Osijek d.o.o.
B5: Tip dokumenta: | C5: =Naslovna!B8 -> Godišnji financijski plan poslovanja
B6: Sastavlja se za godinu: | C6: =Podloga!B8 -> 2026
B9: A model se koristi za trgovačka društva koja ne kotiraju na burzi
C26: =LEFT(Podloga!B36,8) -> 2024. pl | D26: =LEFT(Podloga!C36,7) -> 2024. o | E26: =LEFT(Podloga!D36,8) -> 2025. pl | F26: =LEFT(Podloga!E36,8) -> 2025. pr | G26: =LEFT(Podloga!F36,8) -> 2026. pl
B27: Z-score | C27: =IFERROR('Dashboard (data)'!$BT$13*'Dashboard (data)'!BM13+'Dashboard (data)'!$BT$14*'Dashboard (data)'!BM14+'Dashboard (data)'!$BT$15*'Dashboard (data)'!BM15+'Dashboard (data)'!$BT$16*'Dashboard (data)'!BM16+'Dashboard (data)'!$BT$17*'Dashboard (data)'!BM17,) -> 0.1689890728 | D27: =IFERROR('Dashboard (data)'!$BT$13*'Dashboard (data)'!BN13+'Dashboard (data)'!$BT$14*'Dashboard (data)'!BN14+'Dashboard (data)'!$BT$15*'Dashboard (data)'!BN15+'Dashboard (data)'!$BT$16*'Dashboard (data)'!BN16+'Dashboard (data)'!$BT$17*'Dashboard (data)'!BN17,) -> 0.660981771 | E27: =IFERROR('Dashboard (data)'!$BT$13*'Dashboard (data)'!BO13+'Dashboard (data)'!$BT$14*'Dashboard (data)'!BO14+'Dashboard (data)'!$BT$15*'Dashboard (data)'!BO15+'Dashboard (data)'!$BT$16*'Dashboard (data)'!BO16+'Dashboard (data)'!$BT$17*'Dashboard (data)'!BO17,) -> 0.5089076024 | F27: =IFERROR('Dashboard (data)'!$BT$13*'Dashboard (data)'!BP13+'Dashboard (data)'!$BT$14*'Dashboard (data)'!BP14+'Dashboard (data)'!$BT$15*'Dashboard (data)'!BP15+'Dashboard (data)'!$BT$16*'Dashboard (data)'!BP16+'Dashboard (data)'!$BT$17*'Dashboard (data)'!BP17,) -> 0.6622746137 | G27: =IFERROR('Dashboard (data)'!$BT$13*'Dashboard (data)'!BQ13+'Dashboard (data)'!$BT$14*'Dashboard (data)'!BQ14+'Dashboard (data)'!$BT$15*'Dashboard (data)'!BQ15+'Dashboard (data)'!$BT$16*'Dashboard (data)'!BQ16+'Dashboard (data)'!$BT$17*'Dashboard (data)'!BQ17,) -> 0.5811316627
B30: Objašnjenje | C30: Raspon vrijednosti vezan uz rizik bankrota (od -4,00 do +8,00)
C31: Vrlo niski rizik | D31: Zona nesigurnosti | F31: Visoki rizik
B32: Z-score model (A model) | C32: ≥ 2,90 | D32: 2,89 – 1,24 | F32: ≤ 1,23
C34: =LEFT(Podloga!B36,8) -> 2024. pl | D34: =LEFT(Podloga!C36,7) -> 2024. o | E34: =LEFT(Podloga!D36,8) -> 2025. pl | F34: =LEFT(Podloga!E36,8) -> 2025. pr | G34: =LEFT(Podloga!F36,8) -> 2026. pl
B35: Kratkotrajna imovina | C35: =Bilanca!C40 -> 657.328 | D35: =Bilanca!D40 -> 707.76 | E35: =Bilanca!E40 -> 510.067 | F35: =Bilanca!F40 -> 1029.736 | G35: =Bilanca!G40 -> 808.57
B36: Ukupna imovina | C36: =Bilanca!C68 -> 20409.838 | D36: =Bilanca!D68 -> 14667.74137 | E36: =Bilanca!E68 -> 27049.161 | F36: =Bilanca!F68 -> 16934.84466 | G36: =Bilanca!G68 -> 24936.626
B37: Zadržana dobit | C37: =Bilanca!C89 -> -2573.795 | D37: =Bilanca!D89 -> -2665.183 | E37: =Bilanca!E89 -> -2646.386 | F37: =Bilanca!F89 -> -2327.776 | G37: =Bilanca!G89 -> -1938.159
B38: Operativna dobit (EBIT) | C38: =RDG!C59+RDG!C46+RDG!C48 -> 60.87 | D38: =RDG!D59+RDG!D46+RDG!D48 -> 427.774 | E38: =RDG!E59+RDG!E46+RDG!E48 -> 129.39 | F38: =RDG!F59+RDG!F46+RDG!F48 -> 509.413 | G38: =RDG!G59+RDG!G46+RDG!G48 -> 167.909
B39: Knjigovodstvena vrijednost ukupnih obveza | C39: =Bilanca!C103+Bilanca!C115 -> 19500.216 | D39: =Bilanca!D103+Bilanca!D115 -> 3396.07481 | E39: =Bilanca!E103+Bilanca!E115 -> 3510.627 | F39: =Bilanca!F103+Bilanca!F115 -> 3605.262 | G39: =Bilanca!G103+Bilanca!G115 -> 3557.86
B40: Ukupni prihodi | C40: =RDG!C57 -> 3446.434 | D40: =RDG!D57 -> 3814.528 | E40: =RDG!E57 -> 3992.2 | F40: =RDG!F57 -> 4012.536 | G40: =RDG!G57 -> 4802.955
B41: Knjigovodstvena vrijednost vlasn. kapitala | C41: =Bilanca!C76+Bilanca!C77 -> 3478.4 | D41: =Bilanca!D76+Bilanca!D77 -> 3478 | E41: =Bilanca!E76+Bilanca!E77 -> 3478 | F41: =Bilanca!F76+Bilanca!F77 -> 3478 | G41: =Bilanca!G76+Bilanca!G77 -> 3478
B43: * Plavo osjenčana pozadina označava planirane vrijednosti
B46: Dodatni komentari i pojašnjenja na rezultate
B57: =HYPERLINK("#Sadržaj!A1","Povratak na sadržaj") -> Povratak na sadržaj

Sheet _TM_Altman Integral (B) (hidden)
A1: Left | B1: Top | C1: Right | D1: Bottom | E1: Ref
A2: 2 | B2: 1 | C2: 7 | D2: 1 | E2: $B$1:$G$1

Sheet Altman Integral (B) (hidden)
B1: =Naslovna!B3&" - "&Naslovna!I2 -> Ministarstvo državne imovine - Godišnji financijski plan poslovanja
A2: Altman Integral (B)
B4: Društvo: | C4: =Podloga!B2 -> Zračna luka Osijek d.o.o.
B5: Tip dokumenta: | C5: =Naslovna!B8 -> Godišnji financijski plan poslovanja
B6: Sastavlja se za godinu: | C6: =Podloga!B8 -> 2026
B9: B model se koristi za neproizvodna trgovačka društva koja kotiraju na burzi
C26: =LEFT(Podloga!B36,8) -> 2024. pl | D26: =LEFT(Podloga!C36,7) -> 2024. o | E26: =LEFT(Podloga!D36,8) -> 2025. pl | F26: =LEFT(Podloga!E36,8) -> 2025. pr | G26: =LEFT(Podloga!F36,8) -> 2026. pl
B27: Z-score | C27: =IFERROR('Dashboard (data)'!$BT$23*'Dashboard (data)'!BM23+'Dashboard (data)'!$BT$24*'Dashboard (data)'!BM24+'Dashboard (data)'!$BT$25*'Dashboard (data)'!BM25+'Dashboard (data)'!$BT$26*'Dashboard (data)'!BM26,) -> 0 | D27: =IFERROR('Dashboard (data)'!$BT$23*'Dashboard (data)'!BN23+'Dashboard (data)'!$BT$24*'Dashboard (data)'!BN24+'Dashboard (data)'!$BT$25*'Dashboard (data)'!BN25+'Dashboard (data)'!$BT$26*'Dashboard (data)'!BN26,) -> 0 | E27: =IFERROR('Dashboard (data)'!$BT$23*'Dashboard (data)'!BO23+'Dashboard (data)'!$BT$24*'Dashboard (data)'!BO24+'Dashboard (data)'!$BT$25*'Dashboard (data)'!BO25+'Dashboard (data)'!$BT$26*'Dashboard (data)'!BO26,) -> 0 | F27: =IFERROR('Dashboard (data)'!$BT$23*'Dashboard (data)'!BP23+'Dashboard (data)'!$BT$24*'Dashboard (data)'!BP24+'Dashboard (data)'!$BT$25*'Dashboard (data)'!BP25+'Dashboard (data)'!$BT$26*'Dashboard (data)'!BP26,) -> 0 | G27: =IFERROR('Dashboard (data)'!$BT$23*'Dashboard (data)'!BQ23+'Dashboard (data)'!$BT$24*'Dashboard (data)'!BQ24+'Dashboard (data)'!$BT$25*'Dashboard (data)'!BQ25+'Dashboard (data)'!$BT$26*'Dashboard (data)'!BQ26,) -> 0
B30: Objašnjenje | C30: Raspon vrijednosti vezan uz rizik bankrota (od -4,00 do +8,00)
C31: Vrlo niski rizik | D31: Zona nesigurnosti | F31: Visoki rizik
B32: Z-score model (B model) | C32: ≥ 2,60 | D32: 2,59 – 1,11 | F32: ≤ 1,1
C34: =LEFT(Podloga!B36,8) -> 2024. pl | D34: =LEFT(Podloga!C36,7) -> 2024. o | E34: =LEFT(Podloga!D36,8) -> 2025. pl | F34: =LEFT(Podloga!E36,8) -> 2025. pr | G34: =LEFT(Podloga!F36,8) -> 2026. pl
B35: Kratkotrajna imovina | C35: =Bilanca!C40 -> 657.328 | D35: =Bilanca!D40 -> 707.76 | E35: =Bilanca!E40 -> 510.067 | F35: =Bilanca!F40 -> 1029.736 | G35: =Bilanca!G40 -> 808.57
B36: Ukupna imovina | C36: =Bilanca!C68 -> 20409.838 | D36: =Bilanca!D68 -> 14667.74137 | E36: =Bilanca!E68 -> 27049.161 | F36: =Bilanca!F68 -> 16934.84466 | G36: =Bilanca!G68 -> 24936.626
B37: Zadržana dobit | C37: =Bilanca!C89 -> -2573.795 | D37: =Bilanca!D89 -> -2665.183 | E37: =Bilanca!E89 -> -2646.386 | F37: =Bilanca!F89 -> -2327.776 | G37: =Bilanca!G89 -> -1938.159
B38: Operativna dobit (EBIT) | C38: =RDG!C59+RDG!C46+RDG!C48 -> 60.87 | D38: =RDG!D59+RDG!D46+RDG!D48 -> 427.774 | E38: =RDG!E59+RDG!E46+RDG!E48 -> 129.39 | F38: =RDG!F59+RDG!F46+RDG!F48 -> 509.413 | G38: =RDG!G59+RDG!G46+RDG!G48 -> 167.909
B39: Knjigovodstvena vrijednost ukupnih obveza | C39: =Bilanca!C103+Bilanca!C115 -> 19500.216 | D39: =Bilanca!D103+Bilanca!D115 -> 3396.07481 | E39: =Bilanca!E103+Bilanca!E115 -> 3510.627 | F39: =Bilanca!F103+Bilanca!F115 -> 3605.262 | G39: =Bilanca!G103+Bilanca!G115 -> 3557.86
B40: Ukupni prihodi | C40: =RDG!C57 -> 3446.434 | D40: =RDG!D57 -> 3814.528 | E40: =RDG!E57 -> 3992.2 | F40: =RDG!F57 -> 4012.536 | G40: =RDG!G57 -> 4802.955
B41: Tržišna vrijednost vlasničkog kapitala** | C41: =Podloga!B32*Podloga!B33 ->  | D41: =Podloga!B32*Podloga!B33 ->  | E41: =Podloga!C32*Podloga!C33 ->  | F41: =Podloga!C32*Podloga!C33 ->  | G41: =Podloga!C32*Podloga!C33 -> 
B43: * Plavo osjenčana pozadina označava planirane vrijednosti
B44: ** Umjesto tržišne vrijednosti vlasničkog kapitala za buduće razdoblje uzima se zadnje važeća vrijednost
B46: Dodatni komentari i pojašnjenja na rezultate
B57: =HYPERLINK("#Sadržaj!A1","Povratak na sadržaj") -> Povratak na sadržaj

Sheet _TM_Dashboard (hidden)
A1: Left | B1: Top | C1: Right | D1: Bottom | E1: Ref
A2: 1 | B2: 33 | C2: 7 | D2: 33 | E2: $A$33:$G$33
A3: 1 | B3: 6 | C3: 16 | D3: 6 | E3: $A$6:$P$6
A4: 2 | B4: 23 | C4: 8 | D4: 27 | E4: $B$23:$H$27
A5: 1 | B5: 28 | C5: 16 | D5: 28 | E5: $A$28:$P$28
A6: 1 | B6: 30 | C6: 16 | D6: 30 | E6: $A$30:$P$30
A7: 1 | B7: 34 | C7: 7 | D7: 34 | E7: $A$34:$G$34

Sheet _TM_Dashboard (data) (hidden)
A1: Left | B1: Top | C1: Right | D1: Bottom | E1: Ref
A2: 53 | B2: 59 | C2: 60 | D2: 65 | E2: $BA$59:$BH$65
A3: 53 | B3: 1 | C3: 60 | D3: 5 | E3: $BA$1:$BH$5
A4: 53 | B4: 6 | C4: 60 | D4: 9 | E4: $BA$6:$BH$9
A5: 53 | B5: 11 | C5: 60 | D5: 13 | E5: $BA$11:$BH$13
A6: 53 | B6: 14 | C6: 60 | D6: 16 | E6: $BA$14:$BH$16
A7: 53 | B7: 17 | C7: 60 | D7: 26 | E7: $BA$17:$BH$26
A8: 53 | B8: 27 | C8: 60 | D8: 30 | E8: $BA$27:$BH$30
A9: 53 | B9: 31 | C9: 60 | D9: 34 | E9: $BA$31:$BH$34
A10: 53 | B10: 35 | C10: 60 | D10: 37 | E10: $BA$35:$BH$37
A11: 53 | B11: 39 | C11: 60 | D11: 41 | E11: $BA$39:$BH$41
A12: 53 | B12: 52 | C12: 59 | D12: 56 | E12: $BA$52:$BG$56
A13: 53 | B13: 68 | C13: 60 | D13: 75 | E13: $BA$68:$BH$75
A14: 53 | B14: 79 | C14: 60 | D14: 94 | E14: $BA$79:$BH$94
A15: 53 | B15: 95 | C15: 55 | D15: 107 | E15: $BA$95:$BC$107
A16: 64 | B16: 1 | C16: 72 | D16: 8 | E16: $BL$1:$BT$8
A17: 64 | B17: 12 | C17: 72 | D17: 19 | E17: $BL$12:$BT$19
A18: 64 | B18: 22 | C18: 72 | D18: 28 | E18: $BL$22:$BT$28
A19: 66 | B19: 120 | C19: 72 | D19: 127 | E19: $BN$120:$BT$127
A20: 86 | B20: 1 | C20: 90 | D20: 35 | E20: $CH$1:$CL$35
A21: 84 | B21: 1 | C21: 84 | D21: 35 | E21: $CF$1:$CF$35
A22: 85 | B22: 1 | C22: 85 | D22: 18 | E22: $CG$1:$CG$18
A23: 85 | B23: 19 | C23: 85 | D23: 35 | E23: $CG$19:$CG$35
A24: 94 | B24: 1 | C24: 98 | D24: 29 | E24: $CP$1:$CT$29
A25: 92 | B25: 1 | C25: 92 | D25: 29 | E25: $CN$1:$CN$29
A26: 93 | B26: 1 | C26: 93 | D26: 15 | E26: $CO$1:$CO$15
A27: 93 | B27: 16 | C27: 93 | D27: 29 | E27: $CO$16:$CO$29
A28: 100 | B28: 17 | C28: 110 | D28: 29 | E28: $CV$17:$DF$29
A29: 101 | B29: 1 | C29: 108 | D29: 8 | E29: $CW$1:$DD$8
A30: 110 | B30: 1 | C30: 116 | D30: 4 | E30: $DF$1:$DL$4
A31: 110 | B31: 7 | C31: 116 | D31: 12 | E31: $DF$7:$DL$12
A32: 118 | B32: 1 | C32: 125 | D32: 4 | E32: $DN$1:$DU$4
A33: 118 | B33: 6 | C33: 125 | D33: 12 | E33: $DN$6:$DU$12
A34: 118 | B34: 14 | C34: 125 | D34: 19 | E34: $DN$14:$DU$19
A35: 112 | B35: 15 | C35: 115 | D35: 18 | E35: $DH$15:$DK$18
A36: 112 | B36: 20 | C36: 115 | D36: 23 | E36: $DH$20:$DK$23
A37: 53 | B37: 43 | C37: 58 | D37: 46 | E37: $BA$43:$BF$46
A38: 76 | B38: 2 | C38: 76 | D38: 3 | E38: $BX$2:$BX$3

Sheet Dashboard (data) (hidden)
AO1: Računovodstveni standard | AP1: Pravni oblik | AR1: Funkcija revizorski | AS1: FUNKCIJA NO | AT1: PREDSTAVNIK | AU1: SPOL | AV1: Funkcija Uprava | AZ1: Veličina društva | BB1: =Podloga!B36 -> 2024. planirano | BC1: =Podloga!C36 -> 2024. ostvareno | BD1: =Podloga!D36 -> 2025. planirano | BE1: =Podloga!E36 -> 2025. procijenjeno | BF1: =Podloga!F36 -> 2026. planirano | BL1: Altman basic | CF1: Analiza bruto dobiti | CG1: U tisućama kuna | CH1: Bruto dobit prethodne godine | CI1: =RDG!D59 -> 337.409 | CJ1: =CI1 -> 337.409 | CN1: =CH1 -> Bruto dobit prethodne godine | CO1: =CJ1 -> 337.409 | CP1: =CK1 -> 0 | CQ1: =IF(CI1>=0,CL1,0) -> 0 | CR1: =IF(CI1<0,CL1,0) -> 0 | CS1: =IF(CI1>=0,CM1,0) -> 0 | CT1: =IF(CI1<0,CM1,0) -> 0 | CU1: 0 | CV1: Analiza EBITDA (plan 2015 / ostvareno 2015) | CW1: U tisućama kuna | CX1: Planirana EBITDA tekuće godine | CY1: =BD3 -> 501.39 | CZ1: =CY1 -> 501.39 | DD1: =CX1 -> Planirana EBITDA tekuće godine | DE1: =CZ1 -> 501.39 | DF1: =DA1 -> 0 | DG1: =IF(CY1>=0,DB1,0) -> 0 | DH1: =IF(CY1<0,DB1,0) -> 0 | DI1: =IF(CY1>=0,DC1,0) -> 0 | DJ1: =IF(CY1<0,DC1,0) -> 0 | DK1: 0 | DN1: =Podloga!B36 -> 2024. planirano | DO1: =Podloga!C36 -> 2024. ostvareno | DP1: =Podloga!D36 -> 2025. planirano | DQ1: =Podloga!E36 -> 2025. procijenjeno | DR1: =Podloga!F36 -> 2026. planirano | DW1: =Podloga!B36 -> 2024. planirano | DX1: =Podloga!C36 -> 2024. ostvareno | DY1: =Podloga!D36 -> 2025. planirano | DZ1: =Podloga!E36 -> 2025. procijenjeno | EA1: =Podloga!F36 -> 2026. planirano | EF1: =Podloga!B36 -> 2024. planirano | EG1: =Podloga!C36 -> 2024. ostvareno | EH1: =Podloga!D36 -> 2025. planirano | EI1: =Podloga!E36 -> 2025. procijenjeno | EJ1: =Podloga!F36 -> 2026. planirano | EM1: =Podloga!C36 -> 2024. ostvareno | EN1: =Podloga!E36 -> 2025. procijenjeno | EO1: =Podloga!B36 -> 2024. planirano | EP1: =Podloga!D36 -> 2025. planirano | EQ1: =Podloga!F36 -> 2026. planirano
AO2: HSFI | AP2: d.o.o. | AR2: Predsjednik | AS2: Predsjednik | AT2: RH | AU2: M | AV2: Predsjednik | AX2: DA | AY2: Donacija | AZ2: Mikro | BA2: Ukupni prihod | BB2: =RDG!C57 -> 3446.434 | BC2: =RDG!D57 -> 3814.528 | BD2: =RDG!E57 -> 3992.2 | BE2: =RDG!F57 -> 4012.536 | BF2: =RDG!G57 -> 4802.955 | BL2: X1 | BM2: =IFERROR('Altman Integral (Basic)'!C40/'Altman Integral (Basic)'!C41,) -> 0.03220642908 | BN2: =IFERROR('Altman Integral (Basic)'!D40/'Altman Integral (Basic)'!D41,) -> 0.0482528279 | BO2: =IFERROR('Altman Integral (Basic)'!E40/'Altman Integral (Basic)'!E41,) -> 0.0188570359 | BP2: =IFERROR('Altman Integral (Basic)'!F40/'Altman Integral (Basic)'!F41,) -> 0.06080575409 | BQ2: =IFERROR('Altman Integral (Basic)'!G40/'Altman Integral (Basic)'!G41,) -> 0.03242499607 | BR2: Koeficijent: | BS2: X1 | BT2: 1.2 | BX2: Direktna | CH2: Poslovni prihodi Δ | CI2: =RDG!F5-RDG!D5 -> 198.036 | CK2: =IF(SUM(CI1)>=0,(IF(CI2>=0,SUM(CI1),(IF(ABS(SUM(CI1))>ABS(CI2),SUM(CI1:CI2),0)))),(IF(CI2<0,SUM(CI1),(IF(ABS(SUM(CI1))>ABS(CI2),SUM(CI1:CI2),0))))) -> 337.409 | CL2: =IF(SUM(CI1)>=0,(IF(CI2<0,(IF(ABS(CI2)>ABS(SUM(CI1)),SUM(CI1),ABS(CI2))),CI2)),(IF(CI2>0,(IF(ABS(CI2)>ABS(SUM(CI1)),SUM(CI1:CI2),0)),0))) -> 198.036 | CM2: =IF(SUM(CI1)<0,(IF(CI2<0,CI2,(IF(ABS(CI2)>ABS(SUM(CI1)),SUM(CI1),0-CI2)))),(IF(CI2<0,(IF(ABS(CI2)>ABS(SUM(CI1)),SUM(CI1:CI2),0)),0))) -> 0 | CN2: Poslovni prihodi Δ | CP2: =CK2 -> 337.409 | CQ2: =IF(CI2>=0,CL2,0) -> 198.036 | CR2: =IF(CI2<0,CL2,0) -> 0 | CS2: =IF(CI2>=0,CM2,0) -> 0 | CT2: =IF(CI2<0,CM2,0) -> 0 | CU2: 0 | CX2: Prihodi od prodaje Δ | CY2: =(RDG!F6+RDG!F7)-(RDG!E6+RDG!E7) -> -142.203 | DA2: =IF(SUM(CY1)>=0,(IF(CY2>=0,SUM(CY1),(IF(ABS(SUM(CY1))>ABS(CY2),SUM(CY1:CY2),0)))),(IF(CY2<0,SUM(CY1),(IF(ABS(SUM(CY1))>ABS(CY2),SUM(CY1:CY2),0))))) -> 359.187 | DB2: =IF(SUM(CY1)>=0,(IF(CY2<0,(IF(ABS(CY2)>ABS(SUM(CY1)),SUM(CY1),ABS(CY2))),CY2)),(IF(CY2>0,(IF(ABS(CY2)>ABS(SUM(CY1)),SUM(CY1:CY2),0)),0))) -> 142.203 | DC2: =IF(SUM(CY1)<0,(IF(CY2<0,CY2,(IF(ABS(CY2)>ABS(SUM(CY1)),SUM(CY1),0-CY2)))),(IF(CY2<0,(IF(ABS(CY2)>ABS(SUM(CY1)),SUM(CY1:CY2),0)),0))) -> 0 | DD2: =CX2 -> Prihodi od prodaje Δ | DE2: =CZ2 -> 0 | DF2: =DA2 -> 359.187 | DG2: =IF(CY2>=0,DB2,0) -> 0 | DH2: =IF(CY2<0,DB2,0) -> 142.203 | DI2: =IF(CY2>=0,DC2,0) -> 0 | DJ2: =IF(CY2<0,DC2,0) -> 0 | DK2: 0 | DM2: Kapital i rezerve | DN2: =Bilanca!C75 -> 909.625 | DO2: =Bilanca!D75 -> 1150.224 | DP2: =Bilanca!E75 -> 871.261 | DQ2: =Bilanca!F75 -> 1539.841 | DR2: =Bilanca!G75 -> 1587.75 | DV2: Priljev od poslovnih aktivnosti | DW2: =IFERROR(IF(Podloga!$B$19="Direktna",'NT dir.'!C7+'NT dir.'!C8+'NT dir.'!C9+'NT dir.'!C10+'NT dir.'!#REF!,'NT indir.'!C17),) -> 0 | DX2: =IFERROR(IF(Podloga!$B$19="Direktna",'NT dir.'!D7+'NT dir.'!D8+'NT dir.'!D9+'NT dir.'!D10+'NT dir.'!#REF!,'NT indir.'!D17),) -> 799.384 | DY2: =IFERROR(IF(Podloga!$B$19="Direktna",'NT dir.'!E7+'NT dir.'!E8+'NT dir.'!E9+'NT dir.'!E10+'NT dir.'!#REF!,'NT indir.'!E17),) -> 0 | DZ2: =IFERROR(IF(Podloga!$B$19="Direktna",'NT dir.'!F7+'NT dir.'!F8+'NT dir.'!F9+'NT dir.'!F10+'NT dir.'!#REF!,'NT indir.'!F17),) -> 884.179 | EA2: =IFERROR(IF(Podloga!$B$19="Direktna",'NT dir.'!G7+'NT dir.'!G8+'NT dir.'!G9+'NT dir.'!G10+'NT dir.'!#REF!,'NT indir.'!G17),) -> 0 | EE2: Ukupni prihodi | EF2: =RDG!C57 -> 3446.434 | EG2: =RDG!D57 -> 3814.528 | EH2: =RDG!E57 -> 3992.2 | EI2: =RDG!F57 -> 4012.536 | EJ2: =RDG!G57 -> 4802.955 | EL2: Prihodi | EM2: =RDG!D57 -> 3814.528 | EN2: =RDG!F57 -> 4012.536 | EO2: =RDG!C57 -> 3446.434 | EP2: =RDG!E57 -> 3992.2 | EQ2: =RDG!G57 -> 4802.955
AO3: MSFI | AP3: d.d. | AR3: Član | AS3: Član | AT3: CERP | AU3: Ž | AV3: Član | AX3: NE | AY3: Sponzorstvo | AZ3: Mali | BA3: EBITDA | BB3: =RDG!C59+RDG!C46+RDG!C48+RDG!C21 -> 485.87 | BC3: =RDG!D59+RDG!D46+RDG!D48+RDG!D21 -> 799.905 | BD3: =RDG!E59+RDG!E46+RDG!E48+RDG!E21 -> 501.39 | BE3: =RDG!F59+RDG!F46+RDG!F48+RDG!F21 -> 887.044 | BF3: =RDG!G59+RDG!G46+RDG!G48+RDG!G21 -> 587.909 | BL3: X2 | BM3: =IFERROR('Altman Integral (Basic)'!C42/'Altman Integral (Basic)'!C41,) -> -0.1261056065 | BN3: =IFERROR('Altman Integral (Basic)'!D42/'Altman Integral (Basic)'!D41,) -> -0.1817037083 | BO3: =IFERROR('Altman Integral (Basic)'!E42/'Altman Integral (Basic)'!E41,) -> -0.09783615839 | BP3: =IFERROR('Altman Integral (Basic)'!F42/'Altman Integral (Basic)'!F41,) -> -0.1374548186 | BQ3: =IFERROR('Altman Integral (Basic)'!G42/'Altman Integral (Basic)'!G41,) -> -0.07772338567 | BS3: X2 | BT3: 1.4 | BX3: Indirektna | CH3: Materijalni troškovi Δ | CI3: =RDG!D13-RDG!F13 -> 121.926 | CK3: =IF(SUM(CI1:CI2)>=0,(IF(CI3>=0,SUM(CI1:CI2),(IF(ABS(SUM(CI1:CI2))>ABS(CI3),SUM(CI1:CI3),0)))),(IF(CI3<0,SUM(CI1:CI2),(IF(ABS(SUM(CI1:CI2))>ABS(CI3),SUM(CI1:CI3),0))))) -> 535.445 | CL3: =IF(SUM(CI1:CI2)>=0,(IF(CI3<0,(IF(ABS(CI3)>ABS(SUM(CI1:CI2)),SUM(CI1:CI2),ABS(CI3))),CI3)),(IF(CI3>0,(IF(ABS(CI3)>ABS(SUM(CI1:CI2)),SUM(CI1:CI3),0)),0))) -> 121.926 | CM3: =IF(SUM(CI1:CI2)<0,(IF(CI3<0,CI3,(IF(ABS(CI3)>ABS(SUM(CI1:CI2)),SUM(CI1:CI2),0-CI3)))),(IF(CI3<0,(IF(ABS(CI3)>ABS(SUM(CI1:CI2)),SUM(CI1:CI3),0)),0))) -> 0 | CN3: Materijalni troškovi Δ | CP3: 535.445 | CQ3: 121.926 | CR3: 0 | CS3: 0 | CT3: 0 | CU3: 0 | CX3: Ostali prihodi Δ | CY3: =(RDG!F57-RDG!F6-RDG!F7)-(RDG!E57-RDG!E6-RDG!E7) -> 162.539 | DA3: =IF(SUM(CY1:CY2)>=0,(IF(CY3>=0,SUM(CY1:CY2),(IF(ABS(SUM(CY1:CY2))>ABS(CY3),SUM(CY1:CY3),0)))),(IF(CY3<0,SUM(CY1:CY2),(IF(ABS(SUM(CY1:CY2))>ABS(CY3),SUM(CY1:CY3),0))))) -> 359.187 | DB3: =IF(SUM(CY1:CY2)>=0,(IF(CY3<0,(IF(ABS(CY3)>ABS(SUM(CY1:CY2)),SUM(CY1:CY2),ABS(CY3))),CY3)),(IF(CY3>0,(IF(ABS(CY3)>ABS(SUM(CY1:CY2)),SUM(CY1:CY3),0)),0))) -> 162.539 | DC3: =IF(SUM(CY1:CY2)<0,(IF(CY3<0,CY3,(IF(ABS(CY3)>ABS(SUM(CY1:CY2)),SUM(CY1:CY2),0-CY3)))),(IF(CY3<0,(IF(ABS(CY3)>ABS(SUM(CY1:CY2)),SUM(CY1:CY3),0)),0))) -> 0 | DD3: Ostali prihodi Δ | DE3: 0 | DF3: 359.187 | DG3: 162.539 | DH3: 0 | DI3: 0 | DJ3: 0 | DK3: 0 | DM3: Rezerviranja | DN3: =Bilanca!C96 -> 0 | DO3: =Bilanca!D96 -> 21.65 | DP3: =Bilanca!E96 -> 0 | DQ3: =Bilanca!F96 -> 21.65 | DR3: =Bilanca!G96 -> 0 | DV3: Poslovni prihodi | DW3: =IFERROR(RDG!C5,) -> 3445.894 | DX3: =IFERROR(RDG!D5,) -> 3814.391 | DY3: =IFERROR(RDG!E5,) -> 3991.6 | DZ3: =IFERROR(RDG!F5,) -> 4012.427 | EA3: =IFERROR(RDG!G5,) -> 4802.805 | EE3: Ukupna imovina | EF3: =Bilanca!C68 -> 20409.838 | EG3: =Bilanca!D68 -> 14667.74137 | EH3: =Bilanca!E68 -> 27049.161 | EI3: =Bilanca!F68 -> 16934.84466 | EJ3: =Bilanca!G68 -> 24936.626 | EL3: EBITDA | EM3: =BC3 -> 799.905 | EN3: =BE3 -> 887.044 | EO3: =BB3 -> 485.87 | EP3: =BD3 -> 501.39 | EQ3: =BF3 -> 587.909
AP4: Ustanova | AR4: Zamjenik predsj. | AS4: Zamjenik predsj. | AT4: MIDIM (RH) funkcija | AV4: Zamjenik predsj. | AZ4: Srednji | BA4: EBITDA marža | BB4: =IFERROR((RDG!C59+RDG!C46+RDG!C48+RDG!C21)/RDG!C57,) -> 0.1409776018 | BC4: =IFERROR((RDG!D59+RDG!D46+RDG!D48+RDG!D21)/RDG!D57,) -> 0.2096996011 | BD4: =IFERROR((RDG!E59+RDG!E46+RDG!E48+RDG!E21)/RDG!E57,) -> 0.1255924052 | BE4: =IFERROR((RDG!F59+RDG!F46+RDG!F48+RDG!F21)/RDG!F57,) -> 0.2210681723 | BF4: =IFERROR((RDG!G59+RDG!G46+RDG!G48+RDG!G21)/RDG!G57,) -> 0.1224056857 | BL4: X3 | BM4: =IFERROR('Altman Integral (Basic)'!C43/'Altman Integral (Basic)'!C41,) -> 0.00298238526 | BN4: =IFERROR('Altman Integral (Basic)'!D43/'Altman Integral (Basic)'!D41,) -> 0.02916427207 | BO4: =IFERROR('Altman Integral (Basic)'!E43/'Altman Integral (Basic)'!E41,) -> 0.004783512509 | BP4: =IFERROR('Altman Integral (Basic)'!F43/'Altman Integral (Basic)'!F41,) -> 0.03008076013 | BQ4: =IFERROR('Altman Integral (Basic)'!G43/'Altman Integral (Basic)'!G41,) -> 0.006733428973 | BS4: X3 | BT4: 3.3 | CH4: Troškovi osoblja Δ | CI4: =RDG!D17-RDG!F17 -> -283.848 | CK4: =IF(SUM(CI1:CI3)>=0,(IF(CI4>=0,SUM(CI1:CI3),(IF(ABS(SUM(CI1:CI3))>ABS(CI4),SUM(CI1:CI4),0)))),(IF(CI4<0,SUM(CI1:CI3),(IF(ABS(SUM(CI1:CI3))>ABS(CI4),SUM(CI1:CI4),0))))) -> 373.523 | CL4: =IF(SUM(CI1:CI3)>=0,(IF(CI4<0,(IF(ABS(CI4)>ABS(SUM(CI1:CI3)),SUM(CI1:CI3),ABS(CI4))),CI4)),(IF(CI4>0,(IF(ABS(CI4)>ABS(SUM(CI1:CI3)),SUM(CI1:CI4),0)),0))) -> 283.848 | CM4: =IF(SUM(CI1:CI3)<0,(IF(CI4<0,CI4,(IF(ABS(CI4)>ABS(SUM(CI1:CI3)),SUM(CI1:CI3),0-CI4)))),(IF(CI4<0,(IF(ABS(CI4)>ABS(SUM(CI1:CI3)),SUM(CI1:CI4),0)),0))) -> 0 | CN4: Troškovi osoblja Δ | CP4: 373.523 | CQ4: 0 | CR4: 283.848 | CS4: 0 | CT4: 0 | CU4: 0 | CX4: Promjena vrijednosti zaliha Δ | CY4: =RDG!E12-RDG!F12 -> 0 | DA4: =IF(SUM(CY1:CY3)>=0,(IF(CY4>=0,SUM(CY1:CY3),(IF(ABS(SUM(CY1:CY3))>ABS(CY4),SUM(CY1:CY4),0)))),(IF(CY4<0,SUM(CY1:CY3),(IF(ABS(SUM(CY1:CY3))>ABS(CY4),SUM(CY1:CY4),0))))) -> 521.726 | DB4: =IF(SUM(CY1:CY3)>=0,(IF(CY4<0,(IF(ABS(CY4)>ABS(SUM(CY1:CY3)),SUM(CY1:CY3),ABS(CY4))),CY4)),(IF(CY4>0,(IF(ABS(CY4)>ABS(SUM(CY2:CY3)),SUM(CY1:CY4),0)),0))) -> 0 | DC4: =IF(SUM(CY1:CY3)<0,(IF(CY4<0,CY4,(IF(ABS(CY4)>ABS(SUM(CY1:CY3)),SUM(CY1:CY3),0-CY4)))),(IF(CY4<0,(IF(ABS(CY4)>ABS(SUM(CY1:CY3)),SUM(CY1:CY4),0)),0))) -> 0 | DD4: Promjena vrijednosti zaliha Δ | DE4: 0 | DF4: 521.726 | DG4: 0 | DH4: 0 | DI4: 0 | DJ4: 0 | DK4: 0 | DM4: Dugoročne obveze | DN4: =Bilanca!C103 -> 2799.417 | DO4: =Bilanca!D103 -> 2722.38581 | DP4: =Bilanca!E103 -> 2743.27 | DQ4: =Bilanca!F103 -> 2931.57 | DR4: =Bilanca!G103 -> 2978.675 | DV4: Omjer primitaka od poslovnih aktivnosti i poslovnih prihoda | DW4: =DW2/DW3 -> 0 | DX4: =DX2/DX3 -> 0.2095705448 | DY4: =DY2/DY3 -> 0 | DZ4: 0.2203601461 | EA4: 0 | EE4: Koeficijent obrtaja imovine | EF4: =EF2/EF3 -> 0.1688614089 | EG4: =EG2/EG3 -> 0.2600623984 | EH4: 0.1475905297 | EI4: 0.2369396402 | EJ4: 0.1926064496 | EL4: EBITDA marža | EM4: =BC4 -> 0.2096996011 | EN4: =BE4 -> 0.2210681723 | EO4: =BB4 -> 0.1409776018 | EP4: =BD4 -> 0.1255924052 | EQ4: =BF4 -> 0.1224056857
AP5: Druga osoba za koje je upis propisan zakonom | AS5: Predstavnik radnika | AT5: RH - funkcija | AV5: Direktor | AZ5: Veliki | BL5: X4 | BM5: =IFERROR('Altman Integral (Basic)'!C46/'Altman Integral (Basic)'!C44,) -> 0 | BN5: =IFERROR('Altman Integral (Basic)'!D46/'Altman Integral (Basic)'!D44,) -> 0 | BO5: =IFERROR('Altman Integral (Basic)'!E46/'Altman Integral (Basic)'!E44,) -> 0 | BP5: =IFERROR('Altman Integral (Basic)'!F46/'Altman Integral (Basic)'!F44,) -> 0 | BQ5: =IFERROR('Altman Integral (Basic)'!G46/'Altman Integral (Basic)'!G44,) -> 0 | BS5: X4 | BT5: 0.6 | CH5: Ostali poslovni rashodi Δ | CI5: =(RDG!D11-RDG!D13-RDG!D17)-(RDG!F11-RDG!F13-RDG!F17) -> 45.423 | CK5: =IF(SUM(CI1:CI4)>=0,(IF(CI5>=0,SUM(CI1:CI4),(IF(ABS(SUM(CI1:CI4))>ABS(CI5),SUM(CI1:CI5),0)))),(IF(CI5<0,SUM(CI1:CI4),(IF(ABS(SUM(CI1:CI4))>ABS(CI5),SUM(CI1:CI5),0))))) -> 373.523 | CL5: =IF(SUM(CI1:CI4)>=0,(IF(CI5<0,(IF(ABS(CI5)>ABS(SUM(CI1:CI4)),SUM(CI1:CI4),ABS(CI5))),CI5)),(IF(CI5>0,(IF(ABS(CI5)>ABS(SUM(CI1:CI4)),SUM(CI1:CI5),0)),0))) -> 45.423 | CM5: =IF(SUM(CI1:CI4)<0,(IF(CI5<0,CI5,(IF(ABS(CI5)>ABS(SUM(CI1:CI4)),SUM(CI1:CI4),0-CI5)))),(IF(CI5<0,(IF(ABS(CI5)>ABS(SUM(CI1:CI4)),SUM(CI1:CI5),0)),0))) -> 0 | CN5: Ostali poslovni rashodi Δ | CP5: 373.523 | CQ5: 45.423 | CR5: 0 | CS5: 0 | CT5: 0 | CU5: 0 | CX5: Materijalni troškovi Δ | CY5: =RDG!E13-RDG!F13 -> 307.343 | DA5: =IF(SUM(CY1:CY4)>=0,(IF(CY5>=0,SUM(CY1:CY4),(IF(ABS(SUM(CY1:CY4))>ABS(CY5),SUM(CY1:CY5),0)))),(IF(CY5<0,SUM(CY1:CY4),(IF(ABS(SUM(CY1:CY4))>ABS(CY5),SUM(CY1:CY5),0))))) -> 521.726 | DB5: =IF(SUM(CY1:CY4)>=0,(IF(CY5<0,(IF(ABS(CY5)>ABS(SUM(CY1:CY4)),SUM(CY1:CY4),ABS(CY5))),CY5)),(IF(CY5>0,(IF(ABS(CY5)>ABS(SUM(CY1:CY4)),SUM(CY1:CY5),0)),0))) -> 307.343 | DC5: =IF(SUM(CY1:CY4)<0,(IF(CY5<0,CY5,(IF(ABS(CY5)>ABS(SUM(CY1:CY4)),SUM(CY1:CY4),0-CY5)))),(IF(CY5<0,(IF(ABS(CY5)>ABS(SUM(CY1:CY4)),SUM(CY1:CY5),0)),0))) -> 0 | DD5: Materijalni troškovi Δ | DE5: 0 | DF5: 521.726 | DG5: 307.343 | DH5: 0 | DI5: 0 | DJ5: 0 | DK5: 0 | DM5: Kratkoročne obveze | DN5: =Bilanca!C115 -> 16700.799 | DO5: =Bilanca!D115 -> 673.689 | DP5: =Bilanca!E115 -> 767.357 | DQ5: =Bilanca!F115 -> 673.692 | DR5: =Bilanca!G115 -> 579.185 | EL5: Neto profitna marža | EM5: =BC8 -> 0.08845366976 | EN5: =BE8 -> 0.09709993879 | EO5: =BB8 -> 0.001456578017 | EP5: =BD8 -> 0.009931867141 | EQ5: =BF8 -> 0.009974900868
AT6: predst. radnika | BB6: =Podloga!B36 -> 2024. planirano | BC6: =Podloga!C36 -> 2024. ostvareno | BD6: =Podloga!D36 -> 2025. planirano | BE6: =Podloga!E36 -> 2025. procijenjeno | BF6: =Podloga!F36 -> 2026. planirano | BL6: X5 | BM6: =IFERROR('Altman Integral (Basic)'!C45/'Altman Integral (Basic)'!C41,) -> 0.1688614089 | BN6: =IFERROR('Altman Integral (Basic)'!D45/'Altman Integral (Basic)'!D41,) -> 0.2600623984 | BO6: =IFERROR('Altman Integral (Basic)'!E45/'Altman Integral (Basic)'!E41,) -> 0.1475905297 | BP6: =IFERROR('Altman Integral (Basic)'!F45/'Altman Integral (Basic)'!F41,) -> 0.2369396402 | BQ6: =IFERROR('Altman Integral (Basic)'!G45/'Altman Integral (Basic)'!G41,) -> 0.1926064496 | BS6: X5 | BT6: 1 | CH6: Financijski i investicijski prihodi Δ | CI6: =(RDG!F34+RDG!F53+RDG!F54)-(RDG!D34+RDG!D53+RDG!D54) -> -0.028 | CK6: =IF(SUM(CI1:CI5)>=0,(IF(CI6>=0,SUM(CI1:CI5),(IF(ABS(SUM(CI1:CI5))>ABS(CI6),SUM(CI1:CI6),0)))),(IF(CI6<0,SUM(CI1:CI5),(IF(ABS(SUM(CI1:CI5))>ABS(CI6),SUM(CI1:CI6),0))))) -> 418.918 | CL6: =IF(SUM(CI1:CI5)>=0,(IF(CI6<0,(IF(ABS(CI6)>ABS(SUM(CI1:CI5)),SUM(CI1:CI5),ABS(CI6))),CI6)),(IF(CI6>0,(IF(ABS(CI6)>ABS(SUM(CI1:CI5)),SUM(CI1:CI6),0)),0))) -> 0.028 | CM6: =IF(SUM(CI1:CI5)<0,(IF(CI6<0,CI6,(IF(ABS(CI6)>ABS(SUM(CI1:CI5)),SUM(CI1:CI5),0-CI6)))),(IF(CI6<0,(IF(ABS(CI6)>ABS(SUM(CI1:CI5)),SUM(CI1:CI6),0)),0))) -> 0 | CN6: Financijski i investicijski prihodi Δ | CP6: 418.918 | CQ6: 0 | CR6: 0.028 | CS6: 0 | CT6: 0 | CU6: 0 | CX6: Troškovi osoblja Δ | CY6: =RDG!E17-RDG!F17 -> 108.788 | DA6: =IF(SUM(CY1:CY5)>=0,(IF(CY6>=0,SUM(CY1:CY5),(IF(ABS(SUM(CY1:CY5))>ABS(CY6),SUM(CY1:CY6),0)))),(IF(CY6<0,SUM(CY1:CY5),(IF(ABS(SUM(CY1:CY5))>ABS(CY6),SUM(CY1:CY6),0))))) -> 829.069 | DB6: =IF(SUM(CY1:CY5)>=0,(IF(CY6<0,(IF(ABS(CY6)>ABS(SUM(CY1:CY5)),SUM(CY1:CY5),ABS(CY6))),CY6)),(IF(CY6>0,(IF(ABS(CY6)>ABS(SUM(CY1:CY5)),SUM(CY1:CY6),0)),0))) -> 108.788 | DC6: =IF(SUM(CY1:CY5)<0,(IF(CY6<0,CY6,(IF(ABS(CY6)>ABS(SUM(CY1:CY5)),SUM(CY1:CY5),0-CY6)))),(IF(CY6<0,(IF(ABS(CY6)>ABS(SUM(CY1:CY5)),SUM(CY1:CY6),0)),0))) -> 0 | DD6: Troškovi osoblja Δ | DE6: 0 | DF6: 829.069 | DG6: 108.788 | DH6: 0 | DI6: 0 | DJ6: 0 | DK6: 0 | DM6: Ostalo | DN6: =Bilanca!C130 -> 0 | DO6: =Bilanca!D130 -> 10099.795 | DP6: =Bilanca!E130 -> 22667.272 | DQ6: =Bilanca!F130 -> 11768.088 | DR6: =Bilanca!G130 -> 19791.017 | EF6: =Podloga!B36 -> 2024. planirano | EG6: =Podloga!C36 -> 2024. ostvareno | EH6: =Podloga!D36 -> 2025. planirano | EI6: =Podloga!E36 -> 2025. procijenjeno | EJ6: =Podloga!F36 -> 2026. planirano | EL6: Poslovne akt. | EM6: =IF(Podloga!$B$19="Direktna",'NT dir.'!D18,'NT indir.'!D26) -> 1389.136 | EN6: =IF(Podloga!$B$19="Direktna",'NT dir.'!F18,'NT indir.'!F26) -> 2306.943 | EO6: =IF(Podloga!$B$19="Direktna",'NT dir.'!C18,'NT indir.'!C26) -> -55.85 | EP6: =IF(Podloga!$B$19="Direktna",'NT dir.'!E18,'NT indir.'!E26) -> 12863.64 | EQ6: =IF(Podloga!$B$19="Direktna",'NT dir.'!G18,'NT indir.'!G26) -> 12806.441
AT7: predst. poslodavaca (bez prava glasa) | BA7: Dobit razdoblja | BB7: =RDG!C63 -> 5.02 | BC7: =RDG!D63 -> 337.409 | BD7: =RDG!E63 -> 39.65 | BE7: =RDG!F63 -> 389.617 | BF7: =RDG!G63 -> 47.909 | BL7: Gornja granica | BM7: 3 | BN7: 3 | BO7: 3 | BP7: 3 | BQ7: 3 | CH7: Financijski i investicijski rashodi Δ | CI7: =(RDG!D45+RDG!D55+RDG!D56)-(RDG!F45+RDG!F55+RDG!F56) -> -29.301 | CK7: =IF(SUM(CI1:CI6)>=0,(IF(CI7>=0,SUM(CI1:CI6),(IF(ABS(SUM(CI1:CI6))>ABS(CI7),SUM(CI1:CI7),0)))),(IF(CI7<0,SUM(CI1:CI6),(IF(ABS(SUM(CI1:CI6))>ABS(CI7),SUM(CI1:CI7),0))))) -> 389.617 | CL7: =IF(SUM(CI1:CI6)>=0,(IF(CI7<0,(IF(ABS(CI7)>ABS(SUM(CI1:CI6)),SUM(CI1:CI6),ABS(CI7))),CI7)),(IF(CI7>0,(IF(ABS(CI7)>ABS(SUM(CI1:CI6)),SUM(CI1:CI7),0)),0))) -> 29.301 | CM7: =IF(SUM(CI1:CI6)<0,(IF(CI7<0,CI7,(IF(ABS(CI7)>ABS(SUM(CI1:CI6)),SUM(CI1:CI6),0-CI7)))),(IF(CI7<0,(IF(ABS(CI7)>ABS(SUM(CI1:CI6)),SUM(CI1:CI7),0)),0))) -> 0 | CN7: Financijski i investicijski rashodi Δ | CP7: 389.617 | CQ7: 0 | CR7: 29.301 | CS7: 0 | CT7: 0 | CU7: 0 | CX7: Vrijednosna usklađenja Δ | CY7: =RDG!E23-RDG!F23 -> 0 | DA7: =IF(SUM(CY1:CY6)>=0,(IF(CY7>=0,SUM(CY1:CY6),(IF(ABS(SUM(CY1:CY6))>ABS(CY7),SUM(CY1:CY7),0)))),(IF(CY7<0,SUM(CY1:CY6),(IF(ABS(SUM(CY1:CY6))>ABS(CY7),SUM(CY1:CY7),0))))) -> 937.857 | DB7: =IF(SUM(CY1:CY6)>=0,(IF(CY7<0,(IF(ABS(CY7)>ABS(SUM(CY1:CY6)),SUM(CY1:CY6),ABS(CY7))),CY7)),(IF(CY7>0,(IF(ABS(CY7)>ABS(SUM(CY1:CY6)),SUM(CY1:CY7),0)),0))) -> 0 | DC7: =IF(SUM(CY1:CY6)<0,(IF(CY7<0,CY7,(IF(ABS(CY7)>ABS(SUM(CY1:CY6)),SUM(CY1:CY6),0-CY7)))),(IF(CY7<0,(IF(ABS(CY7)>ABS(SUM(CY1:CY6)),SUM(CY1:CY7),0)),0))) -> 0 | DD7: Vrijednosna usklađenja Δ | DE7: 0 | DF7: 937.857 | DG7: 0 | DH7: 0 | DI7: 0 | DJ7: 0 | DK7: 0 | DM7: Ukupno pasiva | DN7: =SUM(DN2:DN6) -> 20409.841 | DO7: =SUM(DO2:DO6) -> 14667.74381 | DP7: 27049.16 | DQ7: 16934.841 | DR7: 24936.627 | DW7: =Podloga!B36 -> 2024. planirano | DX7: =Podloga!C36 -> 2024. ostvareno | DY7: =Podloga!D36 -> 2025. planirano | DZ7: =Podloga!E36 -> 2025. procijenjeno | EA7: =Podloga!F36 -> 2026. planirano | EE7: Ukupni prihodi | EF7: =RDG!C57 -> 3446.434 | EG7: =RDG!D57 -> 3814.528 | EH7: =RDG!E57 -> 3992.2 | EI7: =RDG!F57 -> 4012.536 | EJ7: =RDG!G57 -> 4802.955 | EL7: Investicijske akt. | EM7: =IF(Podloga!$B$19="Direktna",'NT dir.'!D33,'NT indir.'!D41) -> -1103.931 | EN7: =IF(Podloga!$B$19="Direktna",'NT dir.'!F33,'NT indir.'!F41) -> -2004.667 | EO7: =IF(Podloga!$B$19="Direktna",'NT dir.'!C33,'NT indir.'!C41) -> 0.52 | EP7: =IF(Podloga!$B$19="Direktna",'NT dir.'!E33,'NT indir.'!E41) -> -12467.053 | EQ7: =IF(Podloga!$B$19="Direktna",'NT dir.'!G33,'NT indir.'!G41) -> -12717.421
AT8: Grad Crikvenica | BA8: Neto profitna marža | BB8: =IFERROR(RDG!C63/RDG!C57,) -> 0.001456578017 | BC8: =IFERROR(RDG!D63/RDG!D57,) -> 0.08845366976 | BD8: =IFERROR(RDG!E63/RDG!E57,) -> 0.009931867141 | BE8: =IFERROR(RDG!F63/RDG!F57,) -> 0.09709993879 | BF8: =IFERROR(RDG!G63/RDG!G57,) -> 0.009974900868 | BL8: Donja granica | BM8: 1.8 | BN8: 1.8 | BO8: 1.8 | BP8: 1.8 | BQ8: 1.8 | CH8: Procijenjena bruto dobit tekuće godine | CI8: =RDG!F59 -> 389.617 | CJ8: =CI8 -> 389.617 | CN8: Procijenjena bruto dobit tekuće godine | CO8: =CJ8 -> 389.617 | CP8: 0 | CQ8: 0 | CR8: 0 | CS8: 0 | CT8: 0 | CU8: 0 | CX8: Rezerviranja Δ | CY8: =RDG!E26-RDG!F26 -> -65.211 | DA8: =IF(SUM(CY1:CY7)>=0,(IF(CY8>=0,SUM(CY1:CY7),(IF(ABS(SUM(CY1:CY7))>ABS(CY8),SUM(CY1:CY8),0)))),(IF(CY8<0,SUM(CY1:CY7),(IF(ABS(SUM(CY1:CY7))>ABS(CY8),SUM(CY1:CY8),0))))) -> 872.646 | DB8: =IF(SUM(CY1:CY7)>=0,(IF(CY8<0,(IF(ABS(CY8)>ABS(SUM(CY1:CY7)),SUM(CY1:CY7),ABS(CY8))),CY8)),(IF(CY8>0,(IF(ABS(CY8)>ABS(SUM(CY1:CY7)),SUM(CY1:CY8),0)),0))) -> 65.211 | DC8: =IF(SUM(CY1:CY7)<0,(IF(CY8<0,CY8,(IF(ABS(CY8)>ABS(SUM(CY1:CY7)),SUM(CY1:CY7),0-CY8)))),(IF(CY8<0,(IF(ABS(CY8)>ABS(SUM(CY1:CY7)),SUM(CY1:CY8),0)),0))) -> 0 | DD8: Rezerviranja Δ | DE8: 0 | DF8: 872.646 | DG8: 0 | DH8: 65.211 | DI8: 0 | DJ8: 0 | DK8: 0 | DM8: Udio kapitala u pasivi | DN8: =Bilanca!C75/Bilanca!C131 -> 0.04456796111 | DO8: =Bilanca!D75/Bilanca!D131 -> 0.07841860445 | DP8: =Bilanca!E75/Bilanca!E131 -> 0.03221027936 | DQ8: =Bilanca!F75/Bilanca!F131 -> 0.09092739637 | DR8: =Bilanca!G75/Bilanca!G131 -> 0.06367140191 | DV8: Novčani primici od kupaca | DW8: =IFERROR(IF(Podloga!$B$19="Direktna",'NT dir.'!C7,),) -> 0 | DX8: =IFERROR(IF(Podloga!$B$19="Direktna",'NT dir.'!D7,),) -> 0 | DY8: =IFERROR(IF(Podloga!$B$19="Direktna",'NT dir.'!E7,),) -> 0 | DZ8: =IFERROR(IF(Podloga!$B$19="Direktna",'NT dir.'!F7,),) -> 0 | EA8: =IFERROR(IF(Podloga!$B$19="Direktna",'NT dir.'!G7,),) -> 0 | EE8: Ukupni rashodi | EF8: =RDG!C58 -> 3441.414 | EG8: =RDG!D58 -> 3477.119 | EH8: =RDG!E58 -> 3952.55 | EI8: =RDG!F58 -> 3622.919 | EJ8: =RDG!G58 -> 4755.046 | EL8: Financijske akt. | EM8: =IF(Podloga!$B$19="Direktna",'NT dir.'!D46,'NT indir.'!D54) -> 23.436 | EN8: =IF(Podloga!$B$19="Direktna",'NT dir.'!F46,'NT indir.'!F54) -> -38.854 | EO8: =IF(Podloga!$B$19="Direktna",'NT dir.'!C46,'NT indir.'!C54) -> 0 | EP8: =IF(Podloga!$B$19="Direktna",'NT dir.'!E46,'NT indir.'!E54) -> -217.491 | EQ8: =IF(Podloga!$B$19="Direktna",'NT dir.'!G46,'NT indir.'!G54) -> -136.992
AT9: Grad Dubrovnik | BA9: Operativna profitna marža | BB9: =(RDG!C5-RDG!C11)/(RDG!C6+RDG!C7) -> 0.05269035644 | BC9: =(RDG!D5-RDG!D11)/(RDG!D6+RDG!D7) -> 0.3297801353 | BD9: =(RDG!E5-RDG!E11)/(RDG!E6+RDG!E7) -> 0.07497552753 | BE9: =(RDG!F5-RDG!F11)/(RDG!F6+RDG!F7) -> 0.321623732 | BF9: =(RDG!G5-RDG!G11)/(RDG!G6+RDG!G7) -> 0.0806407705 | CX9: Ostali poslovni rashodi Δ | CY9: =(RDG!E22+RDG!E33+RDG!E55+RDG!E56)-(RDG!F22+RDG!F33+RDG!F55+RDG!F56) -> 13.969 | DA9: =IF(SUM(CY1:CY8)>=0,(IF(CY9>=0,SUM(CY1:CY8),(IF(ABS(SUM(CY1:CY8))>ABS(CY9),SUM(CY1:CY9),0)))),(IF(CY9<0,SUM(CY1:CY8),(IF(ABS(SUM(CY1:CY8))>ABS(CY9),SUM(CY1:CY9),0))))) -> 872.646 | DB9: =IF(SUM(CY1:CY8)>=0,(IF(CY9<0,(IF(ABS(CY9)>ABS(SUM(CY1:CY8)),SUM(CY1:CY8),ABS(CY9))),CY9)),(IF(CY9>0,(IF(ABS(CY9)>ABS(SUM(CY1:CY8)),SUM(CY1:CY9),0)),0))) -> 13.969 | DC9: =IF(SUM(CY1:CY8)<0,(IF(CY9<0,CY9,(IF(ABS(CY9)>ABS(SUM(CY1:CY8)),SUM(CY1:CY8),0-CY9)))),(IF(CY9<0,(IF(ABS(CY9)>ABS(SUM(CY1:CY8)),SUM(CY1:CY9),0)),0))) -> 0 | DD9: Ostali poslovni rashodi Δ | DE9: 0 | DF9: 872.646 | DG9: 13.969 | DH9: 0 | DI9: 0 | DJ9: 0 | DK9: 0 | DV9: Novčani primici od tantijema, naknada, provizija i slično | DW9: =IFERROR(IF(Podloga!$B$19="Direktna",'NT dir.'!C8,),) -> 0 | DX9: =IFERROR(IF(Podloga!$B$19="Direktna",'NT dir.'!D8,),) -> 0 | DY9: =IFERROR(IF(Podloga!$B$19="Direktna",'NT dir.'!E8,),) -> 0 | DZ9: =IFERROR(IF(Podloga!$B$19="Direktna",'NT dir.'!F8,),) -> 0 | EA9: =IFERROR(IF(Podloga!$B$19="Direktna",'NT dir.'!G8,),) -> 0 | EE9: Prihodi od poslovnih aktivnosti | EF9: =RDG!C5 -> 3445.894 | EG9: =RDG!D5 -> 3814.391 | EH9: =RDG!E5 -> 3991.6 | EI9: =RDG!F5 -> 4012.427 | EJ9: =RDG!G5 -> 4802.805 | EL9: Ukupno novč. tokovi | EM9: =IF(Podloga!$B$19="Direktna",'NT dir.'!D48,'NT indir.'!D56) -> 308.641 | EN9: =IF(Podloga!$B$19="Direktna",'NT dir.'!F48,'NT indir.'!F56) -> 263.422 | EO9: =IF(Podloga!$B$19="Direktna",'NT dir.'!C48,'NT indir.'!C56) -> 51.208 | EP9: =IF(Podloga!$B$19="Direktna",'NT dir.'!E48,'NT indir.'!E56) -> 179.096 | EQ9: =IF(Podloga!$B$19="Direktna",'NT dir.'!G48,'NT indir.'!G56) -> -47.967
AT10: Grad Kaštela | CH10: Planirana bruto dobit tekuće godine | CI10: =RDG!E59 -> 39.65 | CJ10: =CI10 -> 39.65 | CN10: =CH10 -> Planirana bruto dobit tekuće godine | CO10: =CJ10 -> 39.65 | CP10: =CK10 -> 0 | CQ10: 0 | CR10: 0 | CS10: 0 | CT10: 0 | CU10: 0 | CX10: Financijski rashodi (bez kamata) Δ | CY10: =(RDG!E45-RDG!E46-RDG!E48)-(RDG!F45-RDG!F46-RDG!F48) -> 0.429 | DA10: =IF(SUM(CY1:CY9)>=0,(IF(CY10>=0,SUM(CY1:CY9),(IF(ABS(SUM(CY1:CY9))>ABS(CY10),SUM(CY1:CY10),0)))),(IF(CY10<0,SUM(CY1:CY9),(IF(ABS(SUM(CY1:CY9))>ABS(CY10),SUM(CY1:CY10),0))))) -> 886.615 | DB10: =IF(SUM(CY1:CY9)>=0,(IF(CY10<0,(IF(ABS(CY10)>ABS(SUM(CY1:CY9)),SUM(CY1:CY9),ABS(CY10))),CY10)),(IF(CY10>0,(IF(ABS(CY10)>ABS(SUM(CY1:CY9)),SUM(CY1:CY10),0)),0))) -> 0.429 | DC10: =IF(SUM(CY1:CY9)<0,(IF(CY10<0,CY10,(IF(ABS(CY10)>ABS(SUM(CY1:CY9)),SUM(CY1:CY9),0-CY10)))),(IF(CY10<0,(IF(ABS(CY10)>ABS(SUM(CY1:CY9)),SUM(CY1:CY10),0)),0))) -> 0 | DD10: Financijski rashodi (bez kamata) Δ | DE10: 0 | DF10: 886.615 | DG10: 0.429 | DH10: 0 | DI10: 0 | DJ10: 0 | DK10: 0 | DV10: Novčani primici od osiguranja za naknadu šteta | DW10: =IFERROR(IF(Podloga!$B$19="Direktna",'NT dir.'!C9,),) -> 0 | DX10: =IFERROR(IF(Podloga!$B$19="Direktna",'NT dir.'!D9,),) -> 0 | DY10: =IFERROR(IF(Podloga!$B$19="Direktna",'NT dir.'!E9,),) -> 0 | DZ10: =IFERROR(IF(Podloga!$B$19="Direktna",'NT dir.'!F9,),) -> 0 | EA10: =IFERROR(IF(Podloga!$B$19="Direktna",'NT dir.'!G9,),) -> 0 | EE10: Rashodi od poslovnih aktivnosti | EF10: =RDG!C11 -> 3378.614 | EG10: =RDG!D11 -> 3386.403 | EH10: =RDG!E11 -> 3862.16 | EI10: =RDG!F11 -> 3502.902 | EJ10: =RDG!G11 -> 4634.846
AT11: Grad Krk i općina Omišalj | BB11: =Podloga!B36 -> 2024. planirano | BC11: =Podloga!C36 -> 2024. ostvareno | BD11: =Podloga!D36 -> 2025. planirano | BE11: =Podloga!E36 -> 2025. procijenjeno | BF11: =Podloga!F36 -> 2026. planirano | CH11: Poslovni prihodi Δ | CI11: =RDG!F5-RDG!E5 -> 20.827 | CK11: =IF(SUM(CI10)>=0,(IF(CI11>=0,SUM(CI10),(IF(ABS(SUM(CI10))>ABS(CI11),SUM(CI10:CI11),0)))),(IF(CI11<0,SUM(CI10),(IF(ABS(SUM(CI10))>ABS(CI11),SUM(CI10:CI11),0))))) -> 39.65 | CL11: =IF(SUM(CI10)>=0,(IF(CI11<0,(IF(ABS(CI11)>ABS(SUM(CI10)),SUM(CI10),ABS(CI11))),CI11)),(IF(CI11>0,(IF(ABS(CI11)>ABS(SUM(CI10)),SUM(CI10:CI11),0)),0))) -> 20.827 | CM11: =IF(SUM(CI10)<0,(IF(CI11<0,CI11,(IF(ABS(CI11)>ABS(SUM(CI10)),SUM(CI10),0-CI11)))),(IF(CI11<0,(IF(ABS(CI11)>ABS(SUM(CI10)),SUM(CI10:CI11),0)),0))) -> 0 | CN11: Poslovni prihodi Δ | CP11: =CK11 -> 39.65 | CQ11: 20.827 | CR11: 0 | CS11: 0 | CT11: 0 | CU11: 0 | CX11: Procijenjena EBITDA tekuće godine | CY11: =BE3 -> 887.044 | CZ11: =CY11 -> 887.044 | DD11: Procijenjena EBITDA tekuće godine | DE11: 887.044 | DF11: 0 | DG11: 0 | DH11: 0 | DI11: 0 | DJ11: 0 | DK11: 0 | DV11: Novčani primici s osnove povrata poreza | DW11: =IFERROR(IF(Podloga!$B$19="Direktna",'NT dir.'!C10,),) -> 0 | DX11: =IFERROR(IF(Podloga!$B$19="Direktna",'NT dir.'!D10,),) -> 0 | DY11: =IFERROR(IF(Podloga!$B$19="Direktna",'NT dir.'!E10,),) -> 0 | DZ11: =IFERROR(IF(Podloga!$B$19="Direktna",'NT dir.'!F10,),) -> 0 | EA11: =IFERROR(IF(Podloga!$B$19="Direktna",'NT dir.'!G10,),) -> 0 | EE11: Ekonomičnost ukupnog poslovanja | EF11: =EF7/EF8 -> 1.001458703 | EG11: =EG7/EG8 -> 1.097036944 | EH11: 1.010031499 | EI11: 1.107542288 | EJ11: 1.010075402
AT12: Grad Opatija | BA12: ROE | BB12: =IFERROR((RDG!C83/Bilanca!C$75),) -> 0.00551875773 | BC12: =IFERROR((RDG!D83/Bilanca!D$75),) -> 0.2933419925 | BD12: =IFERROR((RDG!E83/Bilanca!E$75),) -> 0.04550875111 | BE12: =IFERROR((RDG!F83/Bilanca!F$75),) -> 0.2530241759 | BF12: =IFERROR((RDG!G83/Bilanca!G$75),) -> 0.0301741458 | BL12: Altman a | CH12: Materijalni troškovi Δ | CI12: =RDG!E13-RDG!F13 -> 307.343 | CK12: =IF(SUM(CI10:CI11)>=0,(IF(CI12>=0,SUM(CI10:CI11),(IF(ABS(SUM(CI10:CI11))>ABS(CI12),SUM(CI10:CI12),0)))),(IF(CI12<0,SUM(CI10:CI11),(IF(ABS(SUM(CI10:CI11))>ABS(CI12),SUM(CI10:CI12),0))))) -> 60.477 | CL12: =IF(SUM(CI10:CI11)>=0,(IF(CI12<0,(IF(ABS(CI12)>ABS(SUM(CI10:CI11)),SUM(CI10:CI11),ABS(CI12))),CI12)),(IF(CI12>0,(IF(ABS(CI12)>ABS(SUM(CI10:CI11)),SUM(CI10:CI12),0)),0))) -> 307.343 | CM12: =IF(SUM(CI10:CI11)<0,(IF(CI12<0,CI12,(IF(ABS(CI12)>ABS(SUM(CI10:CI11)),SUM(CI10:CI11),0-CI12)))),(IF(CI12<0,(IF(ABS(CI12)>ABS(SUM(CI10:CI11)),SUM(CI10:CI12),0)),0))) -> 0 | CN12: Materijalni troškovi Δ | CP12: 60.477 | CQ12: 307.343 | CR12: 0 | CS12: 0 | CT12: 0 | CU12: 0 | DV12: Ostali novčani primici iz poslovanja | DW12: =IFERROR(IF(Podloga!$B$19="Direktna",'NT dir.'!#REF!,),) -> 0 | DX12: =IFERROR(IF(Podloga!$B$19="Direktna",'NT dir.'!#REF!,),) -> 0 | DY12: =IFERROR(IF(Podloga!$B$19="Direktna",'NT dir.'!#REF!,),) -> 0 | DZ12: =IFERROR(IF(Podloga!$B$19="Direktna",'NT dir.'!#REF!,),) -> 0 | EA12: =IFERROR(IF(Podloga!$B$19="Direktna",'NT dir.'!#REF!,),) -> 0 | EE12: Ekonomičnost poslovnih aktivnosti | EF12: =EF9/EF10 -> 1.019913491 | EG12: =EG9/EG10 -> 1.126384249 | EH12: 1.033514924 | EI12: 1.145457966 | EJ12: 1.036238313
AT13: Grad Osijek | BA13: ROA | BB13: =IFERROR(RDG!C63/Bilanca!C68,) -> 0.000245959816 | BC13: =IFERROR(RDG!D63/Bilanca!D68,) -> 0.02300347351 | BD13: =IFERROR(RDG!E63/Bilanca!E68,) -> 0.001465849532 | BE13: =IFERROR(RDG!F63/Bilanca!F68,) -> 0.02300682456 | BF13: =IFERROR(RDG!G63/Bilanca!G68,) -> 0.001921230242 | BL13: X1 | BM13: =IFERROR('Altman Integral (A)'!C35/'Altman Integral (A)'!C36,) -> 0.03220642908 | BN13: =IFERROR('Altman Integral (A)'!D35/'Altman Integral (A)'!D36,) -> 0.0482528279 | BO13: =IFERROR('Altman Integral (A)'!E35/'Altman Integral (A)'!E36,) -> 0.0188570359 | BP13: =IFERROR('Altman Integral (A)'!F35/'Altman Integral (A)'!F36,) -> 0.06080575409 | BQ13: =IFERROR('Altman Integral (A)'!G35/'Altman Integral (A)'!G36,) -> 0.03242499607 | BR13: Koeficijent: | BS13: X1 | BT13: 0.717 | CH13: Troškovi osoblja Δ | CI13: =RDG!E17-RDG!F17 -> 108.788 | CK13: =IF(SUM(CI10:CI12)>=0,(IF(CI13>=0,SUM(CI10:CI12),(IF(ABS(SUM(CI10:CI12))>ABS(CI13),SUM(CI10:CI13),0)))),(IF(CI13<0,SUM(CI10:CI12),(IF(ABS(SUM(CI10:CI12))>ABS(CI13),SUM(CI10:CI13),0))))) -> 367.82 | CL13: =IF(SUM(CI10:CI12)>=0,(IF(CI13<0,(IF(ABS(CI13)>ABS(SUM(CI10:CI12)),SUM(CI10:CI12),ABS(CI13))),CI13)),(IF(CI13>0,(IF(ABS(CI13)>ABS(SUM(CI10:CI12)),SUM(CI10:CI13),0)),0))) -> 108.788 | CM13: =IF(SUM(CI10:CI12)<0,(IF(CI13<0,CI13,(IF(ABS(CI13)>ABS(SUM(CI10:CI12)),SUM(CI10:CI12),0-CI13)))),(IF(CI13<0,(IF(ABS(CI13)>ABS(SUM(CI10:CI12)),SUM(CI10:CI13),0)),0))) -> 0 | CN13: Troškovi osoblja Δ | CP13: 367.82 | CQ13: 108.788 | CR13: 0 | CS13: 0 | CT13: 0 | CU13: 0
AT14: Grad Poreč | BB14: =Podloga!B36 -> 2024. planirano | BC14: =Podloga!C36 -> 2024. ostvareno | BD14: =Podloga!D36 -> 2025. planirano | BE14: =Podloga!E36 -> 2025. procijenjeno | BF14: =Podloga!F36 -> 2026. planirano | BL14: X2 | BM14: =IFERROR('Altman Integral (A)'!C37/'Altman Integral (A)'!C36,) -> -0.1261056065 | BN14: =IFERROR('Altman Integral (A)'!D37/'Altman Integral (A)'!D36,) -> -0.1817037083 | BO14: =IFERROR('Altman Integral (A)'!E37/'Altman Integral (A)'!E36,) -> -0.09783615839 | BP14: =IFERROR('Altman Integral (A)'!F37/'Altman Integral (A)'!F36,) -> -0.1374548186 | BQ14: =IFERROR('Altman Integral (A)'!G37/'Altman Integral (A)'!G36,) -> -0.07772338567 | BS14: X2 | BT14: 0.847 | CH14: Ostali poslovni rashodi Δ | CI14: =(RDG!E11-RDG!E13-RDG!E17)-(RDG!F11-RDG!F13-RDG!F17) -> -56.873 | CK14: =IF(SUM(CI10:CI13)>=0,(IF(CI14>=0,SUM(CI10:CI13),(IF(ABS(SUM(CI10:CI13))>ABS(CI14),SUM(CI10:CI14),0)))),(IF(CI14<0,SUM(CI10:CI13),(IF(ABS(SUM(CI10:CI13))>ABS(CI14),SUM(CI10:CI14),0))))) -> 419.735 | CL14: =IF(SUM(CI10:CI13)>=0,(IF(CI14<0,(IF(ABS(CI14)>ABS(SUM(CI10:CI13)),SUM(CI10:CI13),ABS(CI14))),CI14)),(IF(CI14>0,(IF(ABS(CI14)>ABS(SUM(CI10:CI13)),SUM(CI10:CI14),0)),0))) -> 56.873 | CM14: =IF(SUM(CI10:CI13)<0,(IF(CI14<0,CI14,(IF(ABS(CI14)>ABS(SUM(CI10:CI13)),SUM(CI10:CI13),0-CI14)))),(IF(CI14<0,(IF(ABS(CI14)>ABS(SUM(CI10:CI13)),SUM(CI10:CI14),0)),0))) -> 0 | CN14: Ostali poslovni rashodi Δ | CP14: 419.735 | CQ14: 0 | CR14: 56.873 | CS14: 0 | CT14: 0 | CU14: 0 | EF14: =Podloga!B36 -> 2024. planirano | EG14: =Podloga!C36 -> 2024. ostvareno | EH14: =Podloga!D36 -> 2025. planirano | EI14: =Podloga!E36 -> 2025. procijenjeno | EJ14: =Podloga!F36 -> 2026. planirano
AT15: Grad Pula | BA15: EBIT/trošak kamata | BB15: =(RDG!C59+RDG!C46+RDG!C48)/(RDG!C46+RDG!C48) -> 1.089883617 | BC15: =(RDG!D59+RDG!D46+RDG!D48)/(RDG!D46+RDG!D48) -> 4.733846069 | BD15: =(RDG!E59+RDG!E46+RDG!E48)/(RDG!E46+RDG!E48) -> 1.441831959 | BE15: =(RDG!F59+RDG!F46+RDG!F48)/(RDG!F46+RDG!F48) -> 4.252337307 | BF15: =(RDG!G59+RDG!G46+RDG!G48)/(RDG!G46+RDG!G48) -> 1.399241667 | BL15: X3 | BM15: =IFERROR('Altman Integral (A)'!C38/'Altman Integral (A)'!C36,) -> 0.00298238526 | BN15: =IFERROR('Altman Integral (A)'!D38/'Altman Integral (A)'!D36,) -> 0.02916427207 | BO15: =IFERROR('Altman Integral (A)'!E38/'Altman Integral (A)'!E36,) -> 0.004783512509 | BP15: =IFERROR('Altman Integral (A)'!F38/'Altman Integral (A)'!F36,) -> 0.03008076013 | BQ15: =IFERROR('Altman Integral (A)'!G38/'Altman Integral (A)'!G36,) -> 0.006733428973 | BS15: X3 | BT15: 3.107 | CH15: Financijski i investicijski prihodi Δ | CI15: =(RDG!F34+RDG!F53+RDG!F54)-(RDG!E34+RDG!E53+RDG!E54) -> -0.491 | CK15: =IF(SUM(CI10:CI14)>=0,(IF(CI15>=0,SUM(CI10:CI14),(IF(ABS(SUM(CI10:CI14))>ABS(CI15),SUM(CI10:CI15),0)))),(IF(CI15<0,SUM(CI10:CI14),(IF(ABS(SUM(CI10:CI14))>ABS(CI15),SUM(CI10:CI15),0))))) -> 419.244 | CL15: =IF(SUM(CI10:CI14)>=0,(IF(CI15<0,(IF(ABS(CI15)>ABS(SUM(CI10:CI14)),SUM(CI10:CI14),ABS(CI15))),CI15)),(IF(CI15>0,(IF(ABS(CI15)>ABS(SUM(CI10:CI14)),SUM(CI10:CI15),0)),0))) -> 0.491 | CM15: =IF(SUM(CI10:CI14)<0,(IF(CI15<0,CI15,(IF(ABS(CI15)>ABS(SUM(CI10:CI14)),SUM(CI10:CI14),0-CI15)))),(IF(CI15<0,(IF(ABS(CI15)>ABS(SUM(CI10:CI14)),SUM(CI10:CI15),0)),0))) -> 0 | CN15: Financijski i investicijski prihodi Δ | CP15: 419.244 | CQ15: 0 | CR15: 0.491 | CS15: 0 | CT15: 0 | CU15: 0 | DX15: Omjer primitaka od poslovnih aktivnosti i poslovnih prihoda | EE15: Glavnica | EF15: =Bilanca!C75 -> 909.625 | EG15: =Bilanca!D75 -> 1150.224 | EH15: =Bilanca!E75 -> 871.261 | EI15: =Bilanca!F75 -> 1539.841 | EJ15: =Bilanca!G75 -> 1587.75
AT16: Grad Rijeka | BA16: Trošak kamata | BB16: =RDG!C46+RDG!C48 -> 55.85 | BC16: =RDG!D46+RDG!D48 -> 90.365 | BD16: =RDG!E46+RDG!E48 -> 89.74 | BE16: =RDG!F46+RDG!F48 -> 119.796 | BF16: =RDG!G46+RDG!G48 -> 120 | BL16: X4 | BM16: =IFERROR('Altman Integral (A)'!C41/'Altman Integral (A)'!C39,) -> 0.1783775113 | BN16: =IFERROR('Altman Integral (A)'!D41/'Altman Integral (A)'!D39,) -> 1.024123494 | BO16: =IFERROR('Altman Integral (A)'!E41/'Altman Integral (A)'!E39,) -> 0.9907062186 | BP16: =IFERROR('Altman Integral (A)'!F41/'Altman Integral (A)'!F39,) -> 0.9647010398 | BQ16: =IFERROR('Altman Integral (A)'!G41/'Altman Integral (A)'!G39,) -> 0.9775539229 | BS16: X4 | BT16: 0.42 | CH16: Financijski i investicijski rashodi Δ | CI16: =(RDG!E45+RDG!E55+RDG!E56)-(RDG!F45+RDG!F55+RDG!F56) -> -29.627 | CK16: =IF(SUM(CI10:CI15)>=0,(IF(CI16>=0,SUM(CI10:CI15),(IF(ABS(SUM(CI10:CI15))>ABS(CI16),SUM(CI10:CI16),0)))),(IF(CI16<0,SUM(CI10:CI15),(IF(ABS(SUM(CI10:CI15))>ABS(CI16),SUM(CI10:CI16),0))))) -> 389.617 | CL16: =IF(SUM(CI10:CI15)>=0,(IF(CI16<0,(IF(ABS(CI16)>ABS(SUM(CI10:CI15)),SUM(CI10:CI15),ABS(CI16))),CI16)),(IF(CI16>0,(IF(ABS(CI16)>ABS(SUM(CI10:CI15)),SUM(CI10:CI16),0)),0))) -> 29.627 | CM16: =IF(SUM(CI10:CI15)<0,(IF(CI16<0,CI16,(IF(ABS(CI16)>ABS(SUM(CI10:CI15)),SUM(CI10:CI15),0-CI16)))),(IF(CI16<0,(IF(ABS(CI16)>ABS(SUM(CI10:CI15)),SUM(CI10:CI16),0)),0))) -> 0 | CN16: Financijski i investicijski rashodi Δ | CP16: 389.617 | CQ16: 0 | CR16: 29.627 | CS16: 0 | CT16: 0 | CU16: 0 | CW16: U milijunima kuna | DY16: =LEFT(Podloga!B36,5) -> 2024. | DZ16: =LEFT(Podloga!D36,5) -> 2025. | EA16: =LEFT(Podloga!F36,5) -> 2026. | EE16: Glavnica + dug. Obv | EF16: =Bilanca!C75+Bilanca!C103 -> 3709.042 | EG16: =Bilanca!D75+Bilanca!D103 -> 3872.60981 | EH16: =Bilanca!E75+Bilanca!E103 -> 3614.531 | EI16: =Bilanca!F75+Bilanca!F103 -> 4471.411 | EJ16: =Bilanca!G75+Bilanca!G103 -> 4566.425
AT17: Grad Split | BB17: =Podloga!B36 -> 2024. planirano | BC17: =Podloga!C36 -> 2024. ostvareno | BD17: =Podloga!D36 -> 2025. planirano | BE17: =Podloga!E36 -> 2025. procijenjeno | BF17: =Podloga!F36 -> 2026. planirano | BL17: X5 | BM17: =IFERROR('Altman Integral (A)'!C40/'Altman Integral (A)'!C36,) -> 0.1688614089 | BN17: =IFERROR('Altman Integral (A)'!D40/'Altman Integral (A)'!D36,) -> 0.2600623984 | BO17: =IFERROR('Altman Integral (A)'!E40/'Altman Integral (A)'!E36,) -> 0.1475905297 | BP17: =IFERROR('Altman Integral (A)'!F40/'Altman Integral (A)'!F36,) -> 0.2369396402 | BQ17: =IFERROR('Altman Integral (A)'!G40/'Altman Integral (A)'!G36,) -> 0.1926064496 | BS17: X5 | BT17: 0.998 | CH17: Procijenjena bruto dobit tekuće godine | CI17: =RDG!F59 -> 389.617 | CJ17: =CI17 -> 389.617 | CN17: Procijenjena bruto dobit tekuće godine | CO17: =CJ17 -> 389.617 | CP17: 0 | CQ17: 0 | CR17: 0 | CS17: 0 | CT17: 0 | CU17: 0 | DL17: Analiza EBITDA (prethodne i tekuće godine) | DX17: Planirano | DY17: =DW4 -> 0 | DZ17: =DY4 -> 0 | EA17: =EA4 -> 0 | EE17: Dug. Imov | EF17: =Bilanca!C5 -> 19752.51 | EG17: =Bilanca!D5 -> 13933.87237 | EH17: =Bilanca!E5 -> 26432.344 | EI17: =Bilanca!F5 -> 15781.77266 | EJ17: =Bilanca!G5 -> 24023.211
AT18: Grad Trogir | BA18: Dug. materijalna | BB18: =Bilanca!C13 -> 19542.2 | BC18: =Bilanca!D13 -> 13757.81541 | BD18: =Bilanca!E13 -> 26212.465 | BE18: =Bilanca!F13 -> 15650.08266 | BF18: =Bilanca!G13 -> 23856.756 | BL18: Gornja granica | BM18: 2.9 | BN18: 2.9 | BO18: 2.9 | BP18: 2.9 | BQ18: 2.9 | DL18: U tisućama kuna | DR18: U milijunima kuna | DX18: Ostvareno | DY18: =DX4 -> 0.2095705448 | DZ18: =DZ4 -> 0.2203601461 | EE18: Stupanj pokrića I | EF18: =EF15/EF17 -> 0.04605110945 | EG18: =EG15/EG17 -> 0.08254876817 | EH18: 0.03296192725 | EI18: 0.09757085171 | EJ18: 0.06609233045
AT19: Grad Zadar | BA19: Dug. nematerijalna | BB19: =Bilanca!C6 -> 195.3 | BC19: =Bilanca!D6 -> 161.966 | BD19: =Bilanca!E6 -> 205.789 | BE19: =Bilanca!F6 -> 117.6 | BF19: =Bilanca!G6 -> 159 | BL19: Donja granica | BM19: 1.23 | BN19: 1.23 | BO19: 1.23 | BP19: 1.23 | BQ19: 1.23 | CG19: U milijunima kuna | CH19: Bruto dobit prethodne godine | CI19: =CI1/1000 -> 0.337409 | CJ19: =CJ1/1000 -> 0.337409 | CN19: =CN1 -> Bruto dobit prethodne godine | CO19: =CO1/1000 -> 0.337409 | CP19: =CP1/1000 -> 0 | CQ19: 0 | CR19: 0 | CS19: 0 | CT19: 0 | CU19: 0 | CX19: Planirana EBITDA tekuće godine | CY19: =CY1/1000 -> 0.50139 | CZ19: =CZ1/1000 -> 0.50139 | DD19: =DD1 -> Planirana EBITDA tekuće godine | DE19: =DE1/1000 -> 0.50139 | DF19: =DF1/1000 -> 0 | DG19: =IF(CY19>=0,DB19,0) -> 0 | DH19: =IF(CY19<0,DB19,0) -> 0 | DI19: =IF(CY19>=0,DC19,0) -> 0 | DJ19: =IF(CY19<0,DC19,0) -> 0 | DK19: 0 | DL19: EBITDA prethodne godine | DM19: =BC3 -> 799.905 | DN19: =DM19 -> 799.905 | DR19: Ostvarena EBITDA prethodne godine | DS19: =DM19/1000 -> 0.799905 | DT19: =DN19/1000 -> 0.799905 | EE19: Stupanj pokrića II | EF19: =EF16/EF17 -> 0.1877757308 | EG19: =EG16/EG17 -> 0.277927751 | EH19: =EH16/EH17 -> 0.1367465178 | EI19: =EI16/EI17 -> 0.2833275511 | EJ19: =EJ16/EJ17 -> 0.1900838735
AT20: Grad Zagreb | BA20: Potraživanja | BB20: =Bilanca!C34+Bilanca!C49 -> 268.828 | BC20: =Bilanca!D34+Bilanca!D49 -> 314.734 | BD20: =Bilanca!E34+Bilanca!E49 -> 230.515 | BE20: =Bilanca!F34+Bilanca!F49 -> 379.011 | BF20: =Bilanca!G34+Bilanca!G49 -> 138.27 | CH20: Poslovni prihodi Δ | CI20: =CI2/1000 -> 0.198036 | CK20: =CK2/1000 -> 0.337409 | CL20: =CL2/1000 -> 0.198036 | CM20: =CM2/1000 -> 0 | CN20: =CN2 -> Poslovni prihodi Δ | CO20: =CO2/1000 -> 0 | CP20: 0.337409 | CQ20: 0.198036 | CR20: 0 | CS20: 0 | CT20: 0 | CU20: 0 | CX20: Prihodi od prodaje Δ | CY20: =CY2/1000 -> -0.142203 | DA20: =DA2/1000 -> 0.359187 | DB20: =DB2/1000 -> 0.142203 | DC20: =DC2/1000 -> 0 | DD20: =DD2 -> Prihodi od prodaje Δ | DE20: =DE2/1000 -> 0 | DF20: 0.359187 | DG20: 0 | DH20: 0.142203 | DI20: 0 | DJ20: 0 | DK20: 0 | DL20: Prihodi od prodaje Δ | DM20: =(RDG!F6+RDG!F7)-(RDG!D6+RDG!D7) -> 286.429 | DO20: =IF(SUM(DM19)>=0,(IF(DM20>=0,SUM(DM19),(IF(ABS(SUM(DM19))>ABS(DM20),SUM(DM19:DM20),0)))),(IF(DM20<0,SUM(DM19),(IF(ABS(SUM(DM19))>ABS(DM20),SUM(DM19:DM20),0))))) -> 799.905 | DP20: =IF(SUM(DM19)>=0,(IF(DM20<0,(IF(ABS(DM20)>ABS(SUM(DM19)),SUM(DM19),ABS(DM20))),DM20)),(IF(DM20>0,(IF(ABS(DM20)>ABS(SUM(DM19)),SUM(DM19:DM20),0)),0))) -> 286.429 | DQ20: =IF(SUM(DM19)<0,(IF(DM20<0,DM20,(IF(ABS(DM20)>ABS(SUM(DM19)),SUM(DM19),0-DM20)))),(IF(DM20<0,(IF(ABS(DM20)>ABS(SUM(DM19)),SUM(DM19:DM20),0)),0))) -> 0 | DR20: Prihodi od prodaje Δ | DS20: =DM20/1000 -> 0.286429 | DU20: =DO20/1000 -> 0.799905 | DV20: =DP20/1000 -> 0.286429 | DW20: =DQ20/1000 -> 0 | DX20: Koeficijent obrtaja imovine
AT21: Dubrovačko - neretvanska županija | BA21: Financijska imovina | BB21: =Bilanca!C23+Bilanca!C56+Bilanca!C39 -> 15.01 | BC21: =Bilanca!D23+Bilanca!D56+Bilanca!D39 -> 14.09096 | BD21: =Bilanca!E23+Bilanca!E56+Bilanca!E39 -> 14.09 | BE21: =Bilanca!F23+Bilanca!F56+Bilanca!F39 -> 14.09 | BF21: =Bilanca!G23+Bilanca!G56+Bilanca!G39 -> 7.455 | CH21: Materijalni troškovi Δ | CI21: 0.121926 | CK21: =CK3/1000 -> 0.535445 | CL21: 0.121926 | CM21: =CM3/1000 -> 0 | CN21: =CN3 -> Materijalni troškovi Δ | CO21: 0 | CP21: 0.535445 | CQ21: 0.121926 | CR21: 0 | CS21: 0 | CT21: 0 | CU21: 0 | CX21: Ostali prihodi Δ | CY21: 0.162539 | DA21: 0.359187 | DB21: 0.162539 | DC21: =DC3/1000 -> 0 | DD21: Ostali prihodi Δ | DE21: 0 | DF21: 0.359187 | DG21: 0.162539 | DH21: 0 | DI21: 0 | DJ21: 0 | DK21: 0 | DL21: Ostali prihodi Δ | DM21: =(RDG!F57-RDG!F6-RDG!F7)-(RDG!D57-RDG!D6-RDG!D7) -> -88.421 | DO21: =IF(SUM(DM19:DM20)>=0,(IF(DM21>=0,SUM(DM19:DM20),(IF(ABS(SUM(DM19:DM20))>ABS(DM21),SUM(DM19:DM21),0)))),(IF(DM21<0,SUM(DM19:DM20),(IF(ABS(SUM(DM19:DM20))>ABS(DM21),SUM(DM19:DM21),0))))) -> 997.913 | DP21: =IF(SUM(DM19:DM20)>=0,(IF(DM21<0,(IF(ABS(DM21)>ABS(SUM(DM19:DM20)),SUM(DM19:DM20),ABS(DM21))),DM21)),(IF(DM21>0,(IF(ABS(DM21)>ABS(SUM(DM19:DM20)),SUM(DM19:DM21),0)),0))) -> 88.421 | DQ21: =IF(SUM(DM19:DM20)<0,(IF(DM21<0,DM21,(IF(ABS(DM21)>ABS(SUM(DM19:DM20)),SUM(DM19:DM20),0-DM21)))),(IF(DM21<0,(IF(ABS(DM21)>ABS(SUM(DM19:DM20)),SUM(DM19:DM21),0)),0))) -> 0 | DR21: Ostali prihodi Δ | DS21: -0.088421 | DU21: =DO21/1000 -> 0.997913 | DV21: =DP21/1000 -> 0.088421 | DW21: 0 | DY21: =LEFT(Podloga!B36,5) -> 2024. | DZ21: =LEFT(Podloga!D36,5) -> 2025. | EA21: =LEFT(Podloga!F36,5) -> 2026.
AT22: Istarska županija | BA22: Zalihe | BB22: =Bilanca!C41 -> 36.499 | BC22: =Bilanca!D41 -> 33.483 | BD22: =Bilanca!E41 -> 49.552 | BE22: =Bilanca!F41 -> 27.756 | BF22: =Bilanca!G41 -> 95.3 | BL22: Altman b | CH22: Troškovi osoblja Δ | CI22: -0.283848 | CK22: 0.373523 | CL22: 0.283848 | CM22: =CM4/1000 -> 0 | CN22: Troškovi osoblja Δ | CO22: 0 | CP22: 0.373523 | CQ22: 0 | CR22: 0.283848 | CS22: 0 | CT22: 0 | CU22: 0 | CX22: Promjena vrijednosti zaliha Δ | CY22: 0 | DA22: 0.521726 | DB22: 0 | DC22: =DC4/1000 -> 0 | DD22: Promjena vrijednosti zaliha Δ | DE22: 0 | DF22: 0.521726 | DG22: 0 | DH22: 0 | DI22: 0 | DJ22: 0 | DK22: 0 | DL22: Promjena vrijednosti zaliha Δ | DM22: =RDG!D12-RDG!F12 -> 0 | DO22: =IF(SUM(DM19:DM21)>=0,(IF(DM22>=0,SUM(DM19:DM21),(IF(ABS(SUM(DM19:DM21))>ABS(DM22),SUM(DM19:DM22),0)))),(IF(DM22<0,SUM(DM19:DM21),(IF(ABS(SUM(DM19:DM21))>ABS(DM22),SUM(DM19:DM22),0))))) -> 997.913 | DP22: =IF(SUM(DM19:DM21)>=0,(IF(DM22<0,(IF(ABS(DM22)>ABS(SUM(DM19:DM21)),SUM(DM19:DM21),ABS(DM22))),DM22)),(IF(DM22>0,(IF(ABS(DM22)>ABS(SUM(DM20:DM21)),SUM(DM19:DM22),0)),0))) -> 0 | DQ22: =IF(SUM(DM19:DM21)<0,(IF(DM22<0,DM22,(IF(ABS(DM22)>ABS(SUM(DM19:DM21)),SUM(DM19:DM21),0-DM22)))),(IF(DM22<0,(IF(ABS(DM22)>ABS(SUM(DM19:DM21)),SUM(DM19:DM22),0)),0))) -> 0 | DR22: Promjena vrijednosti zaliha Δ | DS22: 0 | DU22: 0.997913 | DV22: 0 | DW22: 0 | DX22: Planirano | DY22: =EF4 -> 0.1688614089 | DZ22: =EH4 -> 0.1475905297 | EA22: =EJ4 -> 0.1926064496
AT23: Osječko - baranjska županija | BA23: Novac u banci i blagajni | BB23: =Bilanca!C66 -> 352.001 | BC23: =Bilanca!D66 -> 359.543 | BD23: =Bilanca!E66 -> 230 | BE23: =Bilanca!F66 -> 622.969 | BF23: =Bilanca!G66 -> 575 | BL23: X1 | BM23: ='Altman Integral (B)'!C35/'Altman Integral (B)'!C36 -> 0.03220642908 | BN23: ='Altman Integral (B)'!D35/'Altman Integral (B)'!D36 -> 0.0482528279 | BO23: ='Altman Integral (B)'!E35/'Altman Integral (B)'!E36 -> 0.0188570359 | BP23: ='Altman Integral (B)'!F35/'Altman Integral (B)'!F36 -> 0.06080575409 | BQ23: ='Altman Integral (B)'!G35/'Altman Integral (B)'!G36 -> 0.03242499607 | BR23: Koeficijent: | BS23: X1 | BT23: 6.56 | CH23: Ostali poslovni rashodi Δ | CI23: 0.045423 | CK23: 0.373523 | CL23: 0.045423 | CM23: =CM5/1000 -> 0 | CN23: Ostali poslovni rashodi Δ | CO23: 0 | CP23: 0.373523 | CQ23: 0.045423 | CR23: 0 | CS23: 0 | CT23: 0 | CU23: 0 | CX23: Materijalni troškovi Δ | CY23: 0.307343 | DA23: 0.521726 | DB23: 0.307343 | DC23: =DC5/1000 -> 0 | DD23: Materijalni troškovi Δ | DE23: 0 | DF23: 0.521726 | DG23: 0.307343 | DH23: 0 | DI23: 0 | DJ23: 0 | DK23: 0 | DL23: Materijalni troškovi Δ | DM23: =RDG!D13-RDG!F13 -> 121.926 | DO23: =IF(SUM(DM19:DM22)>=0,(IF(DM23>=0,SUM(DM19:DM22),(IF(ABS(SUM(DM19:DM22))>ABS(DM23),SUM(DM19:DM23),0)))),(IF(DM23<0,SUM(DM19:DM22),(IF(ABS(SUM(DM19:DM22))>ABS(DM23),SUM(DM19:DM23),0))))) -> 997.913 | DP23: =IF(SUM(DM19:DM22)>=0,(IF(DM23<0,(IF(ABS(DM23)>ABS(SUM(DM19:DM22)),SUM(DM19:DM22),ABS(DM23))),DM23)),(IF(DM23>0,(IF(ABS(DM23)>ABS(SUM(DM19:DM22)),SUM(DM19:DM23),0)),0))) -> 121.926 | DQ23: =IF(SUM(DM19:DM22)<0,(IF(DM23<0,DM23,(IF(ABS(DM23)>ABS(SUM(DM19:DM22)),SUM(DM19:DM22),0-DM23)))),(IF(DM23<0,(IF(ABS(DM23)>ABS(SUM(DM19:DM22)),SUM(DM19:DM23),0)),0))) -> 0 | DR23: Materijalni troškovi Δ | DS23: 0.121926 | DU23: 0.997913 | DV23: 0.121926 | DW23: 0 | DX23: Ostvareno | DY23: =EG4 -> 0.2600623984 | DZ23: =EI4 -> 0.2369396402
AT24: Primorsko-goranska županija | BA24: Ostalo | BB24: =Bilanca!C4+Bilanca!C67 -> 0 | BC24: =Bilanca!D4+Bilanca!D67 -> 26.109 | BD24: =Bilanca!E4+Bilanca!E67 -> 106.75 | BE24: =Bilanca!F4+Bilanca!F67 -> 123.336 | BF24: =Bilanca!G4+Bilanca!G67 -> 104.845 | BL24: X2 | BM24: ='Altman Integral (B)'!C37/'Altman Integral (B)'!C36 -> -0.1261056065 | BN24: ='Altman Integral (B)'!D37/'Altman Integral (B)'!D36 -> -0.1817037083 | BO24: ='Altman Integral (B)'!E37/'Altman Integral (B)'!E36 -> -0.09783615839 | BP24: ='Altman Integral (B)'!F37/'Altman Integral (B)'!F36 -> -0.1374548186 | BQ24: ='Altman Integral (B)'!G37/'Altman Integral (B)'!G36 -> -0.07772338567 | BS24: X2 | BT24: 3.26 | CH24: Financijski i investicijski prihodi Δ | CI24: -2.8e-05 | CK24: 0.418918 | CL24: 2.8e-05 | CM24: =CM6/1000 -> 0 | CN24: Financijski i investicijski prihodi Δ | CO24: 0 | CP24: 0.418918 | CQ24: 0 | CR24: 2.8e-05 | CS24: 0 | CT24: 0 | CU24: 0 | CX24: Troškovi osoblja Δ | CY24: 0.108788 | DA24: 0.829069 | DB24: 0.108788 | DC24: =DC6/1000 -> 0 | DD24: Troškovi osoblja Δ | DE24: 0 | DF24: 0.829069 | DG24: 0.108788 | DH24: 0 | DI24: 0 | DJ24: 0 | DK24: 0 | DL24: Troškovi osoblja Δ | DM24: =RDG!D17-RDG!F17 -> -283.848 | DO24: =IF(SUM(DM19:DM23)>=0,(IF(DM24>=0,SUM(DM19:DM23),(IF(ABS(SUM(DM19:DM23))>ABS(DM24),SUM(DM19:DM24),0)))),(IF(DM24<0,SUM(DM19:DM23),(IF(ABS(SUM(DM19:DM23))>ABS(DM24),SUM(DM19:DM24),0))))) -> 835.991 | DP24: =IF(SUM(DM19:DM23)>=0,(IF(DM24<0,(IF(ABS(DM24)>ABS(SUM(DM19:DM23)),SUM(DM19:DM23),ABS(DM24))),DM24)),(IF(DM24>0,(IF(ABS(DM24)>ABS(SUM(DM19:DM23)),SUM(DM19:DM24),0)),0))) -> 283.848 | DQ24: =IF(SUM(DM19:DM23)<0,(IF(DM24<0,DM24,(IF(ABS(DM24)>ABS(SUM(DM19:DM23)),SUM(DM19:DM23),0-DM24)))),(IF(DM24<0,(IF(ABS(DM24)>ABS(SUM(DM19:DM23)),SUM(DM19:DM24),0)),0))) -> 0 | DR24: Troškovi osoblja Δ | DS24: -0.283848 | DU24: 0.835991 | DV24: 0.283848 | DW24: 0
AT25: Splitsko-dalmatinska županija | BA25: Dug. materijalna / dug. izvori financiranja | BB25: =Bilanca!C13/(Bilanca!C75+Bilanca!C103) -> 5.268799868 | BC25: =Bilanca!D13/(Bilanca!D75+Bilanca!D103) -> 3.5525953 | BD25: =Bilanca!E13/(Bilanca!E75+Bilanca!E103) -> 7.251968513 | BE25: =Bilanca!F13/(Bilanca!F75+Bilanca!F103) -> 3.50003224 | BF25: =Bilanca!G13/(Bilanca!G75+Bilanca!G103) -> 5.224383626 | BL25: X3 | BM25: ='Altman Integral (B)'!C38/'Altman Integral (B)'!C36 -> 0.00298238526 | BN25: ='Altman Integral (B)'!D38/'Altman Integral (B)'!D36 -> 0.02916427207 | BO25: ='Altman Integral (B)'!E38/'Altman Integral (B)'!E36 -> 0.004783512509 | BP25: ='Altman Integral (B)'!F38/'Altman Integral (B)'!F36 -> 0.03008076013 | BQ25: ='Altman Integral (B)'!G38/'Altman Integral (B)'!G36 -> 0.006733428973 | BS25: X3 | BT25: 6.72 | CH25: Financijski i investicijski rashodi Δ | CI25: -0.029301 | CK25: 0.389617 | CL25: 0.029301 | CM25: =CM7/1000 -> 0 | CN25: Financijski i investicijski rashodi Δ | CO25: 0 | CP25: 0.389617 | CQ25: 0 | CR25: 0.029301 | CS25: 0 | CT25: 0 | CU25: 0 | CX25: Vrijednosna usklađenja Δ | CY25: 0 | DA25: 0.937857 | DB25: 0 | DC25: =DC7/1000 -> 0 | DD25: Vrijednosna usklađenja Δ | DE25: 0 | DF25: 0.937857 | DG25: 0 | DH25: 0 | DI25: 0 | DJ25: 0 | DK25: 0 | DL25: Vrijednosna usklađenja Δ | DM25: =RDG!D23-RDG!F23 -> 0 | DO25: =IF(SUM(DM19:DM24)>=0,(IF(DM25>=0,SUM(DM19:DM24),(IF(ABS(SUM(DM19:DM24))>ABS(DM25),SUM(DM19:DM25),0)))),(IF(DM25<0,SUM(DM19:DM24),(IF(ABS(SUM(DM19:DM24))>ABS(DM25),SUM(DM19:DM25),0))))) -> 835.991 | DP25: =IF(SUM(DM19:DM24)>=0,(IF(DM25<0,(IF(ABS(DM25)>ABS(SUM(DM19:DM24)),SUM(DM19:DM24),ABS(DM25))),DM25)),(IF(DM25>0,(IF(ABS(DM25)>ABS(SUM(DM19:DM24)),SUM(DM19:DM25),0)),0))) -> 0 | DQ25: =IF(SUM(DM19:DM24)<0,(IF(DM25<0,DM25,(IF(ABS(DM25)>ABS(SUM(DM19:DM24)),SUM(DM19:DM24),0-DM25)))),(IF(DM25<0,(IF(ABS(DM25)>ABS(SUM(DM19:DM24)),SUM(DM19:DM25),0)),0))) -> 0 | DR25: Vrijednosna usklađenja Δ | DS25: 0 | DU25: 0.835991 | DV25: 0 | DW25: 0
AT26: Zadarska županija | BA26: Ukupno: | BB26: =SUM(BB18:BB24) -> 20409.838 | BC26: =SUM(BC18:BC24) -> 14667.74137 | BD26: 27049.161 | BE26: 16934.84466 | BF26: 24936.626 | BL26: X4 | BM26: ='Altman Integral (B)'!C41/'Altman Integral (B)'!C39 ->  | BN26: ='Altman Integral (B)'!D41/'Altman Integral (B)'!D39 ->  | BO26: ='Altman Integral (B)'!E41/'Altman Integral (B)'!E39 ->  | BP26: ='Altman Integral (B)'!F41/'Altman Integral (B)'!F39 ->  | BQ26: ='Altman Integral (B)'!G41/'Altman Integral (B)'!G39 ->  | BS26: X4 | BT26: 1.05 | CH26: Procijenjena bruto dobit tekuće godine | CI26: 0.389617 | CJ26: =CJ8/1000 -> 0.389617 | CN26: Procijenjena bruto dobit tekuće godine | CO26: 0.389617 | CP26: 0 | CQ26: 0 | CR26: 0 | CS26: 0 | CT26: 0 | CU26: 0 | CX26: Rezerviranja Δ | CY26: -0.065211 | DA26: 0.872646 | DB26: 0.065211 | DC26: =DC8/1000 -> 0 | DD26: Rezerviranja Δ | DE26: 0 | DF26: 0.872646 | DG26: 0 | DH26: 0.065211 | DI26: 0 | DJ26: 0 | DK26: 0 | DL26: Rezerviranja Δ | DM26: =RDG!D26-RDG!F26 -> 19.929 | DO26: =IF(SUM(DM19:DM25)>=0,(IF(DM26>=0,SUM(DM19:DM25),(IF(ABS(SUM(DM19:DM25))>ABS(DM26),SUM(DM19:DM26),0)))),(IF(DM26<0,SUM(DM19:DM25),(IF(ABS(SUM(DM19:DM25))>ABS(DM26),SUM(DM19:DM26),0))))) -> 835.991 | DP26: =IF(SUM(DM19:DM25)>=0,(IF(DM26<0,(IF(ABS(DM26)>ABS(SUM(DM19:DM25)),SUM(DM19:DM25),ABS(DM26))),DM26)),(IF(DM26>0,(IF(ABS(DM26)>ABS(SUM(DM19:DM25)),SUM(DM19:DM26),0)),0))) -> 19.929 | DQ26: =IF(SUM(DM19:DM25)<0,(IF(DM26<0,DM26,(IF(ABS(DM26)>ABS(SUM(DM19:DM25)),SUM(DM19:DM25),0-DM26)))),(IF(DM26<0,(IF(ABS(DM26)>ABS(SUM(DM19:DM25)),SUM(DM19:DM26),0)),0))) -> 0 | DR26: Rezerviranja Δ | DS26: 0.019929 | DU26: 0.835991 | DV26: 0.019929 | DW26: 0
AT27: općina Zemunik Donji | BB27: =Podloga!B36 -> 2024. planirano | BC27: =Podloga!C36 -> 2024. ostvareno | BD27: =Podloga!D36 -> 2025. planirano | BE27: =Podloga!E36 -> 2025. procijenjeno | BF27: =Podloga!F36 -> 2026. planirano | BL27: Gornja granica | BM27: 2.6 | BN27: 2.6 | BO27: 2.6 | BP27: 2.6 | BQ27: 2.6 | CX27: Ostali poslovni rashodi Δ | CY27: =CY9/1000 -> 0.013969 | DA27: 0.872646 | DB27: 0.013969 | DC27: =DC9/1000 -> 0 | DD27: Ostali poslovni rashodi Δ | DE27: 0 | DF27: 0.872646 | DG27: 0.013969 | DH27: 0 | DI27: 0 | DJ27: 0 | DK27: 0 | DL27: Ostali poslovni rashodi Δ | DM27: =(RDG!D22+RDG!D33+RDG!D55+RDG!D56)-(RDG!F22+RDG!F33+RDG!F55+RDG!F56) -> 30.994 | DO27: =IF(SUM(DM19:DM26)>=0,(IF(DM27>=0,SUM(DM19:DM26),(IF(ABS(SUM(DM19:DM26))>ABS(DM27),SUM(DM19:DM27),0)))),(IF(DM27<0,SUM(DM19:DM26),(IF(ABS(SUM(DM19:DM26))>ABS(DM27),SUM(DM19:DM27),0))))) -> 855.92 | DP27: =IF(SUM(DM19:DM26)>=0,(IF(DM27<0,(IF(ABS(DM27)>ABS(SUM(DM19:DM26)),SUM(DM19:DM26),ABS(DM27))),DM27)),(IF(DM27>0,(IF(ABS(DM27)>ABS(SUM(DM19:DM26)),SUM(DM19:DM27),0)),0))) -> 30.994 | DQ27: =IF(SUM(DM19:DM26)<0,(IF(DM27<0,DM27,(IF(ABS(DM27)>ABS(SUM(DM19:DM26)),SUM(DM19:DM26),0-DM27)))),(IF(DM27<0,(IF(ABS(DM27)>ABS(SUM(DM19:DM26)),SUM(DM19:DM27),0)),0))) -> 0 | DR27: Ostali poslovni rashodi Δ | DS27: 0.030994 | DU27: 0.85592 | DV27: 0.030994 | DW27: 0
BA28: Neto radni kapital | BB28: =Bilanca!C40-Bilanca!C115 -> -16043.471 | BC28: =Bilanca!D40-Bilanca!D115 -> 34.071 | BD28: =Bilanca!E40-Bilanca!E115 -> -257.29 | BE28: =Bilanca!F40-Bilanca!F115 -> 356.044 | BF28: =Bilanca!G40-Bilanca!G115 -> 229.385 | BL28: Donja granica | BM28: 1.1 | BN28: 1.1 | BO28: 1.1 | BP28: 1.1 | BQ28: 1.1 | CH28: Planirana bruto dobit tekuće godine | CI28: =CI10/1000 -> 0.03965 | CJ28: =CJ10/1000 -> 0.03965 | CN28: Planirana bruto dobit tekuće godine | CO28: 0.03965 | CP28: 0 | CQ28: 0 | CR28: 0 | CS28: 0 | CT28: 0 | CU28: 0 | CX28: Financijski rashodi (bez kamata) Δ | CY28: 0.000429 | DA28: 0.886615 | DB28: 0.000429 | DC28: =DC10/1000 -> 0 | DD28: Financijski rashodi (bez kamata) Δ | DE28: 0 | DF28: 0.886615 | DG28: 0.000429 | DH28: 0 | DI28: 0 | DJ28: 0 | DK28: 0 | DL28: Financijski rashodi (bez kamata) Δ | DM28: =(RDG!D45-RDG!D46-RDG!D48)-(RDG!F45-RDG!F46-RDG!F48) -> 0.13 | DO28: =IF(SUM(DM19:DM27)>=0,(IF(DM28>=0,SUM(DM19:DM27),(IF(ABS(SUM(DM19:DM27))>ABS(DM28),SUM(DM19:DM28),0)))),(IF(DM28<0,SUM(DM19:DM27),(IF(ABS(SUM(DM19:DM27))>ABS(DM28),SUM(DM19:DM28),0))))) -> 886.914 | DP28: =IF(SUM(DM19:DM27)>=0,(IF(DM28<0,(IF(ABS(DM28)>ABS(SUM(DM19:DM27)),SUM(DM19:DM27),ABS(DM28))),DM28)),(IF(DM28>0,(IF(ABS(DM28)>ABS(SUM(DM19:DM27)),SUM(DM19:DM28),0)),0))) -> 0.13 | DQ28: =IF(SUM(DM19:DM27)<0,(IF(DM28<0,DM28,(IF(ABS(DM28)>ABS(SUM(DM19:DM27)),SUM(DM19:DM27),0-DM28)))),(IF(DM28<0,(IF(ABS(DM28)>ABS(SUM(DM19:DM27)),SUM(DM19:DM28),0)),0))) -> 0 | DR28: Financijski rashodi (bez kamata) Δ | DS28: 0.00013 | DU28: 0.886914 | DV28: 0.00013 | DW28: 0
BA29: Koeficijent tekuće likvidnosti | BB29: =Bilanca!C40/Bilanca!C115 -> 0.03935907498 | BC29: =Bilanca!D40/Bilanca!D115 -> 1.050573781 | BD29: =Bilanca!E40/Bilanca!E115 -> 0.664706258 | BE29: =Bilanca!F40/Bilanca!F115 -> 1.528496702 | BF29: =Bilanca!G40/Bilanca!G115 -> 1.396047895 | CH29: Poslovni prihodi Δ | CI29: =CI11/1000 -> 0.020827 | CK29: =CK11/1000 -> 0.03965 | CL29: 0.020827 | CM29: =CM11/1000 -> 0 | CN29: Poslovni prihodi Δ | CO29: 0 | CP29: 0.03965 | CQ29: 0.020827 | CR29: 0 | CS29: 0 | CT29: =IF(CI29<0,CM29,0) -> 0 | CU29: 0 | CX29: Procijenjena EBITDA tekuće godine | CY29: =CY11/1000 -> 0.887044 | CZ29: =CZ11/1000 -> 0.887044 | DD29: Procijenjena EBITDA tekuće godine | DE29: 0.887044 | DF29: 0 | DG29: 0 | DH29: 0 | DI29: 0 | DJ29: 0 | DK29: 0 | DL29: Procijenjena EBITDA tekuće godine | DM29: =BE3 -> 887.044 | DN29: =DM29 -> 887.044 | DR29: Procijenjena EBITDA tekuće godine | DS29: 0.887044 | DT29: =DN29/1000 -> 0.887044
BA30: Koeficijent ubrzane likvidnosti | BB30: =(Bilanca!C40-Bilanca!C41)/Bilanca!C115 -> 0.03717361068 | BC30: =(Bilanca!D40-Bilanca!D41)/Bilanca!D115 -> 1.000872806 | BD30: =(Bilanca!E40-Bilanca!E41)/Bilanca!E115 -> 0.60013136 | BE30: =(Bilanca!F40-Bilanca!F41)/Bilanca!F115 -> 1.487296866 | BF30: =(Bilanca!G40-Bilanca!G41)/Bilanca!G115 -> 1.231506341 | CH30: Materijalni troškovi Δ | CI30: 0.307343 | CK30: 0.060477 | CL30: 0.307343 | CM30: =CM12/1000 -> 0 | CN30: Materijalni troškovi Δ | CO30: 0 | CP30: 0.060477 | CQ30: 0.307343 | CR30: 0 | CS30: 0 | CT30: 0 | CU30: 0 | DO30: =DR19 -> Ostvarena EBITDA prethodne godine | DP30: =DS19 -> 0.799905 | DQ30: =DT19 -> 0.799905 | DR30: =DU19 -> 0 | DS30: =IF(DS19>=0,DV19,0) -> 0 | DT30: =IF(DS19<0,DV19,0) -> 0 | DU30: =IF(DS19>=0,DW19,0) -> 0 | DV30: =IF(DS19<0,DW19,0) -> 0 | DW30: 0
BB31: =Podloga!B36 -> 2024. planirano | BC31: =Podloga!C36 -> 2024. ostvareno | BD31: =Podloga!D36 -> 2025. planirano | BE31: =Podloga!E36 -> 2025. procijenjeno | BF31: =Podloga!F36 -> 2026. planirano | CH31: Troškovi osoblja Δ | CI31: 0.108788 | CK31: 0.36782 | CL31: 0.108788 | CM31: =CM13/1000 -> 0 | CN31: Troškovi osoblja Δ | CO31: 0 | CP31: 0.36782 | CQ31: 0.108788 | CR31: 0 | CS31: 0 | CT31: 0 | CU31: 0 | DO31: =DR20 -> Prihodi od prodaje Δ | DP31: =DS20 -> 0.286429 | DR31: =DU20 -> 0.799905 | DS31: 0.286429 | DT31: 0 | DU31: 0 | DV31: 0 | DW31: 0
BA32: Kapital/imovina | BB32: =Bilanca!C75/Bilanca!C68 -> 0.04456796766 | BC32: =Bilanca!D75/Bilanca!D68 -> 0.07841861749 | BD32: =Bilanca!E75/Bilanca!E68 -> 0.03221027817 | BE32: =Bilanca!F75/Bilanca!F68 -> 0.09092737671 | BF32: =Bilanca!G75/Bilanca!G68 -> 0.06367140446 | CH32: Ostali poslovni rashodi Δ | CI32: -0.056873 | CK32: 0.419735 | CL32: 0.056873 | CM32: =CM14/1000 -> 0 | CN32: Ostali poslovni rashodi Δ | CO32: 0 | CP32: 0.419735 | CQ32: 0 | CR32: 0.056873 | CS32: 0 | CT32: 0 | CU32: 0 | DO32: Ostali prihodi Δ | DP32: -0.088421 | DR32: 0.997913 | DS32: 0 | DT32: 0.088421 | DU32: 0 | DV32: 0 | DW32: 0
BA33: Kapacitet zaduženja na 5 godina | BB33: =BB3*5 -> 2429.35 | BC33: =BC3*5 -> 3999.525 | BD33: 2506.95 | BE33: 4435.22 | BF33: 2939.545 | CH33: Financijski i investicijski prihodi Δ | CI33: -0.000491 | CK33: 0.419244 | CL33: 0.000491 | CM33: =CM15/1000 -> 0 | CN33: Financijski i investicijski prihodi Δ | CO33: 0 | CP33: 0.419244 | CQ33: 0 | CR33: 0.000491 | CS33: 0 | CT33: 0 | CU33: 0 | DO33: Promjena vrijednosti zaliha Δ | DP33: 0 | DR33: 0.997913 | DS33: 0 | DT33: 0 | DU33: 0 | DV33: 0 | DW33: 0
BA34: Odnos duga i EBITDA | BB34: =BB44/BB3 -> 40.13463684 | BC34: 16.87184079 | BD34: 52.21065239 | BE34: 17.33098922 | BF34: 39.71512088 | CH34: Financijski i investicijski rashodi Δ | CI34: -0.029627 | CK34: 0.389617 | CL34: 0.029627 | CM34: =CM16/1000 -> 0 | CN34: Financijski i investicijski rashodi Δ | CO34: 0 | CP34: 0.389617 | CQ34: 0 | CR34: 0.029627 | CS34: 0 | CT34: 0 | CU34: 0 | DO34: Materijalni troškovi Δ | DP34: 0.121926 | DR34: 0.997913 | DS34: 0.121926 | DT34: 0 | DU34: 0 | DV34: 0 | DW34: 0
BB35: =Podloga!B36 -> 2024. planirano | BC35: =Podloga!C36 -> 2024. ostvareno | BD35: =Podloga!D36 -> 2025. planirano | BE35: =Podloga!E36 -> 2025. procijenjeno | BF35: =Podloga!F36 -> 2026. planirano | CH35: Procijenjena bruto dobit tekuće godine | CI35: 0.389617 | CJ35: =CJ17/1000 -> 0.389617 | CN35: Procijenjena bruto dobit tekuće godine | CO35: 0.389617 | CP35: 0 | CQ35: 0 | CR35: 0 | CS35: 0 | CT35: 0 | CU35: 0 | DO35: Troškovi osoblja Δ | DP35: -0.283848 | DR35: 0.835991 | DS35: 0 | DT35: 0.283848 | DU35: 0 | DV35: 0 | DW35: 0
BA36: Dani vezivanja zaliha | BB36: =365/BB37 -> 10.43323487 | BC36: 9.416947013 | BD36: 10.4762313 | BE36: 6.394879017 | BF36: 16.70079532 | DO36: Vrijednosna usklađenja Δ | DP36: 0 | DR36: 0.835991 | DS36: 0 | DT36: 0 | DU36: 0 | DV36: 0 | DW36: 0
BA37: Koeficijent obrtaja zaliha | BB37: =(RDG!C6+RDG!C7)/Bilanca!C41 -> 34.98435574 | BC37: =(RDG!D6+RDG!D7)/Bilanca!D41 -> 38.75990801 | BD37: =(RDG!E6+RDG!E7)/Bilanca!E41 -> 34.84077333 | BE37: =(RDG!F6+RDG!F7)/Bilanca!F41 -> 57.07692031 | BF37: =(RDG!G6+RDG!G7)/Bilanca!G41 -> 21.85524659 | DO37: Rezerviranja Δ | DP37: 0.019929 | DR37: 0.835991 | DS37: 0.019929 | DT37: 0 | DU37: 0 | DV37: 0 | DW37: 0
BA38: Dugoročne obveze | BB38: =Bilanca!C103 -> 2799.417 | BC38: =Bilanca!D103 -> 2722.38581 | BD38: =Bilanca!E103 -> 2743.27 | BE38: =Bilanca!F103 -> 2931.57 | BF38: =Bilanca!G103 -> 2978.675 | DO38: Ostali poslovni rashodi Δ | DP38: 0.030994 | DR38: 0.85592 | DS38: 0.030994 | DT38: 0 | DU38: 0 | DV38: 0 | DW38: 0
BB39: =Podloga!B36 -> 2024. planirano | BC39: =Podloga!C36 -> 2024. ostvareno | BD39: =Podloga!D36 -> 2025. planirano | BE39: =Podloga!E36 -> 2025. procijenjeno | BF39: =Podloga!F36 -> 2026. planirano | DO39: Financijski rashodi (bez kamata) Δ | DP39: 0.00013 | DR39: 0.886914 | DS39: 0.00013 | DT39: 0 | DU39: 0 | DV39: 0 | DW39: 0
BA40: Trajanje naplate potraživanja | BB40: =365/BB41 ->  | DO40: Procijenjena EBITDA tekuće godine | DP40: 0.887044 | DQ40: =DT29 -> 0.887044 | DR40: 0 | DS40: 0 | DT40: 0 | DU40: 0 | DV40: 0 | DW40: 0
BA41: Koeficijent obrtaja potraživanja | BB41: =(RDG!C6+RDG!C7)/(Bilanca!C51) ->  | BC41: =(RDG!D6+RDG!D7)/(Bilanca!D51) ->  | BD41: =(RDG!E6+RDG!E7)/(Bilanca!E51) ->  | BE41: =(RDG!F6+RDG!F7)/(Bilanca!F51) ->  | BF41: =(RDG!G6+RDG!G7)/(Bilanca!G51) -> 
BB43: =Podloga!B36 -> 2024. planirano | BC43: =Podloga!C36 -> 2024. ostvareno | BD43: =Podloga!D36 -> 2025. planirano | BE43: =Podloga!E36 -> 2025. procijenjeno | BF43: =Podloga!F36 -> 2026. planirano
BA44: Dug | BB44: =Bilanca!C103+Bilanca!C115+Bilanca!C130 -> 19500.216 | BC44: =Bilanca!D103+Bilanca!D115+Bilanca!D130 -> 13495.86981 | BD44: =Bilanca!E103+Bilanca!E115+Bilanca!E130 -> 26177.899 | BE44: =Bilanca!F103+Bilanca!F115+Bilanca!F130 -> 15373.35 | BF44: =Bilanca!G103+Bilanca!G115+Bilanca!G130 -> 23348.877
BB46: =Podloga!C36 -> 2024. ostvareno | BC46: =Podloga!E36 -> 2025. procijenjeno | BD46: =Podloga!B36 -> 2024. planirano | BE46: =Podloga!D36 -> 2025. planirano | BF46: =Podloga!F36 -> 2026. planirano
BA47: Dug/EBITDA | BB47: =BC44/BC3 -> 16.87184079 | BC47: =BE44/BE3 -> 17.33098922 | BD47: =BB44/BB3 -> 40.13463684 | BE47: =BD44/BD3 -> 52.21065239 | BF47: =BF44/BF3 -> 39.71512088
BA48: Dug/Pasiva | BB48: =BC44/BC91 -> 0.9201053676 | BC48: =BE44/BE91 -> 0.9077941742 | BD48: =BB44/BB91 -> 0.9554320389 | BE48: =BD44/BD91 -> 0.9677897206 | BF48: =BF44/BF91 -> 0.9363285981
BA49: Tekuća likvidnost | BB49: =IFERROR(Bilanca!D40/Bilanca!D115,) -> 1.050573781 | BC49: =IFERROR(Bilanca!F40/Bilanca!F115,) -> 1.528496702 | BD49: =IFERROR(Bilanca!C40/Bilanca!C115,) -> 0.03935907498 | BE49: =IFERROR(Bilanca!E40/Bilanca!E115,) -> 0.664706258 | BF49: =IFERROR(Bilanca!G40/Bilanca!G115,) -> 1.396047895
BB52: =Podloga!B36 -> 2024. planirano | BC52: =Podloga!C36 -> 2024. ostvareno | BD52: =Podloga!D36 -> 2025. planirano | BE52: =Podloga!E36 -> 2025. procijenjeno | BF52: =Podloga!F36 -> 2026. planirano
BA53: Poslovne akt. | BB53: =IF(Podloga!$B$19="Direktna",'NT dir.'!C18,'NT indir.'!C26) -> -55.85 | BC53: =IF(Podloga!$B$19="Direktna",'NT dir.'!D18,'NT indir.'!D26) -> 1389.136 | BD53: =IF(Podloga!$B$19="Direktna",'NT dir.'!E18,'NT indir.'!E26) -> 12863.64 | BE53: =IF(Podloga!$B$19="Direktna",'NT dir.'!F18,'NT indir.'!F26) -> 2306.943 | BF53: =IF(Podloga!$B$19="Direktna",'NT dir.'!G18,'NT indir.'!G26) -> 12806.441
BA54: Investicijske akt. | BB54: =IF(Podloga!$B$19="Direktna",'NT dir.'!C33,'NT indir.'!C41) -> 0.52 | BC54: =IF(Podloga!$B$19="Direktna",'NT dir.'!D33,'NT indir.'!D41) -> -1103.931 | BD54: =IF(Podloga!$B$19="Direktna",'NT dir.'!E33,'NT indir.'!E41) -> -12467.053 | BE54: =IF(Podloga!$B$19="Direktna",'NT dir.'!F33,'NT indir.'!F41) -> -2004.667 | BF54: =IF(Podloga!$B$19="Direktna",'NT dir.'!G33,'NT indir.'!G41) -> -12717.421
BA55: Financijske akt. | BB55: =IF(Podloga!$B$19="Direktna",'NT dir.'!C46+'NT dir.'!C47,'NT indir.'!C54+'NT indir.'!C55) -> 0 | BC55: =IF(Podloga!$B$19="Direktna",'NT dir.'!D46+'NT dir.'!D47,'NT indir.'!D54+'NT indir.'!D55) -> 23.436 | BD55: =IF(Podloga!$B$19="Direktna",'NT dir.'!E46+'NT dir.'!E47,'NT indir.'!E54+'NT indir.'!E55) -> -217.491 | BE55: =IF(Podloga!$B$19="Direktna",'NT dir.'!F46+'NT dir.'!F47,'NT indir.'!F54+'NT indir.'!F55) -> -38.854 | BF55: =IF(Podloga!$B$19="Direktna",'NT dir.'!G46+'NT dir.'!G47,'NT indir.'!G54+'NT indir.'!G55) -> -136.992
BA56: Ukupno novč. tokovi | BB56: =IF(Podloga!$B$19="Direktna",'NT dir.'!C48,'NT indir.'!C56) -> 51.208 | BC56: =IF(Podloga!$B$19="Direktna",'NT dir.'!D48,'NT indir.'!D56) -> 308.641 | BD56: =IF(Podloga!$B$19="Direktna",'NT dir.'!E48,'NT indir.'!E56) -> 179.096 | BE56: =IF(Podloga!$B$19="Direktna",'NT dir.'!F48,'NT indir.'!F56) -> 263.422 | BF56: =IF(Podloga!$B$19="Direktna",'NT dir.'!G48,'NT indir.'!G56) -> -47.967
BB59: =Podloga!B36 -> 2024. planirano | BC59: =Podloga!C36 -> 2024. ostvareno | BD59: =Podloga!D36 -> 2025. planirano | BE59: =Podloga!E36 -> 2025. procijenjeno | BF59: =Podloga!F36 -> 2026. planirano
BA60: Ukupni prihodi | BB60: =RDG!C57 -> 3446.434 | BC60: =RDG!D57 -> 3814.528 | BD60: =RDG!E57 -> 3992.2 | BE60: =RDG!F57 -> 4012.536 | BF60: =RDG!G57 -> 4802.955
BA61: Prihodi od prodaje | BB61: =RDG!C6+RDG!C7 -> 1276.894 | BC61: =RDG!D6+RDG!D7 -> 1297.798 | BD61: =RDG!E6+RDG!E7 -> 1726.43 | BE61: =RDG!F6+RDG!F7 -> 1584.227 | BF61: =RDG!G6+RDG!G7 -> 2082.805
BA62: Ostali prihodi | BB62: =RDG!C57-RDG!C6-RDG!C7 -> 2169.54 | BC62: =RDG!D57-RDG!D6-RDG!D7 -> 2516.73 | BD62: =RDG!E57-RDG!E6-RDG!E7 -> 2265.77 | BE62: =RDG!F57-RDG!F6-RDG!F7 -> 2428.309 | BF62: =RDG!G57-RDG!G6-RDG!G7 -> 2720.15
BA63: Ukupni rashodi | BB63: =(0-RDG!C58) -> -3441.414 | BC63: =(0-RDG!D58) -> -3477.119 | BD63: =(0-RDG!E58) -> -3952.55 | BE63: =(0-RDG!F58) -> -3622.919 | BF63: =(0-RDG!G58) -> -4755.046
BA64: Bruto dobit | BB64: =RDG!C59 -> 5.02 | BC64: =RDG!D59 -> 337.409 | BD64: =RDG!E59 -> 39.65 | BE64: =RDG!F59 -> 389.617 | BF64: =RDG!G59 -> 47.909
BA65: Marža bruto dobiti | BB65: =BB64/BB60 -> 0.001456578017 | BC65: =BC64/BC60 -> 0.08845366976 | BD65: 0.009931867141 | BE65: 0.09709993879 | BF65: 0.009974900868
BB68: =Podloga!B36 -> 2024. planirano | BC68: =Podloga!C36 -> 2024. ostvareno | BD68: =Podloga!D36 -> 2025. planirano | BE68: =Podloga!E36 -> 2025. procijenjeno | BF68: =Podloga!F36 -> 2026. planirano
BA69: Promjene vrijednosti zaliha | BB69: =RDG!C12 -> 0 | BC69: =RDG!D12 -> 0 | BD69: =RDG!E12 -> 0 | BE69: =RDG!F12 -> 0 | BF69: =RDG!G12 -> 0
BA70: Materijalni troškovi | BB70: =RDG!C13 -> 1423.35 | BC70: =RDG!D13 -> 1512.563 | BD70: =RDG!E13 -> 1697.98 | BE70: =RDG!F13 -> 1390.637 | BF70: =RDG!G13 -> 2105.259
BA71: Troškovi osoblja | BB71: =RDG!C17 -> 981.454 | BC71: =RDG!D17 -> 1117.044 | BD71: =RDG!E17 -> 1509.68 | BE71: =RDG!F17 -> 1400.892 | BF71: =RDG!G17 -> 1649.73
BA72: Amortizacija | BB72: =RDG!C21 -> 425 | BC72: =RDG!D21 -> 372.131 | BD72: =RDG!E21 -> 372 | BE72: =RDG!F21 -> 377.631 | BF72: =RDG!G21 -> 420
BA73: Vrijednosna usklađenja | BB73: =RDG!C23 -> 0 | BC73: =RDG!D23 -> 0 | BD73: =RDG!E23 -> 0 | BE73: =RDG!F23 -> 0 | BF73: =RDG!G23 -> 0
BA74: Rezerviranja | BB74: =RDG!C26 -> 0 | BC74: =RDG!D26 -> 85.14 | BD74: =RDG!E26 -> 0 | BE74: =RDG!F26 -> 65.211 | BF74: =RDG!G26 -> 73.213
BA75: Ostali poslovni rashodi | BB75: =RDG!C22+RDG!C33 -> 548.81 | BC75: =RDG!D22+RDG!D33 -> 299.525 | BD75: =RDG!E22+RDG!E33 -> 282.5 | BE75: =RDG!F22+RDG!F33 -> 268.531 | BF75: =RDG!G22+RDG!G33 -> 386.644
BA79: Bilanca (u 000 kn)
BB80: =Podloga!B36 -> 2024. planirano | BC80: =Podloga!C36 -> 2024. ostvareno | BD80: =Podloga!D36 -> 2025. planirano | BE80: =Podloga!E36 -> 2025. procijenjeno | BF80: =Podloga!F36 -> 2026. planirano
BA81: Dugotrajna imovina | BB81: =Bilanca!C5+Bilanca!C4 -> 19752.51 | BC81: =Bilanca!D5+Bilanca!D4 -> 13933.87237 | BD81: =Bilanca!E5+Bilanca!E4 -> 26432.344 | BE81: =Bilanca!F5+Bilanca!F4 -> 15781.77266 | BF81: =Bilanca!G5+Bilanca!G4 -> 24023.211
BA82: Kratkotrajna imovina | BB82: =Bilanca!C40 -> 657.328 | BC82: =Bilanca!D40 -> 707.76 | BD82: =Bilanca!E40 -> 510.067 | BE82: =Bilanca!F40 -> 1029.736 | BF82: =Bilanca!G40 -> 808.57
BA83: Plaćeni troškovi budućeg razdoblja i obračunati prihodi | BB83: =Bilanca!C67 -> 0 | BC83: =Bilanca!D67 -> 26.109 | BD83: =Bilanca!E67 -> 106.75 | BE83: =Bilanca!F67 -> 123.336 | BF83: =Bilanca!G67 -> 104.845
BA84: Ukupno aktiva | BB84: =SUM(BB81:BB83) -> 20409.838 | BC84: 14667.74137 | BD84: 27049.161 | BE84: 16934.84466 | BF84: 24936.626
BA86: Kapital i rezerve | BB86: =Bilanca!C75 -> 909.625 | BC86: =Bilanca!D75 -> 1150.224 | BD86: =Bilanca!E75 -> 871.261 | BE86: =Bilanca!F75 -> 1539.841 | BF86: =Bilanca!G75 -> 1587.75
BA87: Rezerviranja | BB87: =Bilanca!C96 -> 0 | BC87: =Bilanca!D96 -> 21.65 | BD87: =Bilanca!E96 -> 0 | BE87: =Bilanca!F96 -> 21.65 | BF87: =Bilanca!G96 -> 0
BA88: Dugoročne obveze | BB88: =Bilanca!C103 -> 2799.417 | BC88: =Bilanca!D103 -> 2722.38581 | BD88: =Bilanca!E103 -> 2743.27 | BE88: =Bilanca!F103 -> 2931.57 | BF88: =Bilanca!G103 -> 2978.675
BA89: Kratkoročne obveze | BB89: =Bilanca!C115 -> 16700.799 | BC89: =Bilanca!D115 -> 673.689 | BD89: =Bilanca!E115 -> 767.357 | BE89: =Bilanca!F115 -> 673.692 | BF89: =Bilanca!G115 -> 579.185
BA90: Odgođeno plaćanje troškova i prihod budućeg razdoblja | BB90: =Bilanca!C130 -> 0 | BC90: =Bilanca!D130 -> 10099.795 | BD90: =Bilanca!E130 -> 22667.272 | BE90: =Bilanca!F130 -> 11768.088 | BF90: =Bilanca!G130 -> 19791.017
BA91: Ukupna pasiva | BB91: =SUM(BB86:BB90) -> 20409.841 | BC91: 14667.74381 | BD91: 27049.16 | BE91: 16934.841 | BF91: 24936.627
BA92: Ukupne obveze | BB92: =SUM(BB87:BB90) -> 19500.216 | BC92: 13517.51981 | BD92: 26177.899 | BE92: 15395 | BF92: 23348.877
BB93: =IFERROR(((Bilanca!C96+Bilanca!C103+Bilanca!C115+Bilanca!C130)/Bilanca!C68),) -> 0.9554321793 | BC93: =IFERROR(((Bilanca!D96+Bilanca!D103+Bilanca!D115+Bilanca!D130)/Bilanca!D68),) -> 0.9215815489 | BD93: =IFERROR(((Bilanca!E96+Bilanca!E103+Bilanca!E115+Bilanca!E130)/Bilanca!E68),) -> 0.9677896849 | BE93: =IFERROR(((Bilanca!F96+Bilanca!F103+Bilanca!F115+Bilanca!F130)/Bilanca!F68),) -> 0.9090724072 | BF93: =IFERROR(((Bilanca!G96+Bilanca!G103+Bilanca!G115+Bilanca!G130)/Bilanca!G68),) -> 0.9363286356
BB94: =IFERROR((Bilanca!C75/Bilanca!C68),) -> 0.04456796766 | BC94: =IFERROR((Bilanca!D75/Bilanca!D68),) -> 0.07841861749 | BD94: =IFERROR((Bilanca!E75/Bilanca!E68),) -> 0.03221027817 | BE94: =IFERROR((Bilanca!F75/Bilanca!F68),) -> 0.09092737671 | BF94: =IFERROR((Bilanca!G75/Bilanca!G68),) -> 0.06367140446
BB95: =Podloga!D36 -> 2025. planirano | BC95: =Podloga!E36 -> 2025. procijenjeno
BA96: Ukupni prihod | BB96: =RDG!E57 -> 3992.2 | BC96: =RDG!F57 -> 4012.536
BA97: Trošak prodanih proizvoda | BB97: =RDG!E13 -> 1697.98 | BC97: =RDG!F13 -> 1390.637
BA98: Bruto marža | BB98: =BB96-BB97 -> 2294.22 | BC98: =BC96-BC97 -> 2621.899
BA99: Promjene vrijednosti zaliha | BB99: =RDG!E12 -> 0 | BC99: =RDG!F12 -> 0
BA100: Trošak osoblja | BB100: =RDG!E17 -> 1509.68 | BC100: =RDG!F17 -> 1400.892
BA101: Vrijednosna usklađenja | BB101: =RDG!E23 -> 0 | BC101: =RDG!F23 -> 0
BA102: Rezerviranja | BB102: =RDG!E26 -> 0 | BC102: =RDG!F26 -> 65.211
BA103: Financijski rashod (bez kamata) | BB103: =RDG!E45-RDG!E46-RDG!E48 -> 0.65 | BC103: =RDG!F45-RDG!F46-RDG!F48 -> 0.221
BA104: Ostali rashodi | BB104: =RDG!E22+RDG!E33+RDG!E55+RDG!E56 -> 282.5 | BC104: =RDG!F22+RDG!F33+RDG!F55+RDG!F56 -> 268.531
BA105: EBITDA | BB105: =BD3 -> 501.39 | BC105: =BE3 -> 887.044
BA107: Kontrola | BB107: =BB96-BB97-BB99-BB100-BB101-BB102-BB103-BB104 -> 501.39 | BC107: =BC96-BC97-BC99-BC100-BC101-BC102-BC103-BC104 -> 887.044
BN120: Analiza novčanih izdataka
BO121: =Podloga!B36 -> 2024. planirano | BP121: =Podloga!C36 -> 2024. ostvareno | BQ121: =Podloga!D36 -> 2025. planirano | BR121: =Podloga!E36 -> 2025. procijenjeno | BS121: =Podloga!F36 -> 2026. planirano
BN122: Novčani izdaci dobavljačima | BO122: =IFERROR(IF(Podloga!$B$19="Direktna",'NT dir.'!C11,),) -> 0 | BP122: =IFERROR(IF(Podloga!$B$19="Direktna",'NT dir.'!D11,),) -> 0 | BQ122: =IFERROR(IF(Podloga!$B$19="Direktna",'NT dir.'!E11,),) -> 0 | BR122: =IFERROR(IF(Podloga!$B$19="Direktna",'NT dir.'!F11,),) -> 0 | BS122: =IFERROR(IF(Podloga!$B$19="Direktna",'NT dir.'!G11,),) -> 0
BN123: Novčani izdaci za zaposlene | BO123: =IFERROR(IF(Podloga!$B$19="Direktna",'NT dir.'!C12,),) -> 0 | BP123: =IFERROR(IF(Podloga!$B$19="Direktna",'NT dir.'!D12,),) -> 0 | BQ123: =IFERROR(IF(Podloga!$B$19="Direktna",'NT dir.'!E12,),) -> 0 | BR123: =IFERROR(IF(Podloga!$B$19="Direktna",'NT dir.'!F12,),) -> 0 | BS123: =IFERROR(IF(Podloga!$B$19="Direktna",'NT dir.'!G12,),) -> 0
BN124: Novčani izdaci za osiguranje za naknadu štete | BO124: =IFERROR(IF(Podloga!$B$19="Direktna",'NT dir.'!C13,),) -> 0 | BP124: =IFERROR(IF(Podloga!$B$19="Direktna",'NT dir.'!D13,),) -> 0 | BQ124: =IFERROR(IF(Podloga!$B$19="Direktna",'NT dir.'!E13,),) -> 0 | BR124: =IFERROR(IF(Podloga!$B$19="Direktna",'NT dir.'!F13,),) -> 0 | BS124: =IFERROR(IF(Podloga!$B$19="Direktna",'NT dir.'!G13,),) -> 0
BN125: Novčani izdaci za kamate | BO125: =IFERROR(IF(Podloga!$B$19="Direktna",'NT dir.'!C16,),) -> 0 | BP125: =IFERROR(IF(Podloga!$B$19="Direktna",'NT dir.'!D16,),) -> 0 | BQ125: =IFERROR(IF(Podloga!$B$19="Direktna",'NT dir.'!E16,),) -> 0 | BR125: =IFERROR(IF(Podloga!$B$19="Direktna",'NT dir.'!F16,),) -> 0 | BS125: =IFERROR(IF(Podloga!$B$19="Direktna",'NT dir.'!G16,),) -> 0
BN126: Plaćeni porez na dobit | BO126: =IFERROR(IF(Podloga!$B$19="Direktna",'NT dir.'!C17,),) -> 0 | BP126: =IFERROR(IF(Podloga!$B$19="Direktna",'NT dir.'!D17,),) -> 0 | BQ126: =IFERROR(IF(Podloga!$B$19="Direktna",'NT dir.'!E17,),) -> 0 | BR126: =IFERROR(IF(Podloga!$B$19="Direktna",'NT dir.'!F17,),) -> 0 | BS126: =IFERROR(IF(Podloga!$B$19="Direktna",'NT dir.'!G17,),) -> 0
BN127: Ostali novčani izdaci iz poslovanja | BO127: =IFERROR(IF(Podloga!$B$19="Direktna",'NT dir.'!C14,),) -> 0 | BP127: =IFERROR(IF(Podloga!$B$19="Direktna",'NT dir.'!D14,),) -> 0 | BQ127: =IFERROR(IF(Podloga!$B$19="Direktna",'NT dir.'!E14,),) -> 0 | BR127: =IFERROR(IF(Podloga!$B$19="Direktna",'NT dir.'!F14,),) -> 0 | BS127: =IFERROR(IF(Podloga!$B$19="Direktna",'NT dir.'!G14,),) -> 0

Sheet Sektorski pokazatelji
A1: Sektorski ključni pokazatelji
A2: Obveznik: | B2: =IF(ISBLANK(Podloga!B2),"",Podloga!B2) -> Zračna luka Osijek d.o.o. | C2: =Podloga!B36 -> 2024. planirano | D2: =Podloga!C36 -> 2024. ostvareno | E2: =Podloga!D36 -> 2025. planirano | F2: =Podloga!E36 -> 2025. procijenjeno | G2: =Podloga!F36 -> 2026. planirano | H2: ="Indeks "& RIGHT(LEFT(Podloga!C36,7),5) &" / "& RIGHT(LEFT(Podloga!B36,8),6) -> Indeks 24. o / 24. pl | I2: ="Indeks "& RIGHT(LEFT(Podloga!E36,8),6) &" / "& RIGHT(LEFT(Podloga!D36,8),6) -> Indeks 25. pr / 25. pl | J2: ="Indeks "& RIGHT(LEFT(Podloga!E36,8),6) &" / "& RIGHT(LEFT(Podloga!C36,7),5) -> Indeks 25. pr / 24. o | K2: ="Indeks "& RIGHT(LEFT(Podloga!D36,8),6) &" / "& RIGHT(LEFT(Podloga!B36,8),6) -> Indeks 25. pl / 24. pl | L2: ="Indeks "& RIGHT(LEFT(Podloga!F36,8),6) &" / "& RIGHT(LEFT(Podloga!D36,8),6) -> Indeks 26. pl / 25. pl | M2: ="Indeks "& RIGHT(LEFT(Podloga!F36,8),6) &" / "& RIGHT(LEFT(Podloga!E36,8),6) -> Indeks 26. pl / 25. pr
A3: Operativni pokazatelji | B3: Način izračuna
A4: Ostvareni promet zrakoplova | B4: ukupan broj polijetanja | C4: 1449 | D4: 1526 | E4: 1483 | F4: 1656 | G4: 1767 | H4: =IFERROR(D4/C4*100,) -> 105.3140097 | I4: =IFERROR(F4/E4*100,) -> 111.6655428 | J4: =IFERROR(F4/D4*100,) -> 108.5190039 | K4: =IFERROR(E4/C4*100,) -> 102.3464458 | L4: =IFERROR(G4/E4*100,) -> 119.1503709 | M4: =IFERROR(G4/F4*100,) -> 106.7028986
A5: Broj putnika | C5: 42414 | D5: 45756 | E5: 50015 | F5: 42851 | G5: 48651 | H5: =IFERROR(D5/C5*100,) -> 107.8794738 | I5: 85.67629711 | J5: =IFERROR(F5/D5*100,) -> 93.65110587 | K5: 117.9209695 | L5: 97.27281815 | M5: =IFERROR(G5/F5*100,) -> 113.5352734
A6: Promet po redovitim letovima | C6: 40936 | D6: 44014 | E6: 47860 | F6: 41495 | G6: 47226 | H6: =IFERROR(D6/C6*100,) -> 107.5190541 | I6: 86.70079398 | J6: =IFERROR(F6/D6*100,) -> 94.27682101 | K6: 116.9142075 | L6: 98.67530297 | M6: =IFERROR(G6/F6*100,) -> 113.8113026
A7: Promet po ostalim letovima | C7: 1478 | D7: 1742 | E7: 2155 | F7: 1356 | G7: 1425 | H7: =IFERROR(D7/C7*100,) -> 117.8619756 | I7: 62.92343387 | J7: =IFERROR(F7/D7*100,) -> 77.84156142 | K7: 145.8051421 | L7: 66.12529002 | M7: =IFERROR(G7/F7*100,) -> 105.0884956
A8: Promet putnika po avio kompanijama | H8: =IFERROR(D8/C8*100,) -> 0 | I8: =IFERROR(F8/E8*100,) -> 0 | J8: =IFERROR(F8/D8*100,) -> 0 | K8: =IFERROR(E8/C8*100,) -> 0 | L8: =IFERROR(G8/E8*100,) -> 0 | M8: =IFERROR(G8/F8*100,) -> 0
A9: 1. Trade Air | C9: 9192 | D9: 10013 | E9: 11889 | F9: 10396 | G9: 11538 | H9: =IFERROR(D9/C9*100,) -> 108.9316797 | I9: =IFERROR(F9/E9*100,) -> 87.44217344 | J9: =IFERROR(F9/D9*100,) -> 103.8250275 | K9: =IFERROR(E9/C9*100,) -> 129.3407311 | L9: =IFERROR(G9/E9*100,) -> 97.04769114 | M9: =IFERROR(G9/F9*100,) -> 110.9849942
A10: 2. Croatia Airlines | C10: 14690 | D10: 15054 | E10: 15962 | F10: 15518 | G10: 25188 | H10: =IFERROR(D10/C10*100,) -> 102.4778761 | I10: =IFERROR(F10/E10*100,) -> 97.21839369 | J10: =IFERROR(F10/D10*100,) -> 103.0822373 | K10: =IFERROR(E10/C10*100,) -> 108.6589517 | L10: =IFERROR(G10/E10*100,) -> 157.7997745 | M10: =IFERROR(G10/F10*100,) -> 162.3147313
A11: 3. Wizz Air | C11: 23760 | D11: 0 | E11: 0 | F11: 0 | G11: 0 | H11: =IFERROR(D11/C11*100,) -> 0 | I11: =IFERROR(F11/E11*100,) -> 0 | J11: =IFERROR(F11/D11*100,) -> 0 | K11: =IFERROR(E11/C11*100,) -> 0 | L11: =IFERROR(G11/E11*100,) -> 0 | M11: =IFERROR(G11/F11*100,) -> 0
A12: 4. Eurowings | C12: 0 | D12: 0 | E12: 0 | F12: 0 | G12: 0 | H12: =IFERROR(D12/C12*100,) -> 0 | I12: =IFERROR(F12/E12*100,) -> 0 | J12: =IFERROR(F12/D12*100,) -> 0 | K12: =IFERROR(E12/C12*100,) -> 0 | L12: =IFERROR(G12/E12*100,) -> 0 | M12: =IFERROR(G12/F12*100,) -> 0
A13: 5. Ryanair | C13: 17054 | D13: 18947 | E13: 20009 | F13: 15581 | G13: 10500 | H13: =IFERROR(D13/C13*100,) -> 111.1000352 | I13: =IFERROR(F13/E13*100,) -> 77.86995852 | J13: =IFERROR(F13/D13*100,) -> 82.23465456 | K13: =IFERROR(E13/C13*100,) -> 117.3273132 | L13: =IFERROR(G13/E13*100,) -> 52.47638563 | M13: =IFERROR(G13/F13*100,) -> 67.38976959
A14: Promet po zemljama odredišta i dolazišta: | H14: 0 | I14: 0 | J14: 0 | K14: 0 | L14: 0 | M14: 0
A15: 1. RH | C15: 15832 | D15: 16728 | E15: 18834 | F15: 17151 | G15: 22326 | H15: 105.659424 | I15: 91.06403313 | J15: 102.5286944 | K15: 118.9615968 | L15: 118.5409366 | M15: 130.1731677
A16: 2. Velika Britanija | C16: 17054 | D16: 18947 | E16: 20009 | F16: 15581 | G16: 10500 | H16: 111.1000352 | I16: 77.86995852 | J16: 82.23465456 | K16: 117.3273132 | L16: 52.47638563 | M16: 67.38976959
A17: 3. Njemačka | C17: 8050 | D17: 8339 | E17: 9017 | F17: 8763 | G17: 14400 | H17: 103.5900621 | I17: 97.18309859 | J17: 105.0845425 | K17: 112.0124224 | L17: 159.6983476 | M17: 164.3272852
A18: 4. Švicarska | C18: 0 | D18: 0 | E18: 0 | F18: 0 | G18: 0 | H18: 0 | I18: 0 | J18: 0 | K18: 0 | L18: 0 | M18: 0
H19: 0 | I19: 0 | J19: 0 | K19: 0 | L19: 0 | M19: 0
H20: 0 | I20: 0 | J20: 0 | K20: 0 | L20: 0 | M20: 0
H21: 0 | I21: 0 | J21: 0 | K21: 0 | L21: 0 | M21: 0
H22: 0 | I22: 0 | J22: 0 | K22: 0 | L22: 0 | M22: 0
H23: 0 | I23: 0 | J23: 0 | K23: 0 | L23: 0 | M23: 0
A24: Financijsko - naturalni pokazatelji
A25: Komercijalni prihod po putniku | B25: komercijalni prihod/broj putnika | C25: 30.1 | D25: 39 | E25: 35 | F25: 41 | G25: 49 | H25: =IFERROR(D25/C25*100,) -> 129.5681063 | I25: 117.1428571 | J25: =IFERROR(F25/D25*100,) -> 105.1282051 | K25: 116.2790698 | L25: 140 | M25: =IFERROR(G25/F25*100,) -> 119.5121951
A26: Troškovi po putniku | B26: troškovi/broj putnika | C26: 81.14 | D26: 91 | E26: 79 | F26: 75 | G26: 98 | H26: =IFERROR(D26/C26*100,) -> 112.1518363 | I26: =IFERROR(F26/E26*100,) -> 94.93670886 | J26: =IFERROR(F26/D26*100,) -> 82.41758242 | K26: =IFERROR(E26/C26*100,) -> 97.36258319 | L26: =IFERROR(G26/E26*100,) -> 124.0506329 | M26: =IFERROR(G26/F26*100,) -> 130.6666667
H27: 0 | I27: 0 | J27: 0 | K27: 0 | L27: 0 | M27: 0
A28: Tržišni pokazatelji
A29: Ukupan broj kupaca | C29: 0 | D29: 209 | E29: 217 | F29: 211 | G29: 218 | H29: =IFERROR(D29/C29*100,) -> 0 | I29: 97.23502304 | J29: =IFERROR(F29/D29*100,) -> 100.9569378 | K29: 0 | L29: 100.4608295 | M29: =IFERROR(G29/F29*100,) -> 103.3175355
A30: Domaći kupci | C30: 0 | D30: 120 | E30: 123 | F30: 105 | G30: 109 | H30: 0 | I30: 85.36585366 | J30: 87.5 | K30: 0 | L30: 88.61788618 | M30: 103.8095238
A31: Kupci iz zemalja EU | C31: 0 | D31: 70 | E31: 73 | F31: 81 | G31: 82
A32: Kupci iz trećih zemalja | C32: 0 | D32: 19 | E32: 21 | F32: 25 | G32: 27 | H32: 0 | I32: 119.047619 | J32: 131.5789474 | K32: 0 | L32: 128.5714286 | M32: 108
A33: Razvojni pokazatelji
A34: Broj destinacija | C34: 8 | D34: 8 | E34: 8 | F34: 8 | G34: 8 | H34: =IFERROR(D34/C34*100,) -> 100 | I34: 100 | J34: =IFERROR(F34/D34*100,) -> 100 | K34: 100 | L34: 100 | M34: =IFERROR(G34/F34*100,) -> 100
A35: Domaće | C35: 6 | D35: 6 | E35: 6 | F35: 6 | G35: 6 | H35: =IFERROR(D35/C35*100,) -> 100 | I35: 100 | J35: 100 | K35: 100 | L35: 100 | M35: =IFERROR(G35/F35*100,) -> 100
A36: Inozemne | C36: 2 | D36: 2 | E36: 2 | F36: 2 | G36: 2 | H36: =IFERROR(D36/C36*100,) -> 100 | I36: 100 | J36: 100 | K36: 100 | L36: 100 | M36: =IFERROR(G36/F36*100,) -> 100
A39: * Plavo osjenčana pozadina označava planirane vrijednosti

Sheet Compliance
B1: Izvješće o provođenju funkcije praćenja usklađenosti
B2: =Podloga!B2 -> Zračna luka Osijek d.o.o.
B4: AKTI | C4: ODGOVOR | D4: DODATNI KOMENTAR / OBRAZLOŽENJE
B5: Je li donesen interni akt kojim je definirana funkcija praćenja usklađenosti? | C5: DA
B6: Naziv akta | C6: Odluka o provođenju funkcije usklađenosti, Pravilnik o organizaciji i sistematizaciji radnih mjesta
B7: Tko donosi interne akte u društvu / pravnoj osobi? | C7: Direktor
B8: Je li internim aktom kojim je definirana funkcija praćenja usklađenosti predviđeno donošenje drugih akata? | C8: DA
B9: Naziv drugih akata | C9: Plan za upravljanje rizicima
B10: Jesu li doneseni drugi akti predviđeni internim aktom kojim je definirana funkcija praćenja usklađenosti? | C10: NE
B11: Je li internim aktima o funkciji usklađenosti predviđena samostalnost i neovisnost osobe zadužene za funkcije praćenja usklađenosti? | C11: DA | D11: Dana 20.11.2020. godine izradili smo dokument Strategija upravljanja rizicima.
B12: Je li internim aktom propisana minimalna stručna sprema i potrebna znanja za obavljanje funkcije praćenja usklađenosti | C12: DA | D12: Pravilnikom o organizaciji i sistematizaciji radnih mjesta
B14: Formalni status funkcije praćenja usklađenosti | C14: ODGOVOR | D14: DODATNI KOMENTAR / OBRAZLOŽENJE
B15: Na koji je način organizirana funkcija praćenja usklađenosti?
B16: (A) Jedinica za praćenje funkcije usklađenosti | C16: NE
B17: (B) osoba / službenik | C17: DA
B18: Obavljaju li funkciju praćenja usklađenosti zaposlenici koji su već zaposleni u pravnoj osobi? | C18: DA
B19: A) Ustrojstvena jedinica | C19: ODGOVOR | D19: DODATNI KOMENTAR / OBRAZLOŽENJE
B20: Je li formirana nova ustrojstvena jedinica za funkciju praćenje usklađenosti poslovanja? | C20: NE
B21: Naziv ustrojstvene jedinice | C21: 0
B22: Je li rađena nova sistematizacija zbog uvođenja ustrojstvene jedinice za praćenje funkcije praćenja usklađenosti poslovanja? | C22: DA
B23: Je li tom sistematizacijom povećan ukupni broj zaposlenika u pravnoj osobi? | C23: DA | D23: Ali ne samo zbog funkcije praćenja usklađenosti poslovanja, već i zbog drugih poslova koji se obavljaju u okviru tog radnog mjesta
B24: Ako DA, u kojim je ustrojstvenim jedinicama bilo promjena i za koliko? | C24: 0
B25: Je li ustrojstvena jedinica ustrojena samo za obavljanje poslova funkcije praćenja usklađenosti? | C25: NE
B26: Ako NE, koje dodatne poslove obavlja? | C26: Kontroling, ljudske potencijale
B27: Broj službenika predviđenih ustrojstvenom jedinicom | C27: 0
B28: Broj službenika zaposlenih u ustrojstvenoj jedinici | C28: 0
B29: B) Osoba / službenik | C29: ODGOVOR | D29: DODATNI KOMENTAR / OBRAZLOŽENJE
B30: Obavlja li funkciju praćenja usklađenosti samostalni službenik? | C30: DA
B31: Kojim je aktom imenovana osoba unutar organizacije? | C31: Odluka o uvođenju funkcije praćenja usklađenosti poslovanja, Pravilnik o organizaciji I sistematizaciji radnih mjesta
B32: Naziv radnog mjesta osobe? | C32: Rukovoditelj kontrolinga, ljudskih potencijala i sustava praćenja usklađenosti poslovanja
B33: Je li službenik zaposlen na to radno mjesto samo za obavljanje posla funkcije praćenja usklađenosti? | C33: NE
B34: Ako NE, koje poslove obavlja pored poslova funkcije usklađenosti? | C34: Kontroling, ljudske potencijale
B36: OPIS POSLOVA | C36: ODGOVOR | D36: DODATNI KOMENTAR / OBRAZLOŽENJE
B37: Kratak opis poslova funkcije praćenja usklađenosti | C37: Funkcija praćenja usklađenosti poslovanja podrazumijeva sve poslove koji se odnose na usklađivanje funkcioniranja i poslovanja Zračne luke Osijek d.o.o. s pravnom regulativom i internim aktima, procjene rizika u funkcioniranju i poslovanju Zračne luke Osijek d.o.o., brigu o provođenju dobre poslovne prakse te sprječavanje sukoba interesa i koruptivnih radnji.
B38: Jesu li osobe zadužene za funkciju praćenja usklađenosti neovisne u obavljanju poslova? | C38: DA
B39: Ako NE, obrazložiti.
B40: Jesu li osobe zadužene za funkciju praćenja usklađenosti samostalne u obavljanju poslova? | C40: DA
B41: Ako NE, obrazložiti.
B42: Imaju li osobe zadužene za funkciju praćenja usklađenosti pristup osoblju i stručnim službama u društvu koje su potrebne za obavljanje poslova funkcije usklađenosti? | C42: DA
B43: Ako NE, obrazložiti.
B44: Jesu li osobe zadužene za funkciju praćenja usklađenosti u sukobu interesa između obavljanja poslova funkcije usklađenosti i drugih svojih odgovornosti? | C44: NE
B45: Ako DA, obrazložiti.
B46: Imaju li osobe zadužene za funkciju funkciju praćenja usklađenosti potrebne ovlasti i pristup svim bitnim podacima za obavljanje funkcije poslova praćenja usklađenosti? | C46: DA
B48: Povezane PO | C48: ODGOVOR | D48: DODATNI KOMENTAR / OBRAZLOŽENJE
B49: Je li funkcija usklađenosti uvedena u povezanim pravnim osobama društva? | C49: N/P
B50: U kojima? | C50: N/P
B51: Na koji je način organizirana funkcija praćenja usklađenosti? | C51: N/P
B52: (A) Jedinica za praćenje funkcije usklađenosti | C52: N/P
B53: (B) Samostalna osoba / službenik | C53: N/P
B54: Da li je donesen interni akt kojim je definirana funkcija praćenja usklađenosti? | C54: N/P
B55: Naziv akta | C55: N/P
B56: Izvještavaju li povezane osobe matičnu pravnu osobu o provođenju funkcije praćenja usklađenosti? | C56: N/P
B57: Na koji način povezane pravne osobe izvještavaju matičnu pravnu osobu? | C57: N/P
B59: KOMUNIKACIJA | C59: ODGOVOR | D59: DODATNI KOMENTAR / OBRAZLOŽENJE
B60: Imaju li osobe zadužene za obavljanje funkcije praćenja usklađenosti mogućnost izravne komunikacije s NO ili drugim nadzornim tijelom PO? | C60: DA
B61: Oblik komunikacije (formalna, neformalna) | C61: NEFORMALNA
B64: Utjecaj funkcije praćenja usklađenosti na poslovanje PO (opisati efekte) | C64: ODGOVOR | D64: DODATNI KOMENTAR / OBRAZLOŽENJE
B65: Financijski | C65: Smanjenje troškova i spriječavanje nepotrebnih gubitaka.
B66: Organizacijski | C66: Optimizacija procesa i procedura.
B67: Antikorupcijski | C67: Spriječavanje stvaranja mogućnosti za korupciju
B69: IZVJEŠTAVANJE | C69: ODGOVOR | D69: DODATNI KOMENTAR / OBRAZLOŽENJE
B70: Prate li i ocjenjuju osobe zadužene za funkciju praćenja usklađenosti učinkovitost politika, mjera i postupaka propisanih u svrhu praćenja usklađenosti poslovanja društva u cilju rješavanja nedostataka i nepravilnosti u poslovanju? | C70: DA
B71: Izvještavaju li osobe zadužene za funkciju praćenja usklađenosti poslovanja društva tijela društva o nedostacima i nepravilnostima otkrivenim u provođenju svojih aktivnosti? | C71: DA
B72: Savjetuju li osobe zadužene za funkciju praćenja usklađenosti poslovanja društva tijela društva o ispravljanju nedostaka i nepravilnosti otkrivenih u provođenju svojih aktivnosti? | C72: DA
B73: Broj zaprimljenih prijava o nepravilnosti: | C73: 0
B74: Broj riješenih prijava o nepravilnosti: | C74: 0
B75: Broj uočenih nepravilnosti: | C75: 0
B76: Broj riješenih uočenih nepravilnosti: | C76: 0
B77: Je li uprava ili drugo tijelo upravljanja identificiralo glavne rizike usklađenosti poslovanja? | C77: NE
B78: Donosi li uprava ili drugo tijelo upravljanja godišnje planove za upravljanje rizicima usklađenosti? | C78: NE
B80: * Stupac DODATNI KOMENTAR / OBRAZLOŽENJE popuniti ukoliko smatrate potrebnim

Sheet Sazetak (hidden)
L1: Tablica za Interni izvještaj
B2: =Podloga!B2 -> Zračna luka Osijek d.o.o. | L2: =Podloga!L2 -> 0
B6: BILANCA (HRK 000) | C6: =Podloga!B36 -> 2024. planirano | D6: =Podloga!C36 -> 2024. ostvareno | E6: =Podloga!D36 -> 2025. planirano | F6: =Podloga!E36 -> 2025. procijenjeno | G6: =Podloga!F36 -> 2026. planirano | I6: Pokazatelji | J6: Izračun | L6: BILANCA (HRK 000) | M6: =D6 -> 2024. ostvareno | N6: =F6 -> 2025. procijenjeno | O6: =G6 -> 2026. planirano
B7: Dugotrajna imovina | C7: =Bilanca!C5 -> 19752.51 | D7: =Bilanca!D5 -> 13933.87237 | E7: =Bilanca!E5 -> 26432.344 | F7: =Bilanca!F5 -> 15781.77266 | G7: =Bilanca!G5 -> 24023.211 | I7: EBITDA | J7: Poslovni prihod - poslovni rashod + amortizacija | L7: Dugotrajna imovina | M7: =D7 -> 13933.87237 | N7: =F7 -> 15781.77266 | O7: =G7 -> 24023.211
B8: Kratkotrajna imovina | C8: =Bilanca!C40 -> 657.328 | D8: =Bilanca!D40 -> 707.76 | E8: =Bilanca!E40 -> 510.067 | F8: =Bilanca!F40 -> 1029.736 | G8: =Bilanca!G40 -> 808.57 | I8: EBITDA marža | J8: (Pos. prihod - pos. rashod + amortizacija) / posl. prihod | L8: Kratkotrajna imovina | M8: 707.76 | N8: 1029.736 | O8: 808.57
B9: Pl. troš. budućeg razd.. | C9: =Bilanca!C67 -> 0 | D9: =Bilanca!D67 -> 26.109 | E9: =Bilanca!E67 -> 106.75 | F9: =Bilanca!F67 -> 123.336 | G9: =Bilanca!G67 -> 104.845 | I9: Neto profitna marža | J9: Neto dobit / uk. prihod | L9: Pl. troš. budućeg razd.. | M9: 26.109 | N9: 123.336 | O9: 104.845
B10: Aktiva | C10: =Bilanca!C68 -> 20409.838 | D10: =Bilanca!D68 -> 14667.74137 | E10: =Bilanca!E68 -> 27049.161 | F10: =Bilanca!F68 -> 16934.84466 | G10: =Bilanca!G68 -> 24936.626 | I10: RoA | J10: Neto dobit / aktiva | L10: Aktiva | M10: 14667.74137 | N10: 16934.84466 | O10: 24936.626
B11: Kapital i rezerve | C11: =Bilanca!C75 -> 909.625 | D11: =Bilanca!D75 -> 1150.224 | E11: =Bilanca!E75 -> 871.261 | F11: =Bilanca!F75 -> 1539.841 | G11: =Bilanca!G75 -> 1587.75 | I11: RoE | J11: Neto dobit / kapital i rezerve | L11: Kapital i rezerve | M11: 1150.224 | N11: 1539.841 | O11: 1587.75
B12: Rezerviranja | C12: =Bilanca!C96 -> 0 | D12: =Bilanca!D96 -> 21.65 | E12: =Bilanca!E96 -> 0 | F12: =Bilanca!F96 -> 21.65 | G12: =Bilanca!G96 -> 0 | I12: Koef. tekuće likvidnosti | J12: Kratkotrajna imovina / kratkoročne obveze | L12: Rezerviranja | M12: 21.65 | N12: 21.65 | O12: 0
B13: Dugoročne obveze | C13: =Bilanca!C103 -> 2799.417 | D13: =Bilanca!D103 -> 2722.38581 | E13: =Bilanca!E103 -> 2743.27 | F13: =Bilanca!F103 -> 2931.57 | G13: =Bilanca!G103 -> 2978.675 | I13: Koeficijent financijske stabilnosti | J13: Dugotrajna imovina / (Kapital i rezerve + Dugoročne obveze) | L13: Dugoročne obveze | M13: 2722.38581 | N13: 2931.57 | O13: 2978.675
B14: Kratkoročne obveze | C14: =Bilanca!C115 -> 16700.799 | D14: =Bilanca!D115 -> 673.689 | E14: =Bilanca!E115 -> 767.357 | F14: =Bilanca!F115 -> 673.692 | G14: =Bilanca!G115 -> 579.185 | I14: Koef. zaduženosti | J14: (Rezerviranja + Dugoročne obveze + Kratkoročne obveze + Ostalo) / Aktiva | L14: Kratkoročne obveze | M14: 673.689 | N14: 673.692 | O14: 579.185
B15: Odg. pl. troš. i prihod.. | C15: =Bilanca!C130 -> 0 | D15: =Bilanca!D130 -> 10099.795 | E15: =Bilanca!E130 -> 22667.272 | F15: =Bilanca!F130 -> 11768.088 | G15: =Bilanca!G130 -> 19791.017 | L15: Odg. pl. troš. i prihod.. | M15: 10099.795 | N15: 11768.088 | O15: 19791.017
B16: Pasiva | C16: =Bilanca!C131 -> 20409.841 | D16: =Bilanca!D131 -> 14667.74381 | E16: =Bilanca!E131 -> 27049.16 | F16: =Bilanca!F131 -> 16934.841 | G16: =Bilanca!G131 -> 24936.627 | L16: Pasiva | M16: 14667.74381 | N16: 16934.841 | O16: 24936.627
B18: RAČUN DOBITI I GUBITKA (HRK 000) | L18: RAČUN DOBITI I GUBITKA (HRK 000) | M18: 0 | N18: 0 | O18: 0
B19: Poslovni prihodi | C19: =RDG!C5 -> 3445.894 | D19: =RDG!D5 -> 3814.391 | E19: =RDG!E5 -> 3991.6 | F19: =RDG!F5 -> 4012.427 | G19: =RDG!G5 -> 4802.805 | L19: Poslovni prihodi | M19: 3814.391 | N19: 4012.427 | O19: 4802.805
B20: Poslovni rashodi | C20: =RDG!C11 -> 3378.614 | D20: =RDG!D11 -> 3386.403 | E20: =RDG!E11 -> 3862.16 | F20: =RDG!F11 -> 3502.902 | G20: =RDG!G11 -> 4634.846 | L20: Poslovni rashodi | M20: 3386.403 | N20: 3502.902 | O20: 4634.846
B21: Financijski prihodi | C21: =RDG!C34 -> 0.54 | D21: =RDG!D34 -> 0.137 | E21: =RDG!E34 -> 0.6 | F21: =RDG!F34 -> 0.109 | G21: =RDG!G34 -> 0.15 | L21: Financijski prihodi | M21: 0.137 | N21: 0.109 | O21: 0.15
B22: Financijski rashodi | C22: =RDG!C45 -> 62.8 | D22: =RDG!D45 -> 90.716 | E22: =RDG!E45 -> 90.39 | F22: =RDG!F45 -> 120.017 | G22: =RDG!G45 -> 120.2 | L22: Financijski rashodi | M22: 90.716 | N22: 120.017 | O22: 120.2
B23: Ukupni prihodi | C23: =RDG!C57 -> 3446.434 | D23: =RDG!D57 -> 3814.528 | E23: =RDG!E57 -> 3992.2 | F23: =RDG!F57 -> 4012.536 | G23: =RDG!G57 -> 4802.955 | L23: Ukupni prihodi | M23: 3814.528 | N23: 4012.536 | O23: 4802.955
B24: Ukupni rashodi | C24: =RDG!C58 -> 3441.414 | D24: =RDG!D58 -> 3477.119 | E24: =RDG!E58 -> 3952.55 | F24: =RDG!F58 -> 3622.919 | G24: =RDG!G58 -> 4755.046 | L24: Ukupni rashodi | M24: 3477.119 | N24: 3622.919 | O24: 4755.046
B25: Dobit/gubitak prije oporezivanja | C25: =RDG!C59 -> 5.02 | D25: =RDG!D59 -> 337.409 | E25: =RDG!E59 -> 39.65 | F25: =RDG!F59 -> 389.617 | G25: =RDG!G59 -> 47.909 | L25: Dobit/gubitak prije oporezivanja | M25: 337.409 | N25: 389.617 | O25: 47.909
B26: Porez na dobit | C26: =RDG!C62 -> 0 | D26: =RDG!D62 -> 0 | E26: =RDG!E62 -> 0 | F26: =RDG!F62 -> 0 | G26: =RDG!G62 -> 0 | L26: Porez na dobit | M26: 0 | N26: 0 | O26: 0
B27: Neto dobit/gubitak | C27: =RDG!C63 -> 5.02 | D27: =RDG!D63 -> 337.409 | E27: =RDG!E63 -> 39.65 | F27: =RDG!F63 -> 389.617 | G27: =RDG!G63 -> 47.909 | L27: Neto dobit/gubitak | M27: 337.409 | N27: 389.617 | O27: 47.909
B29: KLJUČNI POKAZATELJI | L29: KLJUČNI POKAZATELJI
B30: EBITDA (HRK 000) | C30: =C19-C20+C42 -> 492.28 | D30: =D19-D20+D42 -> 800.119 | E30: 501.44 | F30: 887.156 | G30: 587.959 | L30: EBITDA (HRK 000) | M30: 800.119 | N30: 887.156 | O30: 587.959
B31: EBITDA marža | C31: =IFERROR(C30/C19,0) -> 0.142859879 | D31: =IFERROR(D30/D19,0) -> 0.2097632361 | E31: 0.12562381 | F31: 0.2211020911 | G31: 0.1224199192 | L31: EBITDA marža | M31: 0.2097632361 | N31: 0.2211020911 | O31: 0.1224199192
B32: Neto profitna marža | C32: =IFERROR(C27/C23,0) -> 0.001456578017 | D32: =IFERROR(D27/D23,0) -> 0.08845366976 | E32: 0.009931867141 | F32: 0.09709993879 | G32: 0.009974900868 | L32: Neto profitna marža | M32: 0.08845366976 | N32: 0.09709993879 | O32: 0.009974900868
B33: ROA | C33: =IFERROR(C27/C10,0) -> 0.000245959816 | D33: =IFERROR(D27/D10,0) -> 0.02300347351 | E33: 0.001465849532 | F33: 0.02300682456 | G33: 0.001921230242 | L33: ROA | M33: 0.02300347351 | N33: 0.02300682456 | O33: 0.001921230242
B34: ROE | C34: =IFERROR(C27/C11,0) -> 0.00551875773 | D34: =IFERROR(D27/D11,0) -> 0.2933419925 | E34: 0.04550875111 | F34: 0.2530241759 | G34: 0.0301741458 | L34: ROE | M34: 0.2933419925 | N34: 0.2530241759 | O34: 0.0301741458
B35: Koef. tekuće likvidnosti | C35: =IFERROR(C8/C14,0) -> 0.03935907498 | D35: =IFERROR(D8/D14,0) -> 1.050573781 | E35: 0.664706258 | F35: 1.528496702 | G35: 1.396047895 | L35: Koef. tekuće likvidnosti | M35: 1.050573781 | N35: 1.528496702 | O35: 1.396047895
B36: Koef. financijske stab. | C36: =IFERROR(C7/(C11+C13),0) -> 5.325501841 | D36: =IFERROR(D7/(D11+D13),0) -> 3.598057396 | E36: 7.312800471 | F36: 3.529483794 | G36: 5.260835555 | L36: Koef. financijske stab. | M36: 3.598057396 | N36: 3.529483794 | O36: 5.260835555
B37: Koef. zaduženosti | C37: =IFERROR((C12+C13+C14+C15)/C10,0) -> 0.9554321793 | D37: =IFERROR((D12+D13+D14+D15)/D10,0) -> 0.9215815489 | E37: 0.9677896849 | F37: 0.9090724072 | G37: 0.9363286356 | L37: Koef. zaduženosti | M37: 0.9215815489 | N37: 0.9090724072 | O37: 0.9363286356
B38: Zaposleni | C38: =Podloga!B37 -> 55 | D38: =Podloga!C37 -> 58 | E38: =Podloga!D37 -> 58 | F38: =Podloga!E37 -> 58 | G38: =Podloga!F37 -> 59 | L38: Zaposleni | M38: 58 | N38: 58 | O38: 59
B39: Investicije (HRK 000) | C39: =Podloga!B38 -> 0 | D39: =Podloga!C38 -> 0 | E39: =Podloga!D38 -> 0 | F39: =Podloga!E38 -> 0 | G39: =Podloga!F38 -> 0 | L39: Investicije (HRK 000) | M39: 0 | N39: 0 | O39: 0
B42: Amortizacija | C42: =RDG!C21 -> 425 | D42: =RDG!D21 -> 372.131 | E42: =RDG!E21 -> 372 | F42: =RDG!F21 -> 377.631 | G42: =RDG!G21 -> 420 | L42: Amortizacija | M42: 372.131 | N42: 377.631 | O42: 420

Sheet AI (hidden)
A2: Naziv društva | B2: Ukupni prihodi | G2: Ukupni rashodi | L2: Neto dobit/gubitak | Q2: Planirane investicije | V2: Dugotrajna imovina | AA2: Kratkotrajna imovina | AF2: Pl. troš. budućeg razd.. | AK2: Aktiva | AP2: Kapital i rezerve | AU2: Rezerviranja | AZ2: Dugoročne obveze | BE2: Kratkoročne obveze | BJ2: Odg. pl. troš. i prihod.. | BO2: Pasiva | BT2: Poslovni prihodi | BY2: Poslovni rashodi | CD2: Financijski prihodi | CI2: Financijski rashodi | CN2: Ukupni prihodi | CS2: Ukupni rashodi | CX2: Dobit/gubitak prije oporezivanja | DC2: Porez na dobit | DH2: Neto dobit/gubitak | DM2: EBITDA (HRK 000) | DR2: EBITDA marža | DW2: Neto profitna marža | EB2: ROA | EG2: ROE | EL2: Tekuća likvidnost | EQ2: Koef. financijske stab. | EV2: Koef. zaduženosti | FA2: Zaposleni | FF2: Investicije (HRK 000) | FK2: Amortizacija
B3: 2019. planirano | C3: 2019. ostvareno | D3: 2020. planirano | E3: 2020. procijenjeno | F3: 2021. planirano | G3: 2019. planirano | H3: 2019. ostvareno | I3: 2020. planirano | J3: 2020. procijenjeno | K3: 2021. planirano | L3: 2019. planirano | M3: 2019. ostvareno | N3: 2020. planirano | O3: 2020. procijenjeno | P3: 2021. planirano | Q3: 2019. planirano | R3: 2019. ostvareno | S3: 2020. planirano | T3: 2020. procijenjeno | U3: 2021. planirano | V3: 2019. planirano | W3: 2019. ostvareno | X3: 2020. planirano | Y3: 2020. procijenjeno | Z3: 2021. planirano | AA3: 2019. planirano | AB3: 2019. ostvareno | AC3: 2020. planirano | AD3: 2020. procijenjeno | AE3: 2021. planirano | AF3: 2019. planirano | AG3: 2019. ostvareno | AH3: 2020. planirano | AI3: 2020. procijenjeno | AJ3: 2021. planirano | AK3: 2019. planirano | AL3: 2019. ostvareno | AM3: 2020. planirano | AN3: 2020. procijenjeno | AO3: 2021. planirano | AP3: 2019. planirano | AQ3: 2019. ostvareno | AR3: 2020. planirano | AS3: 2020. procijenjeno | AT3: 2021. planirano | AU3: 2019. planirano | AV3: 2019. ostvareno | AW3: 2020. planirano | AX3: 2020. procijenjeno | AY3: 2021. planirano | AZ3: 2019. planirano | BA3: 2019. ostvareno | BB3: 2020. planirano | BC3: 2020. procijenjeno | BD3: 2021. planirano | BE3: 2019. planirano | BF3: 2019. ostvareno | BG3: 2020. planirano | BH3: 2020. procijenjeno | BI3: 2021. planirano | BJ3: 2019. planirano | BK3: 2019. ostvareno | BL3: 2020. planirano | BM3: 2020. procijenjeno | BN3: 2021. planirano | BO3: 2019. planirano | BP3: 2019. ostvareno | BQ3: 2020. planirano | BR3: 2020. procijenjeno | BS3: 2021. planirano | BT3: 2019. planirano | BU3: 2019. ostvareno | BV3: 2020. planirano | BW3: 2020. procijenjeno | BX3: 2021. planirano | BY3: 2019. planirano | BZ3: 2019. ostvareno | CA3: 2020. planirano | CB3: 2020. procijenjeno | CC3: 2021. planirano | CD3: 2019. planirano | CE3: 2019. ostvareno | CF3: 2020. planirano | CG3: 2020. procijenjeno | CH3: 2021. planirano | CI3: 2019. planirano | CJ3: 2019. ostvareno | CK3: 2020. planirano | CL3: 2020. procijenjeno | CM3: 2021. planirano | CN3: 2019. planirano | CO3: 2019. ostvareno | CP3: 2020. planirano | CQ3: 2020. procijenjeno | CR3: 2021. planirano | CS3: 2019. planirano | CT3: 2019. ostvareno | CU3: 2020. planirano | CV3: 2020. procijenjeno | CW3: 2021. planirano | CX3: 2019. planirano | CY3: 2019. ostvareno | CZ3: 2020. planirano | DA3: 2020. procijenjeno | DB3: 2021. planirano | DC3: 2019. planirano | DD3: 2019. ostvareno | DE3: 2020. planirano | DF3: 2020. procijenjeno | DG3: 2021. planirano | DH3: 2019. planirano | DI3: 2019. ostvareno | DJ3: 2020. planirano | DK3: 2020. procijenjeno | DL3: 2021. planirano | DM3: 2019. planirano | DN3: 2019. ostvareno | DO3: 2020. planirano | DP3: 2020. procijenjeno | DQ3: 2021. planirano | DR3: 2019. planirano | DS3: 2019. ostvareno | DT3: 2020. planirano | DU3: 2020. procijenjeno | DV3: 2021. planirano | DW3: 2019. planirano | DX3: 2019. ostvareno | DY3: 2020. planirano | DZ3: 2020. procijenjeno | EA3: 2021. planirano | EB3: 2019. planirano | EC3: 2019. ostvareno | ED3: 2020. planirano | EE3: 2020. procijenjeno | EF3: 2021. planirano | EG3: 2019. planirano | EH3: 2019. ostvareno | EI3: 2020. planirano | EJ3: 2020. procijenjeno | EK3: 2021. planirano | EL3: 2019. planirano | EM3: 2019. ostvareno | EN3: 2020. planirano | EO3: 2020. procijenjeno | EP3: 2021. planirano | EQ3: 2019. planirano | ER3: 2019. ostvareno | ES3: 2020. planirano | ET3: 2020. procijenjeno | EU3: 2021. planirano | EV3: 2019. planirano | EW3: 2019. ostvareno | EX3: 2020. planirano | EY3: 2020. procijenjeno | EZ3: 2021. planirano | FA3: 2019. planirano | FB3: 2019. ostvareno | FC3: 2020. planirano | FD3: 2020. procijenjeno | FE3: 2021. planirano | FF3: 2019. planirano | FG3: 2019. ostvareno | FH3: 2020. planirano | FI3: 2020. procijenjeno | FJ3: 2021. planirano | FK3: 2019. planirano | FL3: 2019. ostvareno | FM3: 2020. planirano | FN3: 2020. procijenjeno | FO3: 2021. planirano | FP3: 2019. planirano | FQ3: 2019. ostvareno | FR3: 2020. planirano | FS3: 2020. procijenjeno | FT3: 2021. planirano | FU3: 2019. planirano | FV3: 2019. ostvareno | FW3: 2020. planirano | FX3: 2020. procijenjeno | FY3: 2021. planirano
A4: =Podloga!B2 -> Zračna luka Osijek d.o.o. | B4: =Sazetak!C23 -> 3446.434 | C4: =Sazetak!D23 -> 3814.528 | D4: =Sazetak!E23 -> 3992.2 | E4: =Sazetak!F23 -> 4012.536 | F4: =Sazetak!G23 -> 4802.955 | G4: =Sazetak!C24 -> 3441.414 | H4: =Sazetak!D24 -> 3477.119 | I4: =Sazetak!E24 -> 3952.55 | J4: =Sazetak!F24 -> 3622.919 | K4: =Sazetak!G24 -> 4755.046 | L4: =Sazetak!C27 -> 5.02 | M4: =Sazetak!D27 -> 337.409 | N4: =Sazetak!E27 -> 39.65 | O4: =Sazetak!F27 -> 389.617 | P4: =Sazetak!G27 -> 47.909 | Q4: =Sazetak!C39 -> 0 | R4: =Sazetak!D39 -> 0 | S4: =Sazetak!E39 -> 0 | T4: =Sazetak!F39 -> 0 | U4: =Sazetak!G39 -> 0 | V4: =Sazetak!C7 -> 19752.51 | W4: =Sazetak!D7 -> 13933.87237 | X4: =Sazetak!E7 -> 26432.344 | Y4: =Sazetak!F7 -> 15781.77266 | Z4: =Sazetak!G7 -> 24023.211 | AA4: =Sazetak!C8 -> 657.328 | AB4: =Sazetak!D8 -> 707.76 | AC4: =Sazetak!E8 -> 510.067 | AD4: =Sazetak!F8 -> 1029.736 | AE4: =Sazetak!G8 -> 808.57 | AF4: =Sazetak!C9 -> 0 | AG4: =Sazetak!D9 -> 26.109 | AH4: =Sazetak!E9 -> 106.75 | AI4: =Sazetak!F9 -> 123.336 | AJ4: =Sazetak!G9 -> 104.845 | AK4: =Sazetak!C10 -> 20409.838 | AL4: =Sazetak!D10 -> 14667.74137 | AM4: =Sazetak!E10 -> 27049.161 | AN4: =Sazetak!F10 -> 16934.84466 | AO4: =Sazetak!G10 -> 24936.626 | AP4: =Sazetak!C11 -> 909.625 | AQ4: =Sazetak!D11 -> 1150.224 | AR4: =Sazetak!E11 -> 871.261 | AS4: =Sazetak!F11 -> 1539.841 | AT4: =Sazetak!G11 -> 1587.75 | AU4: =Sazetak!C12 -> 0 | AV4: =Sazetak!D12 -> 21.65 | AW4: =Sazetak!E12 -> 0 | AX4: =Sazetak!F12 -> 21.65 | AY4: =Sazetak!G12 -> 0 | AZ4: =Sazetak!C13 -> 2799.417 | BA4: =Sazetak!D13 -> 2722.38581 | BB4: =Sazetak!E13 -> 2743.27 | BC4: =Sazetak!F13 -> 2931.57 | BD4: =Sazetak!G13 -> 2978.675 | BE4: =Sazetak!C14 -> 16700.799 | BF4: =Sazetak!D14 -> 673.689 | BG4: =Sazetak!E14 -> 767.357 | BH4: =Sazetak!F14 -> 673.692 | BI4: =Sazetak!G14 -> 579.185 | BJ4: =Sazetak!C15 -> 0 | BK4: =Sazetak!D15 -> 10099.795 | BL4: =Sazetak!E15 -> 22667.272 | BM4: =Sazetak!F15 -> 11768.088 | BN4: =Sazetak!G15 -> 19791.017 | BO4: =Sazetak!C16 -> 20409.841 | BP4: =Sazetak!D16 -> 14667.74381 | BQ4: =Sazetak!E16 -> 27049.16 | BR4: =Sazetak!F16 -> 16934.841 | BS4: =Sazetak!G16 -> 24936.627 | BT4: =Sazetak!C19 -> 3445.894 | BU4: =Sazetak!D19 -> 3814.391 | BV4: =Sazetak!E19 -> 3991.6 | BW4: =Sazetak!F19 -> 4012.427 | BX4: =Sazetak!G19 -> 4802.805 | BY4: =Sazetak!C20 -> 3378.614 | BZ4: =Sazetak!D20 -> 3386.403 | CA4: =Sazetak!E20 -> 3862.16 | CB4: =Sazetak!F20 -> 3502.902 | CC4: =Sazetak!G20 -> 4634.846 | CD4: =Sazetak!C21 -> 0.54 | CE4: =Sazetak!D21 -> 0.137 | CF4: =Sazetak!E21 -> 0.6 | CG4: =Sazetak!F21 -> 0.109 | CH4: =Sazetak!G21 -> 0.15 | CI4: =Sazetak!C22 -> 62.8 | CJ4: =Sazetak!D22 -> 90.716 | CK4: =Sazetak!E22 -> 90.39 | CL4: =Sazetak!F22 -> 120.017 | CM4: =Sazetak!G22 -> 120.2 | CN4: =Sazetak!C23 -> 3446.434 | CO4: =Sazetak!D23 -> 3814.528 | CP4: =Sazetak!E23 -> 3992.2 | CQ4: =Sazetak!F23 -> 4012.536 | CR4: =Sazetak!G23 -> 4802.955 | CS4: =Sazetak!C24 -> 3441.414 | CT4: =Sazetak!D24 -> 3477.119 | CU4: =Sazetak!E24 -> 3952.55 | CV4: =Sazetak!F24 -> 3622.919 | CW4: =Sazetak!G24 -> 4755.046 | CX4: =Sazetak!C25 -> 5.02 | CY4: =Sazetak!D25 -> 337.409 | CZ4: =Sazetak!E25 -> 39.65 | DA4: =Sazetak!F25 -> 389.617 | DB4: =Sazetak!G25 -> 47.909 | DC4: =Sazetak!C26 -> 0 | DD4: =Sazetak!D26 -> 0 | DE4: =Sazetak!E26 -> 0 | DF4: =Sazetak!F26 -> 0 | DG4: =Sazetak!G26 -> 0 | DH4: =Sazetak!C27 -> 5.02 | DI4: =Sazetak!D27 -> 337.409 | DJ4: =Sazetak!E27 -> 39.65 | DK4: =Sazetak!F27 -> 389.617 | DL4: =Sazetak!G27 -> 47.909 | DM4: =Sazetak!C30 -> 492.28 | DN4: =Sazetak!D30 -> 800.119 | DO4: =Sazetak!E30 -> 501.44 | DP4: =Sazetak!F30 -> 887.156 | DQ4: =Sazetak!G30 -> 587.959 | DR4: =Sazetak!C31 -> 0.142859879 | DS4: =Sazetak!D31 -> 0.2097632361 | DT4: =Sazetak!E31 -> 0.12562381 | DU4: =Sazetak!F31 -> 0.2211020911 | DV4: =Sazetak!G31 -> 0.1224199192 | DW4: =Sazetak!C32 -> 0.001456578017 | DX4: =Sazetak!D32 -> 0.08845366976 | DY4: =Sazetak!E32 -> 0.009931867141 | DZ4: =Sazetak!F32 -> 0.09709993879 | EA4: =Sazetak!G32 -> 0.009974900868 | EB4: =Sazetak!C33 -> 0.000245959816 | EC4: =Sazetak!D33 -> 0.02300347351 | ED4: =Sazetak!E33 -> 0.001465849532 | EE4: =Sazetak!F33 -> 0.02300682456 | EF4: =Sazetak!G33 -> 0.001921230242 | EG4: =Sazetak!C34 -> 0.00551875773 | EH4: =Sazetak!D34 -> 0.2933419925 | EI4: =Sazetak!E34 -> 0.04550875111 | EJ4: =Sazetak!F34 -> 0.2530241759 | EK4: =Sazetak!G34 -> 0.0301741458 | EL4: =Sazetak!C35 -> 0.03935907498 | EM4: =Sazetak!D35 -> 1.050573781 | EN4: =Sazetak!E35 -> 0.664706258 | EO4: =Sazetak!F35 -> 1.528496702 | EP4: =Sazetak!G35 -> 1.396047895 | EQ4: =Sazetak!C36 -> 5.325501841 | ER4: =Sazetak!D36 -> 3.598057396 | ES4: =Sazetak!E36 -> 7.312800471 | ET4: =Sazetak!F36 -> 3.529483794 | EU4: =Sazetak!G36 -> 5.260835555 | EV4: =Sazetak!C37 -> 0.9554321793 | EW4: =Sazetak!D37 -> 0.9215815489 | EX4: =Sazetak!E37 -> 0.9677896849 | EY4: =Sazetak!F37 -> 0.9090724072 | EZ4: =Sazetak!G37 -> 0.9363286356 | FA4: =Sazetak!C38 -> 55 | FB4: =Sazetak!D38 -> 58 | FC4: =Sazetak!E38 -> 58 | FD4: =Sazetak!F38 -> 58 | FE4: =Sazetak!G38 -> 59 | FF4: =Sazetak!C39 -> 0 | FG4: =Sazetak!D39 -> 0 | FH4: =Sazetak!E39 -> 0 | FI4: =Sazetak!F39 -> 0 | FJ4: =Sazetak!G39 -> 0 | FK4: =Sazetak!C42 -> 425 | FL4: =Sazetak!D42 -> 372.131 | FM4: =Sazetak!E42 -> 372 | FN4: =Sazetak!F42 -> 377.631 | FO4: =Sazetak!G42 -> 420 | FP4: =Sazetak!FF39 -> 0 | FQ4: =Sazetak!FG39 -> 0 | FR4: =Sazetak!FH39 -> 0 | FS4: =Sazetak!FI39 -> 0 | FT4: =Sazetak!FJ39 -> 0 | FU4: =Sazetak!FK39 -> 0 | FV4: =Sazetak!FL39 -> 0 | FW4: =Sazetak!FM39 -> 0 | FX4: =Sazetak!FN39 -> 0 | FY4: =Sazetak!FO39 -> 0
